Workbook

Sheet ReadMe
B1: HSS Sections - Rectangular and Square - LRFD
B2: AISC 360-22
B3: Norman R. Mahan, PE. Ver. 2.0 - 3/19/2025
B4: Overview
B5: TraditionBS
A6: 1 | B6: This workbook was originally developed to analyze HSS sections used as crane columns. The eccentricity
B7: of the crane load at the top of the column was to be account for.
B8: As time went on it became clear that the analysis of HSS beam sections could be incorporated. It finally
B9: became a complete analysis spreadsheet for HSS sections, equivalent to the available strength tables
B10: in the AISC manual. No deflections are analyzed.
A12: =+A6+1 -> 2 | B12: It computes the available strength of HSS sections, obtaining the values of ɸcPn, ɸbMnx,
B13: ɸbMny, ɸtTyn, ɸtuTUn, ɸtorTort, ɸtorTorny,ɸvVx, and ɸvVy, in accordance with AISC 360-22.
B14: All HSS sections in the AISC Shapes Database, V16.0 are included, including ASTM 1085 sections.
A16: =+A12+1 -> 3 | B16: The workbook consists of 8 sheets and this 'ReadMe' sheet. 'HSS_Member' is the only sheet with which the user interacts. All sheets are protected, with the necessary input cells on 'HSS_Member' unprotected. Almost all calculations are done on the other sheets. Two of the other sheets are: HSS_Database and 1085HSS_Database. These are subsets of 'aisc-shapes-database-v16.0' and 'aisc-shapes-database-v16.0_a1085.' Columns of these two sheets haved been named within Excel to allow quick access to the data within the databases.
A18: =+A16+1 -> 4 | B18: The sheet 'HSS_Section_Properties' retrieves the necessary section properties for the input section from the appropriate database. If the section is 'Slender' or requires adjustment of the full section properites for some reason it is done on this sheet.
A20: =+A18+1 -> 5 | B20: HSS Axial Calculations', 'HSS Bending Calculations', 'HSS Torsion Calculations', and 'HSS Tension, Shear' sheets compute the values accordingly. At the top of each page (take Axial for example) is the governing value (Pn and ɸcPn).
A22: =+A20+1 -> 6 | B22: Input
B23: 'HSS_Member' is the only sheet that has input. The input cells are this color.
B24: All other cells are protected.
B25: Cells with totals are this color.
B26: Cells with output values are this color.
A29: 8 | B29: Note that all input forces and moments are to be factored.
A31: =+A29+1 -> 9 | B31: You enter the section by selecting the shape (Square or Rectangle), then the size (depth x width), then the thickness, and then clicking on 'Insert'. It will be red to remind you to click on it. Changing the section type (square or rectangle), size, thickness, or yield selection turns the cell red. Clicking on Insert returns it to the original color.
A33: =+A31+1 -> 10 | B33: There are two option selections. One is for the ASTM grade of the section, the other is to compute the moment at the top of the column due to crane load eccentricity. The ASTM options are 1085, Grade A, 500 Grade B, and 500, Grade C. ASTM 1085, Grade A uses the full section properties of the section, while Grade 500, B & C, use the standard reduced properties. The crane load eccentricity options are 'Yes' and 'No'. The eccentricity is taken to be equal to the (column depth/2 - thickness/2). Only the crane 'Live Load' is used to compute the Mx moment. The crane DL is assumed to be the weight of the crane beam and rail, generally symmetric on the column.
A35: =+A33+1 -> 11 | B35: The crane live load, or axial force on the column, is entered in cell B9, with the dead load in cell B10.
A37: =+A35+1 -> 12 | B37: The k values for the member and the unbraced length about each axis are in cells B15 thru D16. Note that the unbraced length for torsion (Lz) must be equal to or less than Ly. It need be entered only if torsion effects are to be included in the analysis.
A39: =+A37+1 -> 13 | B39: Additional Mx and My moments may be entered in cells F9 and F15 as needed. The unbraced length in bending, Lb, is entered in cell F16.
A41: =+A39+1 -> 14 | B41: If the crane eccentricity option is selected, values for Cb are automatically entered in cells H24 through H27, assuming a linear distribution of moment with Mmax at the top of the member and a zero value for the moment at the bottom. The user may adjust these values if desired. Alternatively, the user may enter a Cb value in cell H29 which will override any value computed in cell H28.
A43: =+A41+1 -> 15 | B43: The only other values the user may wish to enter is for shear and torsion, in cells C47, C48, and F47.
A45: =+A43+1 -> 16 | B45: Ensure that all numeric entries have a value - zero if necessary. Blank value may cause strange results.
A47: =+A45+1 -> 17 | B47: As of this date (8/27/2024) 26 random selected sections have been compared with the AISC tabulated values (V16.0 Companion, Volume 2, Design Tables). The largest positive variation is 1.91% for an HSS 24x12x5/16 in My bending. The largest negitive variation is -0.67%. In addition, the nine examples in the Companion, Volume 1 - Design Examples, that are of HSS sections have beens compared against the results of this workbook. The largest deviation there was 1.30% for Examples F8A & F8B, a square flexural member with slender flanges.
A49: =+A47+1 -> 18 | B49: Print any or all sheets as you desire using normal Excel printing procedures. Print areas are pre-selected.
A51: =+A49+1 -> 19 | B51: Sometimes the changing of HSS the shape (Square to Rectangular), size, thickness, and yield may cause unpredictable results. Ensure that the section that you are interested in is shown on HSS_Section_Properties if the results are strange. Start over with the yield, then the shape, then the size, then the thickness. Be sure to click on your selected wall thickness, even if the default that appears is what you desire. If you don't see any thicknesses in the thickness drop down box (which sometimes happens due to the characteristics of the drop down box), select a different size and then go back and click on your original size. All should be well. If not, let me know.
A53: =+A51+1 -> 20 | B53: It is believed that this workbook provides information in accordance with AISC 360-22. However, the user is ultimately responsible for any errors.
A55: 50 | B55: Ver. 2.0. Changes from Ver. 1.0. Only one calculation has been changed. The Y-axis shear value has been corrected. All other changes are cosmetic, affecting the appearance of the HSS_Member sheet and methods of input.
A57: 100 | B57: Address any questions or comments to me at nrmahan@att.net. I will reply as soon as I can. Suggestions are welcome. Norman R. Mahan, P.E.

Sheet HSS_Member
C1: HSS Sections - Rectangular and Square - LRFD | I1: Ver. 2.0
E2: AISC 360-22 | M2: =INDEX(HSS500_Database!$H$4:$H$82, $K$6) -> 8x8
A3: 8x8x1/2 section | E3: Test section | I3: =TODAY() -> 2025-03-25 | M3: =INDEX(HSS500_Database!$I$4:$I$12,$K$7) -> 0
A4: Square=> | C4: <==Rectangle | L4: Work area:
B5: Square | C5: 2 | I5: 500, Gr. C | K5: index: | M5: Size:
B6: HSS 500, Gr. C | C6: Fy | D6: Fu | G6: 500, Gr. B | H6: 500, Gr. C | I6: 1085, Gr. A | K6: 9 | L6: <=Seq in H | M6: =INDEX(HSS500_Database!$H4:$H82, $K$6) -> 8x8 | N6: =M6 &"x"&IF(M7=1,TEXT(M7,"0"),TEXT(M7,"0.000")) -> 8x8x0.000
B7: 8x8x0.500 | C7: 50 | D7: 62 | E7: <== ksi ==> | G7: 46, 58 | H7: 50, 62 | I7: 50, 65 | K7: 2 | L7: <=Seq in T | M7: =INDEX(HSS500_Database!$I4:$I14, $K$7) -> 0
A8: Insert | I8: (Full Prop.)
A9: Compression | G9: Flexure
A10: All input forces to be factored forces. | H10: 0
I11: No
A12: LL | B12: 0 | C12: kips | I12: Crane force
A13: DL | B13: 0 | C13: kips | I13: eccentricity?
A14: Total - Pn | B14: =B12+B13 -> 0 | C14: kips | E14: Mrx | F14: 50 | G14: kip-ft | I14: Y N
G15: in <== | H15: e to col flg centerline
B16: =IF(B20>200, "L/r > 200", "") ->  | C16: =IF(C20>200, "L/r > 200", "") ->  | G16: kip-ft <== | H16: crane load Mx
B17: X-axis | C17: Y-axis | D17: Z-axis | E17: Total - Mrx | F17: =+F14+F16 -> 50 | G17: kip-ft
A18: k | B18: 1 | C18: 1 | D18: 1 | E18: Mry | F18: 0 | G18: kip-ft
A19: Lc | B19: 20 | C19: 20 | D19: 20 | E19: Lb | F19: 20 | G19: ft
A20: Lc/r | B20: =+B18*B19*12/rx -> 78.94736842 | C20: =+C18*C19*12/ry -> 78.94736842 | D20: Lcz <= Lcy
A22: For uniform compression section is: | H22: Flange: | I22: Web:
C23: =IF(hss500_type="Square",HSS_Section_Properties!$C$26,HSS_Section_Properties!$I$32) -> Nonslender | G23: For X-axis bending: | H23: =+HSS_Section_Properties!C42 -> Compact | I23: =+HSS_Section_Properties!C57 -> Compact
G24: For Y-axis bending: | H24: =+HSS_Section_Properties!G42 -> Compact | I24: =+HSS_Section_Properties!G57 -> Compact
F25: Compute Cb
F26: Optional calculation - absolute values | G26: Mmax | H26: 0 | I26: kip-ft
F27: Ma - 1/4 pt of unbraced segment | G27: Ma | H27: 0 | I27: kip-ft
F28: Mb - 1/2 pt of unbraced segment | G28: Mb | H28: 0 | I28: kip-ft
F29: Mc - 3/4 pt of unbraced segment | G29: Mc | H29: 0 | I29: kip-ft
F30: Cb = 12.5Mmax/(2.5Mmax + 3Ma + 4Mb+3Mc) | G30: Cb | H30: =IFERROR((12.5*H26/(2.5*H26+3*H27+4*H28+3*H29)),0) -> 0
D31: Optional direct entry | G31: Cb (enter) | H31: 1
A33: Axial | C33: ɸcPn = Pn | D33: =+HSS_Axial_Calculations!D8 -> 385.1505698 | E33: kips | F33: Pr | G33: =+B14 -> 0 | H33: kips
A34: X Bending | C34: ɸbMn = Mcx | D34: =+HSS_Bending_Calculations!E8 -> 140.625 | E34: kip-ft | F34: Mrx | G34: =+F17 -> 50 | H34: kip-ft
A35: Y Bending | C35: ɸbMn = Mcy | D35: =+HSS_Bending_Calculations!E10 -> 140.625 | E35: kip-ft | F35: Mry | G35: =+F18 -> 0 | H35: kip-ft
D37: Pr/Pc | E37: =IFERROR(G33/D33,0) -> 0
D38: Pr/Pc + (8/9)(Mrx/Mcx + Mry/Mcy) < = 1 | E38: =+IFERROR(G33/D33,0)+(8/9)*(IFERROR((G34/D34),0)+IFERROR((G35/D35),0)) -> 0.3160493827 | H38: H1-1a
D39: Pr/(2*Pc) + (Mrx/Mcx + Mry/Mcy) < = 1 | E39: =IFERROR(G33/(2*D33),0)+IFERROR(G34/D34,0) + IFERROR(G35/D35,0) -> 0.3555555556 | H39: H1-1b
D40: Max ratio | E40: =IF(E37>=0.2,E38,E39) -> 0.3555555556
A42: Tension | D42: Shear | G42: Torsion
A43: ɸtTYn | B43: =+'HSS_Tension,_Shear'!F9 -> 607.5 | C43: kips | D43: ɸvVnx | E43: =+'HSS_Tension,_Shear'!C9 -> 165.726 | F43: kips | G43: ɸtorTort | H43: =+HSS_Torsion_Calculations!D11 -> 117.9 | I43: kip-in
A44: ɸtuTUn | B44: =+'HSS_Tension,_Shear'!F11 -> 470.8125 | C44: kips | D44: ɸvVny | E44: =+'HSS_Tension,_Shear'!C11 -> 165.726 | F44: kips
A47: H3.2 - HSS subjected to combined torsion shear, flexure, and axial force
C48: Shear force | F48: Torsion force
B49: Vx | C49: 0 | D49: kips | E49: Tz | F49: 0 | G49: kip-ft
B50: Vy | C50: 0 | D50: kips
B52: If Tr is less than or equal to Tc, torsional effects may be neglected.
B53: Use H1-1a and H1-1b.
E55: (Pr/Pc + Mrx/Mcx + Mry/Mcy) + (Vr/Vc + Tr/Tc)^2 <= 1.0 | H55: H3-6
C56: Pr/Pc | D56: =IFERROR(B14/D33,0) -> 0
C57: Mrx/Mcx | D57: =IFERROR(F17/D34,0) -> 0.3555555556
C58: Mry/Mcy | D58: =+IFERROR(F18/D35,0) -> 0
C59: Vr/Vc | D59: =MAX(C49/E43,C50/E44) -> 0
C60: Tr/Tc | D60: =IFERROR(F49/H43,0) -> 0
C61: Ratio | D61: =+(D56+D57+D58)+(D59+D60)^2 -> 0.3555555556 | H61: H3-6
A63: G | B63: 11300 | C63: ksi | E63: Created by: Norman R. Mahan, P.E. | H63: 2024-08-27
A64: E | B64: 29000 | C64: ksi
A65: Fy | B65: =+C7 -> 50 | C65: ksi
A66: π | B66: 3.14159
A67: ɸb | B67: 0.9
A68: ɸc | B68: 0.9
A69: ɸv | B69: 0.9
A70: ɸt | B70: 0.9
A71: ɸtu | B71: 0.75
A72: ɸtor | B72: 0.9

Sheet HSS_Section_Properties
C1: HSS Sections - Rectangular and Square - LRFD | I1: =+HSS_Member!I1 -> Ver. 2.0
E2: AISC 360-22
A3: =+HSS_Member!A3 -> 8x8x1/2 section | E3: =+HSS_Member!E3 -> Test section | I3: =TODAY() -> 2025-03-25
A5: HSS Properties | B5: ASTM | D5: HSS type: | F5: Depth | G5: Width
A6: =+Member -> 8x8x0.500 | B6: =+HSS_Member!B6 -> HSS 500, Gr. C | D6: =IF(F6=G6, "Square", "Rectangular") -> Square | F6: =LEFT(I22,SEARCH("x",I22)-1) -> 8 | G6: =LEFT(J22,SEARCH("x",J22)-1) -> 8 | H6: in
A8: ="HSS "&$A$6 & " section properties" -> HSS 8x8x0.500 section properties
A9: Area | B9: Depth | C9: Width | D9: h | E9: b | F9: t | G9: h/t | H9: b/t | I9: J | J9: C
A10: in^2 | B10: in | C10: in | D10: in | E10: in | F10: in | I10: in^4 | J10: in^6
A11: =INDEX(hss500_area,MATCH($A$6,hss500_hss,0)) -> 13.5 | B11: =INDEX(hss500_depth,MATCH($A$6, hss500_hss,0)) -> 8 | C11: =INDEX(hss500_width,MATCH($A$6, hss500_hss,0)) -> 8 | D11: =_xlfn.SINGLE(INDEX(hss500_h,MATCH($A$6, hss500_hss,0))) -> 6.6 | E11: =_xlfn.SINGLE(INDEX(hss500_b,MATCH($A$6, hss500_hss,0))) -> 6.6 | F11: =_xlfn.SINGLE(INDEX(hss500_tdes,MATCH($A$6, hss500_hss,0))) -> 0.465 | G11: =INDEX(hss500_h_t,MATCH($A$6, hss500_hss,0)) -> 14.2 | H11: =INDEX(hss500_b_t,MATCH($A$6, hss500_hss,0)) -> 14.2 | I11: =_xlfn.SINGLE(INDEX(hss500_j,MATCH($A$6, hss500_hss,0))) -> 204 | J11: =_xlfn.SINGLE(INDEX(hss500_c,MATCH($A$6, hss500_hss,0))) -> 52.4
A13: Ix | B13: Sx | C13: rx | D13: Zx | E13: Iy | F13: Sy | G13: ry | H13: Zy
A14: in^4 | B14: in^3 | C14: in | D14: in^3 | E14: in^4 | F14: in^3 | G14: in | H14: in^3
A15: =_xlfn.SINGLE(INDEX(hss500_ix,MATCH($A$6, hss500_hss,0))) -> 125 | B15: =_xlfn.SINGLE(INDEX(hss500_sx,MATCH($A$6, hss500_hss,0))) -> 31.2 | C15: =_xlfn.SINGLE(INDEX(hss500_rx,MATCH($A$6, hss500_hss,0))) -> 3.04 | D15: =_xlfn.SINGLE(INDEX(hss500_zx,MATCH($A$6, hss500_hss,0))) -> 37.5 | E15: =_xlfn.SINGLE(INDEX(hss500_iy,MATCH($A$6, hss500_hss,0))) -> 125 | F15: =_xlfn.SINGLE(INDEX(hss500_sy,MATCH($A$6, hss500_hss,0))) -> 31.2 | G15: =_xlfn.SINGLE(INDEX(hss500_ry,MATCH($A$6, hss500_hss,0))) -> 3.04 | H15: =_xlfn.SINGLE(INDEX(hss500_zy,MATCH($A$6, hss500_hss,0))) -> 37.5
A17: Lp | B17: Lr | C17: Weight
A18: ft | B18: ft | C18: lbs/ft | J18: sqrt(E/Fy)
A19: =0.13*E*ry*((SQRT(j*area))/(HSS_Bending_Calculations!C22*12))/12 -> 26.73094939 | B19: =((SQRT(j*area)/(0.7*Fy*Sx))*2*E*ry)/12 -> 706.1218668 | C19: =_xlfn.SINGLE(INDEX(hss500_weight,MATCH($A$6,hss500_hss,0))) -> 48.85 | J19: =SQRT(E/Fy) -> 24.08318916
A20: Eq. F7-10 | B20: Eq. F7-11
A22: Uniform compression: | H22: Strip HS=> | I22: =RIGHT("HSS"&$A$6,LEN("HSS"&$A$6)-3) -> 8x8x0.500 | J22: =RIGHT(I22,LEN(I22)-SEARCH("x",I22)) -> 8x0.500
B23: Square sections:
B24: b/t | C24: =b_t -> 14.2
B25: λr = 1.40*sqrt(E/Fy) | C25: =1.4*sqrtefy -> 33.71646482
B26: Section is: | C26: =IF(C24<=C25,"Nonslender","Slender") -> Nonslender
B28: Rectangular sections, narrow wall: | F28: Rectangular sections, wide wall:
B29: Uniform compression: | F29: Uniform compression:
B30: λ; b/t | C30: =+b_t -> 14.2 | F30: λ; b/t | G30: =+h_t -> 14.2
B31: λr = 1.40*sqrt(E/Fy) | C31: =1.4*sqrtefy -> 33.71646482 | F31: λr = 1.40*sqrt(E/Fy) | G31: =1.4*sqrtefy -> 33.71646482 | I31: Section is:
B32: Section is: | C32: =IF(C30<=C31,"Nonslender","Slender") -> Nonslender | F32: Section is: | G32: =IF(G30<=G31,"Nonslender","Slender") -> Nonslender | I32: =IF(OR(C32="Slender",G32="Slender"),"Slender","Nonslender") -> Nonslender
A36: Flexure:
B37: Flanges, bending about X-axis: | F37: Flanges, bending about Y-axis:
B38: Square & Rectangular sections: | F38: Rectangular sections:
B39: λ; b/t | C39: =+b_t -> 14.2 | F39: λ; h/t | G39: =+h_t -> 14.2
B40: λp = 1.12*sqrt(E/Fy) | C40: =1.12*sqrtefy -> 26.97317186 | F40: λp = 1.12*sqrt(E/Fy) | G40: =1.12*sqrtefy -> 26.97317186
B41: λr = 1.40*sqrt(E/Fy) | C41: =1.4*sqrtefy -> 33.71646482 | F41: λr = 1.40*sqrt(E/Fy) | G41: =1.4*sqrtefy -> 33.71646482
B42: Flange is: | C42: =IF(C39<=C40,"Compact",IF(C39<=C41,"Noncompact","Slender")) -> Compact | F42: Flange is: | G42: =IF(G39<=G40,"Compact",IF(G39<G41,"Noncompact","Slender")) -> Compact
C44: be = 1.92*t*sqrt(E/Fy)*[1-0.38/(b/t)*sqrt(E/Fy)] <=b | I44: F7-4
A45: be | B45: =IF(1.92*t*sqrtefy*(1-(0.38/C39)*sqrtefy)<0,b,(1.92*t*sqrtefy*(1-(0.38/C39)*sqrtefy))) -> 7.644209308 | C45: in | E45: be | F45: =1.92*t*sqrtefy*(1-(0.38/G39)*sqrtefy) -> 7.644209308
A46: Ix | B46: =+Ix -> 125 | C46: in^4
A47: minus area | B47: =+(b-B45)*t -> -0.4855573282 | C47: in^2
A48: d | B48: =+Depth/2-t/2 -> 3.7675 | C48: in
A49: minus I | B49: =IF(B47<0,0,-B47*B48^2) -> 0 | C49: in^3
A50: Ix_eff | B50: =+B46+B49 -> 125 | C50: in
B52: Webs, bending about X-axis: | F52: Webs, bending about Y-axis:
B53: Square & Rectangular sections: | F53: Rectangular sections:
B54: λw | C54: =+h_t -> 14.2 | F54: λw | G54: =+b_t -> 14.2
B55: λpw = 1.42*sqrt(E/Fy) | C55: =2.42*$J$19 -> 58.28131776 | F55: λpw = 1.42*sqrt(E/Fy) | G55: =2.42*$J$19 -> 58.28131776
B56: λrw = 5.70*sqrt(E/Fy) | C56: =5.7*$J$19 -> 137.2741782 | F56: λrw = 5.70*sqrt(E/Fy) | G56: =5.7*$J$19 -> 137.2741782 | J56: For bending, section is:
B57: Web is: | C57: =IF(C54<=C55,"Compact",IF(C54<=C56,"Noncompact","Slender")) -> Compact | F57: Web is: | G57: =IF(G54<=G55,"Compact",IF(G54<=G56,"Noncompact","Slender")) -> Compact | J57: =IF(OR(C57="Slender",G57="Slender"),"Slender",IF(OR(C57="Noncompact",G57="Noncompact"),"Noncompact","Compact")) -> Compact
D59: Y-axis | E59: b
E61: h
F62: X -axis
B67: X - axis bending | F67: Y - axis bending
B68: be | C68: =+HSS_Section_Properties!B45 -> 7.644209308 | D68: in | F68: be | G68: =+HSS_Section_Properties!F45 -> 7.644209308 | H68: in
B69: b | C69: =b -> 6.6 | D69: in | F69: h | G69: =h -> 6.6 | H69: in
B70: b Use==> | C70: =MIN(C68,C69) -> 6.6 | D70: in | F70: h Use==> | G70: =MIN(G68,G69) -> 6.6 | H70: in
B72: Bending about X-Axis | D72: Fillet r | E72: =+(F6-h)/2 -> 0.7 | F72: in | G72: =+(G6-b)/2 -> 0.7
C73: Length | D73: t | E73: Area | F73: d | G73: Area*d | H73: Delta | I73: A*Delta^2
B74: Top (Comp) | C74: =+C70 -> 6.6 | D74: =t -> 0.465 | E74: =+C74*D74 -> 3.069 | F74: =+F6-t/2 -> 7.7675 | G74: =+F74*E74 -> 23.8384575 | H74: =$G$81-F74 -> -3.7675 | I74: =+E74*H74^2 -> 43.56155863
B75: Left (Web) | C75: =+F6-t-2*rad -> 6.135 | D75: 0.465 | E75: 2.852775 | F75: =+F6/2 -> 4 | G75: 11.4111 | H75: 0 | I75: 0
B76: Right (Web) | C76: =+C75 -> 6.135 | D76: 0.465 | E76: 2.852775 | F76: =+F75 -> 4 | G76: 11.4111 | H76: 0 | I76: 0
B77: Bottom (Ten) | C77: =+C69 -> 6.6 | D77: 0.465 | E77: 3.069 | F77: =+D77/2 -> 0.2325 | G77: 0.7135425 | H77: 3.7675 | I77: 43.56155863
B78: Top fillets | C78: =2*pi*fillet_r/4*2 -> 2.199113 | D78: 0.465 | E78: 1.022587545 | F78: =+F6-C114-t/2 -> 7.218964596 | G78: 7.382023284 | H78: -3.218964596 | I78: 10.59577918
B79: Bottom fillets | C79: =2*pi*fillet_r/4*2 -> 2.199113 | D79: 0.465 | E79: 1.022587545 | F79: =+C114+t/2 -> 0.781035404 | G79: 0.7986770764 | H79: 3.218964596 | I79: 10.59577918
E80: =SUM(E74:E79) -> 13.88872509 | F80: =+F6 -> 8 | G80: =SUM(G74:G79) -> 55.55490036 | I80: =SUM(I74:I79) -> 108.3146756 | J80: in^4
F81: NA | G81: =+G80/E80 -> 4 | H81: Web | I81: =2*D75*C75^3/12 -> 17.89556455 | J81: in^4
B82: S_top = Se | C82: =+I82/G81 -> 31.55256005 | D82: in^3 | F82: dist to bottom | G82: =+F80-G81 -> 4 | H82: Ix | I82: =+I80+I81 -> 126.2102402 | J82: in^4
B83: S_bot | C83: =I82/G82 -> 31.55256005 | D83: in^3 | H83: Table Ix | I83: =Ix -> 125 | J83: in^4
H84: % | I84: =+I82/I83 -> 1.009681921
B87: Bending about Y-axis
C88: Length | D88: t | E88: Area | F88: d | G88: Area*d | H88: Delta | I88: A*Delta^2
B89: Left (Ten) | C89: =+G69 -> 6.6 | D89: =t -> 0.465 | E89: =+C89*D89 -> 3.069 | F89: =+t/2 -> 0.2325 | G89: =+F89*E89 -> 0.7135425 | H89: =+$G$96-F89 -> 3.7675 | I89: =+E89*H89^2 -> 43.56155863
B90: Top (Web) | C90: =+G6-t-2*rad -> 6.135 | D90: =t -> 0.465 | E90: 2.852775 | F90: =+G6/2 -> 4 | G90: 11.4111 | H90: 0 | I90: 0
B91: Bottom (Web) | C91: =+C90 -> 6.135 | D91: =t -> 0.465 | E91: 2.852775 | F91: =+G6/2 -> 4 | G91: 11.4111 | H91: 0 | I91: 0
B92: Right (Comp) | C92: =+G70 -> 6.6 | D92: =t -> 0.465 | E92: 3.069 | F92: =+G6-t/2 -> 7.7675 | G92: 23.8384575 | H92: -3.7675 | I92: 43.56155863
B93: Left fillets | C93: =+C78 -> 2.199113 | D93: =+t -> 0.465 | E93: 1.022587545 | F93: =t/2+C114 -> 0.781035404 | G93: 0.7986770764 | H93: 3.218964596 | I93: 10.59577918
B94: Right fillets | C94: =+C93 -> 2.199113 | D94: =+t -> 0.465 | E94: 1.022587545 | F94: =G6-t/2-C114 -> 7.218964596 | G94: 7.382023284 | H94: -3.218964596 | I94: 10.59577918
E95: =SUM(E89:E94) -> 13.88872509 | F95: =+G6 -> 8 | G95: =SUM(G89:G94) -> 55.55490036 | I95: =SUM(I89:I94) -> 108.3146756 | J95: in^4
F96: NA | G96: =+G95/E95 -> 4 | H96: Web | I96: =2*D90*C90^3/12 -> 17.89556455 | J96: in^4
B97: S_left = Se | C97: =+I97/G96 -> 31.55256005 | D97: in^3 | F97: dist to left | G97: =+F95-G96 -> 4 | H97: Iy | I97: =+I95+I96 -> 126.2102402 | J97: in^4
B98: S_right | C98: =I97/G97 -> 31.55256005 | D98: in^3 | H98: Table Iy | I98: =+E15 -> 125 | J98: in^4
H99: % | I99: =+I97/I98 -> 1.009681921
B101: C.G. of fillet
B102: rad | C102: =fillet_r -> 0.7
B103: t | C103: =+t -> 0.465
B104: sqrt(2) | C104: =SQRT(2) -> 1.414213562
B105: (r+t)^3 | C105: =+(C102+C103)^3 -> 1.581167125
B106: r^3 | C106: =C102^3 -> 0.343
B107: 3pi | C107: =3*pi -> 9.42477
B108: (r+t)^2 | C108: =+(C102+C103)^2 -> 1.357225
B109: r^2 | C109: =+C102^2 -> 0.49
B110: num | C110: =C104*(C105-C106) -> 1.751032741
B111: den | C111: =+C107*(C108-C109) -> 8.173396163
B112: CG | C112: =+C110/C111 -> 0.2142356379
B113: 0.707*cg | C113: =0.707*C112 -> 0.151464596
B114: r-0.707*cg | C114: =fillet_r-C113 -> 0.548535404

Sheet HSS_Axial_Calculations
C1: HSS Sections - Rectangular and Square - LRFD | I1: =+HSS_Member!I1 -> Ver. 2.0
E2: AISC 360-22
A3: =+HSS_Member!A3 -> 8x8x1/2 section | E3: =+HSS_Member!E3 -> Test section | I3: =TODAY() -> 2025-03-25
A5: HSS Axial | B5: ASTM
A6: =+Member -> 8x8x0.500 | B6: =+HSS_Member!B6 -> HSS 500, Gr. C
C7: Pn | D7: =IF(B10<> "Slender",D23,D58) -> 427.9450775
C8: ɸcPn | D8: =phi_c*D7 -> 385.1505698 | E8: kips
A10: Section is: | B10: =+HSS_Section_Properties!I32 -> Nonslender
A11: HSS Section: | B11: Elements are stiffened
C13: Max Lc/r | D13: =MAX(HSS_Member!B20,HSS_Member!C20) -> 78.94736842
C14: sqrt(E/Fy) | D14: =+sqrtefy -> 24.08318916
C15: Fe = π^2*E/(Lc/r)^2 | D15: =pi^2*E/D13^2 -> 45.92209508 | E15: ksi | H15: E3-4
A17: E3 - Flexural buckling of members without slender elements
C18: Pn = FnAg | H18: E3-1
C19: 4.71*sqrt(E/Fy) | D19: =4.71*D14 -> 113.4318209
C20: Fn = [0.658^(Fy/Fe)]Fy | D20: =(0.658^(Fy/D15))*Fy -> 31.69963537 | E20: ksi | H20: E3-2
C21: Fn = 0.877Fe | D21: =0.877*D15 -> 40.27367738 | E21: ksi | H21: E3-3
C22: Fn use ==> | D22: =IF(D13<=D19,D20,D21) -> 31.69963537 | E22: ksi
C23: Pn = FnAg | D23: =D22*area -> 427.9450775 | E23: kips
A25: E4 - Torsional and Flexural-torsional buckling of single angles and members without slender elements
C26: Pn = FnAg | H26: E4-1
A27: (a) For doubly symmetric members twisting about the shear center
C28: (π^2*E*Cw)/(Lcz)^2 | D28: =(pi^2*E*Cw)/(lcz*12)^2 -> 260.3789151
C29: GJ | D29: =+G*j -> 2305200
C30: Ix + Iy | D30: =+Ix + Iy -> 250 | E30: in^4
C31: Fe | D31: =(D28+D29)*(1/D30)/1000 -> 9.221841516 | E31: ksi | H31: E4-2
A33: (b) For singly symmetric members twisting about the shear center where y is the axis of symmetry
C34: H = 1-(xo^2 + yo^2)/ro_bar^2 | D34: 1 | F34: xo, yo = 0
C35: ro_bar = xo^2 + yo^2 +(Ix + Iy)/Ag | D35: =+(Ix + Iy)/area -> 18.51851852 | E35: in^2
C36: Fex = (π^2*E)/(Lcx/rx)^2 | D36: =(pi^2*E)/((lcx*12)/rx)^2 -> 45.92209508 | E36: ksi | H36: E4-5
C37: Fey = (π^2*E)/(Lcy/ry)^2 | D37: =(pi^2*E)/((lcy*12)/ry)^2 -> 45.92209508 | E37: ksi | H37: E4-6
C38: (π^2*E*Cw)/(Lcz^2) + GJ) | D38: =(pi^2*E*Cw)/(12*lcz)^2 + G*j -> 2305460.379
C39: 1/(Ag*ro_bar^2) | D39: =1/(area*ro_bar^2) -> 0.000216
C40: Fe= (π^2*E*Cw)/(Lcz^2) + GJ)(1/(Ag*ro_bar^2) | D40: =+D38*D39/1000 -> 0.4979794418 | E40: ksi
A42: E7. Members with Slender Elements
C43: Pn = FnAe | H43: E7-1
C44: λr | D44: =+HSS_Section_Properties!$C$25 -> 33.71646482
C45: λr*sqrt(Fy/Fn) | D45: =lambda_r*SQRT(Fy/Fn) -> 42.34478199
C47: Effective area - narrow wall | G47: Effective area - wide wall
C48: λ, b/t | D48: =IF(hss500_type="Square",HSS_Section_Properties!$C$24,HSS_Section_Properties!$C$30) -> 14.2 | F48: =IF(hss500_type="Square",HSS_Section_Properties!$C$24,HSS_Section_Properties!$G$30) -> 14.2
C49: λ <= λr*sqrt(Fy/Fn) | D49: =IF(lambda<$D$45,"True","False") -> True | F49: =IF(lambda_w<$D$45,"True","False") -> True | H49: E7-2
C50: Fel = [c2*( λr/λ)]^2*Fy | D50: =(t_c2*lambda_r/lambda)^2*Fy -> 536.8284864 | E50: ksi | F50: =(t_c2*lambda_r/lambda_w)^2*Fy -> 536.8284864 | G50: ksi | H50: E7-5
C51: sqrt(Fel/Fn) | D51: =SQRT(Fel_n/Fn) -> 4.115197123 | F51: =SQRT(Fel_w/Fn) -> 4.115197123
C52: b (narrow), h (wide) | D52: =b -> 6.6 | E52: in | F52: =+h -> 6.6 | G52: in
C53: 1 -c1*sqrt(Fel/Fn) | D53: =1 -t_c1*D51 -> 0.1769605754 | F53: =1 -t_c1*F51 -> 0.1769605754
C54: be = b[1-c1*sqrt(Fel/Fn)]*sqrt(Fel/Fn) | D54: =IF((D52*D53*D51)<0,D52,(D52*D53*D51)) -> 4.806302495 | E54: in | F54: =IF((F52*F53*F51)<0,F52,(F52*F53*F51)) -> 4.806302495 | G54: in | H54: E7-3
C55: Lost length | D55: =IF(D49,0,(D52-D54)) -> 0 | E55: in | F55: =IF(F49,0,(F52-F54)) -> 0 | G55: in
C57: Aeff = Ag - t*2*Deducts | D57: =area-t*2*(D55+F55) -> 13.5 | E57: in^2 | G57: `
C58: Pn = FnAe | D58: =+Fn*D57 -> 427.9450775 | E58: kips
B60: Table E7.1 | C60: c1 | D60: c2
B61: (b) | C61: 0.2 | D61: 1.38

Sheet HSS_Bending_Calculations
C1: HSS Sections - Rectangular and Square - LRFD | I1: =+HSS_Member!I1 -> Ver. 2.0
E2: AISC 360-22
A3: =+HSS_Member!A3 -> 8x8x1/2 section | E3: =+HSS_Member!E3 -> Test section | I3: =TODAY() -> 2025-03-25
A5: HSS Bending | B5: ASTM
A6: =+Member -> 8x8x0.500 | B6: =+HSS_Member!B6 -> HSS 500, Gr. C
D7: Mnx | E7: =MIN(E13:E14,IF(HSS_Member!B5 = "Square",C77,100000)) -> 156.25 | F7: kip-ft
D8: ɸbMnx | E8: =phi_b*E7 -> 140.625 | F8: kip-ft
D9: Mny | E9: =MIN(E16:E17) -> 156.25 | F9: kip-ft
D10: ɸbMny | E10: =phi_b*E9 -> 140.625 | F10: kip-ft
A12: For X-axis bending: | D12: X-axis:
A13: Flanges: | B13: =+HSS_Section_Properties!C42 -> Compact | D13: Flange: | E13: =IF($B$13="Compact",$C$22,IF($B$13 = "Noncompact",$C$36,IF($B$13 = "Slender",$C$41))) -> 156.25 | F13: kip-ft
A14: Web: | B14: =+HSS_Section_Properties!C57 -> Compact | D14: Web: | E14: =IF(B14= "Compact","NA",C54) -> NA | F14: kip-ft
A15: For Y-axis bending: | D15: Y-axis:
A16: Flanges: | B16: =+HSS_Section_Properties!G42 -> Compact | D16: Flange: | E16: =IF(B16="Compact",F22,IF(B16 = "Noncompact",F36,IF(B16= "Slender",F41))) -> 156.25 | F16: kip-ft
A17: Web: | B17: =+HSS_Section_Properties!G57 -> Compact | D17: Web: | E17: =IF(B17="Compact", "NA",F54) -> NA | F17: kip-ft
A19: F7. Square and Rectangular HSS and Box-shaped members
B20: X - axis bending | F20: Y - axis bending
A21: 1. Yielding
B22: Mn = Mp = FyZ | C22: =Fy*Zx/12 -> 156.25 | D22: kip-ft | F22: =Fy*Zy/12 -> 156.25 | G22: kip-ft | H22: F7-1
A24: 2. Flange Local Buckling
B25: Flanges are: | C25: =+HSS_Section_Properties!C42 -> Compact | F25: =+HSS_Section_Properties!G42 -> Compact
A26: (a) For compact section, the limit state of flange local buckling does not apply.
A28: (b)For sections with noncompact flanges:
D29: Mn = Mp - (Mp - FyS)*[(λ - λpf)/(λrf-λpf)] <= Mp | H29: F7-2
B30: (Mp - FySx) | C30: =+$C$22-Fy*Sx/12 -> 26.25 | D30: kip-ft | F30: =+$F$22-Fy*Sy/12 -> 26.25 | G30: kip-ft
B31: λ | C31: =+HSS_Section_Properties!C39 -> 14.2 | F31: =+HSS_Section_Properties!G39 -> 14.2
B32: λpf | C32: =+HSS_Section_Properties!C40 -> 26.97317186 | F32: =+HSS_Section_Properties!G40 -> 26.97317186
B33: λrf | C33: =+HSS_Section_Properties!C41 -> 33.71646482 | F33: =+HSS_Section_Properties!G41 -> 33.71646482
B34: (λ - λpf)/(λrf-λpf) | C34: =+(C31-C32)/(C33-C32) -> -1.894203904 | F34: =+(F31-F32)/(F33-F32) -> -1.894203904
B35: (Mp - FyS)*[(λ - λpf)/(λrf-λpf)] | C35: =+C30*C34 -> -49.72285247 | F35: =+F30*F34 -> -49.72285247
B36: Mn | C36: =$C$22-$C$35 -> 205.9728525 | D36: kip-ft | F36: =$F$22-$F$35 -> 205.9728525 | G36: kip-ft
A38: (c) For sections with slender flanges:
B39: Mn = FySe | H39: F7-3
B40: Se | C40: =+HSS_Section_Properties!C83 -> 31.55256005 | D40: in^3 | F40: =+HSS_Section_Properties!C98 -> 31.55256005 | G40: in^3
B41: Mn | C41: =+Fy*C40/12 -> 131.4690002 | D41: kip-ft | F41: =+Fy*F40/12 -> 131.4690002 | G41: kip-ft
A43: 3. Web Local Buckling
B44: Web is: | C44: =+HSS_Section_Properties!C57 -> Compact | F44: =+HSS_Section_Properties!G57 -> Compact
A45: (a) For compact sections, the limit state of web local buckling does not apply.
A47: (b) Non-compact web
D48: Mn = Mp - (Mp - FyS)*[(λ - λpw)/(λrw-λpw)] <= Mp | H48: F7-6
B49: (Mp - FyS) | C49: =+C22-Fy*Sx/12 -> 26.25 | D49: kip-ft | F49: =+F22-Fy*Sy/12 -> 26.25 | G49: kip-ft
B50: λ | C50: =+HSS_Section_Properties!C54 -> 14.2 | F50: =+HSS_Section_Properties!G54 -> 14.2
B51: λpw | C51: =+HSS_Section_Properties!C55 -> 58.28131776 | F51: =+HSS_Section_Properties!G55 -> 58.28131776
B52: λrw | C52: =+HSS_Section_Properties!C56 -> 137.2741782 | F52: =+HSS_Section_Properties!G56 -> 137.2741782
B53: (λ - λpw)/(λrf-λpw) | C53: =+(C50-C51)/(C52-C51) -> -0.5580417967 | F53: =+(F50-F51)/(F52-F51) -> -0.5580417967
B54: Mn | C54: =+($C$22-C49*C53) -> 170.8985972 | D54: kip-ft | F54: =+($F$22-F49*F53) -> 170.8985972 | G54: kip-ft
A57: (c) Slender webs and compact or noncompact flanges
B58: User Note states that there are no HSS section with slender webs, so F7-7 cannot apply.
A60: 4. Lateral-Torsional Buckling
A61: (a) When Lb <= Lp, the limit state of lateral-torsional buckling does not apply.
A63: (b) When Lp < Lb <= Lr
D64: Mn = Cb[Mp - (Mp - 0.7FySx)((Lb - Lp)/(Lr - Lp))] <= Mp | H64: F7-8
B65: (Lb - Lp)/(Lr - Lp) | C65: =(Lb-Lp)/(Lr - Lp) -> -0.009907329076
B66: Mp - 0.7FySx | C66: =C22-0.7*Fy*Sx/12 -> 65.25 | D66: kip-ft
B67: Cb | C67: =IF(HSS_Member!H30<>0,HSS_Member!H30, HSS_Member!H31) -> 1
B68: Mn = Cb*(Mp - (Mp -0.7FySx)((Lb - Lp/(Lr - Lp)) | C68: =C67*(C22-C66*C65) -> 156.8964532 | D68: kip-ft | H68: F7-8
A70: (c) When Lb > Lr
D71: Mn = 2ECbsqrt(JArea)/(Lb/ry) =< Mp | H71: F7-9
B72: sqrt(J*Area) | C72: =SQRT(j*area) -> 52.47856705 | D72: in^3
B73: Lb/ry | C73: =12*Lb/ry -> 78.94736842
B74: sqrt(J*area)/(Lb/ry) | C74: =+C72/C73 -> 0.664728516 | D74: in^3
B75: 2ECb | C75: =2*E*C67 -> 58000 | D75: ksi
B76: Mn = 2ECbsqrt(J*Area)/(Lb/ry) =< Mp | C76: =+C75*C74 -> 38554.25393 | D76: kip-ft | H76: F7-9
B77: Mn based on Lb | C77: =IF(Lb<=Lp, "NA",IF(Lb<=Lr,C68,C76)) -> NA | D77: kip-ft

Sheet HSS_Tension,_Shear
C1: HSS Sections - Rectangular and Square - LRFD | I1: =+HSS_Member!I1 -> Ver. 2.0
E2: AISC 360-22
A3: =+HSS_Member!A3 -> 8x8x1/2 section | E3: =+HSS_Member!E3 -> Test section | I3: =TODAY() -> 2025-03-25
A5: HSS Tension, Shear | B5: ASTM
A6: =+Member -> 8x8x0.500 | B6: =+HSS_Member!B6 -> HSS 500, Gr. C
B8: Vnx | C8: =+C24 -> 184.14 | D8: kips | E8: TYn | F8: =+C30 -> 675 | G8: kips
B9: ɸvVnx | C9: =+phi_v*C8 -> 165.726 | D9: kips | E9: ɸtTYn | F9: =+phi_t*F8 -> 607.5 | G9: kips
B10: Vny | C10: =+E24 -> 184.14 | D10: kips | E10: TUn | F10: =+C34 -> 627.75 | G10: kips
B11: ɸvVny | C11: =phi_v*C10 -> 165.726 | D11: kips | E11: ɸtuTUn | F11: =phi_tu*F10 -> 470.8125 | G11: kips
A12: Shear
A13: Vn = 0.6FyAwCv2 | G13: G4-1
C14: X-axis | E14: Y-axis
B15: Aw = 2ht | C15: =2*h*t -> 6.138 | D15: in^2 | E15: =2*b*t -> 6.138 | F15: in^2
B16: kv | C16: 5 | E16: 5
B17: 1.10sqrt(kvE/Fy) | C17: =1.1*SQRT($C$16*E/Fy) -> 59.23681288 | E17: =+C17 -> 59.23681288
B18: 1.37sqrt(kvE/Fy) | C18: =1.37*SQRT($C$16*E/Fy) -> 73.77675786 | E18: =+C18 -> 73.77675786
B19: h/t | C19: =+h_t -> 14.2 | E19: =+b_t -> 14.2
B20: Cv2 = 1.0 | C20: 1 | E20: =+C20 -> 1 | G20: G2-9
B21: Cv2 = 1.10sqrt(kvE/Fy)/(h/t) | C21: =+C17/C19 -> 4.171606541 | E21: =1.1*SQRT(E16*E/Fy)/b_t -> 4.171606541 | G21: G2-10
B22: Cv2 = 1.51KvE/((h/t)^2Fy) | C22: =1.51*C16*E/((C19)^2*Fy) -> 21.71692125 | E22: =1.51*E16*E/((b_t)^2*Fy) -> 21.71692125 | G22: G2-11
B23: Cv2 | C23: =IF(C19<=C17,C20,IF(C19<=C18,C21,C22)) -> 1 | E23: =IF(E19<=E17,E20,IF(E19<=E18,E21,E22)) -> 1
B24: Vn | C24: =0.6*Fy*C15*C23 -> 184.14 | D24: kips | E24: =0.6*Fy*E15*E23 -> 184.14 | F24: kips | G24: G4-1
A27: Tension
A28: (a) Tensile yielding
A29: Pn = FyAg | G29: D2-1
B30: Pn = FyAg | C30: =+Fy*area -> 675 | D30: kips
A32: (b) Tensile rupture
A33: Pn = FuAe
B34: Pn = FuAe = Fu*0.75*Ag | C34: =+Fu*0.75*area -> 627.75 | D34: kips

Sheet HSS_Torsion_Calculations
C1: HSS Sections - Rectangular and Square - LRFD | I1: =+HSS_Member!I1 -> Ver. 2.0
E2: AISC 360-22
A3: =+HSS_Member!A3 -> 8x8x1/2 section | E3: =+HSS_Member!E3 -> Test section | I3: =TODAY() -> 2025-03-25
A5: HSS Torsion Calculations
A6: Member | B6: ASTM
A7: =+Member -> 8x8x0.500 | B7: =+HSS_Section_Properties!B6 -> HSS 500, Gr. C
C10: TORn | D10: =+D22 -> 131
C11: ɸTTORn | D11: =phi_c*D10 -> 117.9 | E11: kips
A13: 1. Round and rectangular HSS subject to torsion
B14: Tn = FcrC | G14: H3-1
C15: C | D15: =+Cw -> 52.4 | E15: in^3
C16: 2.45sqrt(E/Fy) | D16: =2.45*sqrtefy -> 59.00381344
C17: 3.07sqrt(E/Fy) | D17: =3.07*sqrtefy -> 73.93539071
C18: 0.6Fy | D18: =0.6*Fy -> 30 | E18: ksi | G18: H3-3
C19: 0.6Fy(2.45sqrt(E/Fy))/(h/t) | D19: =0.6*Fy*(2.45*sqrtefy)/h_t -> 124.6559439 | E19: ksi | G19: H3-4
C20: 0.458π^2E/(h/t)^2 | D20: =0.458*pi^2*E/(h/t)^2 -> 650.6995739 | E20: ksi | G20: H3-5
C21: Fcr | D21: =IF(h_t<=D16,D18,IF(h_t<=D17,D19,IF(h_t<=260,D20,"Error"))) -> 30 | E21: ksi
C22: Tn | D22: =+D21*D15/12 -> 131 | E22: kip-ft

Sheet HSS500_Database
A1: Type | B1: EDI_Std_Nomenclature | C1: AISC_Manual_Label | H1: 3 | N1: W | O1: A | P1: Ht | Q1: h | R1: B | S1: b | T1: tnom | U1: tdes | V1: b/tdes | W1: h/tdes | X1: Ix | Y1: Zx | Z1: Sx | AA1: rx | AB1: Iy | AC1: Zy | AD1: Sy | AE1: ry | AF1: J | AG1: C
D2: hss_hss | E2: Size | F2: Thickness | G2: Unique | H2: Member | I2: Thickness | J2: Different | K2: t start row | L2: t end row | M2: Sq/Rect | N2: weight | O2: area | P2: depth | Q2: h | R2: width | S2: b | T2: tnom | U2: tdes | V2: b_t | W2: h_t | X2: Ix | Y2: Zx | Z2: Sx | AA2: rx | AB2: Iy | AC2: Zy | AD2: Sy | AE2: ry | AF2: J | AG2: C
D3: Strip HSS | G3: sizes | J3: thicknesses | N3: lbs/ft^2 | O3: in^2 | P3: in | Q3: in | R3: in | S3: in | T3: in | U3: in | X3: in^4 | Y3: in^4 | Z3: in^3 | AA3: in | AB3: in^4 | AC3: in^4 | AD3: in^3 | AE3: in | AF3: in^4 | AG3: in^6
A4: HSS | B4: HSS34x10x1 | C4: HSS34x10x1 | D4: 34x10x1 | E4: 34x10 | F4: 1 | G4: 34x10 | H4: 22x22 | J4: 4 | K4: 4 | L4: 7 | M4: Rectangle | N4: 277.07 | O4: 76.2 | P4: 34 | Q4: 31.2 | R4: 10 | S4: 7.21 | T4: 1 | U4: 0.93 | V4: 7.75 | W4: 33.6 | X4: 9600 | Y4: 750 | Z4: 565 | AA4: 11.2 | AB4: 1340 | AC4: 307 | AD4: 268 | AE4: 4.19 | AF4: 4040 | AG4: 555
A5: HSS | B5: HSS34x10x0.875 | C5: HSS34x10x7/8 | D5: 34x10x0.875 | E5: 34x10 | F5: 0.875 | G5: 30x10 | H5: 20x20 | J5: 5 | K5: 8 | L5: 12 | M5: Rectangle | N5: 244.88 | O5: 67.3 | P5: 34 | Q5: 31.6 | R5: 10 | S5: 7.56 | T5: 0.875 | U5: 0.814 | V5: 9.29 | W5: 38.8 | X5: 8600 | Y5: 668 | Z5: 506 | AA5: 11.3 | AB5: 1210 | AC5: 274 | AD5: 242 | AE5: 4.24 | AF5: 3630 | AG5: 494
A6: HSS | B6: HSS34x10x0.750 | C6: HSS34x10x3/4 | D6: 34x10x0.750 | E6: 34x10 | F6: 0.750 | G6: 24x20 | H6: 18x18 | J6: 5 | K6: 13 | L6: 17 | M6: Rectangle | N6: 212 | O6: 58.2 | P6: 34 | Q6: 31.9 | R6: 10 | S6: 7.91 | T6: 0.75 | U6: 0.698 | V6: 11.3 | W6: 45.7 | X6: 7550 | Y6: 582 | Z6: 444 | AA6: 11.4 | AB6: 1070 | AC6: 240 | AD6: 215 | AE6: 4.29 | AF6: 3190 | AG6: 431
A7: HSS | B7: HSS34x10x0.625 | C7: HSS34x10x5/8 | D7: 34x10x0.625 | E7: 34x10 | F7: 0.625 | G7: 24x18 | H7: 16x16 | J7: 5 | K7: 18 | L7: 22 | M7: Rectangle | N7: 178.41 | O7: 48.9 | P7: 34 | Q7: 32.3 | R7: 10 | S7: 8.26 | T7: 0.625 | U7: 0.581 | V7: 14.2 | W7: 55.5 | X7: 6430 | Y7: 493 | Z7: 378 | AA7: 11.5 | AB7: 924 | AC7: 205 | AD7: 185 | AE7: 4.35 | AF7: 2720 | AG7: 365
A8: HSS | B8: HSS30x10x1 | C8: HSS30x10x1 | D8: 30x10x1 | E8: 30x10 | F8: 1 | G8: 24x16 | H8: 14x14 | J8: 5 | K8: 23 | L8: 27 | M8: Rectangle | N8: 249.85 | O8: 68.7 | P8: 30 | Q8: 27.2 | R8: 10 | S8: 7.21 | T8: 1 | U8: 0.93 | V8: 7.75 | W8: 29.3 | X8: 6900 | Y8: 606 | Z8: 460 | AA8: 10 | AB8: 1180 | AC8: 273 | AD8: 237 | AE8: 4.15 | AF8: 3460 | AG8: 487
A9: HSS | B9: HSS30x10x0.875 | C9: HSS30x10x7/8 | D9: 30x10x0.875 | E9: 30x10 | F9: 0.875 | G9: 24x14 | H9: 12x12 | J9: 6 | K9: 28 | L9: 33 | M9: Rectangle | N9: 221.06 | O9: 60.8 | P9: 30 | Q9: 27.6 | R9: 10 | S9: 7.56 | T9: 0.875 | U9: 0.814 | V9: 9.29 | W9: 33.9 | X9: 6190 | Y9: 540 | Z9: 413 | AA9: 10.1 | AB9: 1070 | AC9: 245 | AD9: 215 | AE9: 4.2 | AF9: 3110 | AG9: 434
A10: HSS | B10: HSS30x10x0.750 | C10: HSS30x10x3/4 | D10: 30x10x0.750 | E10: 30x10 | F10: 0.750 | G10: 24x12 | H10: 10x10 | J10: 8 | K10: 34 | L10: 41 | M10: Rectangle | N10: 191.58 | O10: 52.6 | P10: 30 | Q10: 27.9 | R10: 10 | S10: 7.91 | T10: 0.75 | U10: 0.698 | V10: 11.3 | W10: 40 | X10: 5440 | Y10: 471 | Z10: 363 | AA10: 10.2 | AB10: 952 | AC10: 215 | AD10: 190 | AE10: 4.25 | AF10: 2730 | AG10: 379
A11: HSS | B11: HSS30x10x0.625 | C11: HSS30x10x5/8 | D11: 30x10x0.625 | E11: 30x10 | F11: 0.625 | G11: 24x8 | H11: 9x9 | J11: 4 | K11: 42 | L11: 45 | M11: Rectangle | N11: 161.4 | O11: 44.3 | P11: 30 | Q11: 28.3 | R11: 10 | S11: 8.26 | T11: 0.625 | U11: 0.581 | V11: 14.2 | W11: 48.6 | X11: 4640 | Y11: 400 | Z11: 310 | AA11: 10.2 | AB11: 820 | AC11: 183 | AD11: 164 | AE11: 4.31 | AF11: 2330 | AG11: 321
A12: HSS | B12: HSS30x10x0.500 | C12: HSS30x10x1/2 | D12: 30x10x0.500 | E12: 30x10 | F12: 0.500 | G12: 22x20 | H12: 8x8 | J12: 5 | K12: 46 | L12: 50 | M12: Rectangle | N12: 130.52 | O12: 35.8 | P12: 30 | Q12: 28.6 | R12: 10 | S12: 8.61 | T12: 0.5 | U12: 0.465 | V12: 18.5 | W12: 61.5 | X12: 3810 | Y12: 326 | Z12: 254 | AA12: 10.3 | AB12: 679 | AC12: 149 | AD12: 136 | AE12: 4.36 | AF12: 1910 | AG12: 262
A13: HSS | B13: HSS24x20x0.750 | C13: HSS24x20x3/4 | D13: 24x20x0.750 | E13: 24x20 | F13: 0.750 | G13: 22x18 | H13: 7x7 | J13: 5 | K13: 51 | L13: 55 | M13: Rectangle | N13: 212 | O13: 58.2 | P13: 24 | Q13: 21.9 | R13: 20 | S13: 17.9 | T13: 0.75 | U13: 0.698 | V13: 25.7 | W13: 31.4 | X13: 4960 | Y13: 489 | Z13: 413 | AA13: 9.23 | AB13: 3750 | AC13: 432 | AD13: 375 | AE13: 8.02 | AF13: 6740 | AG13: 627
A14: HSS | B14: HSS24x20x0.625 | C14: HSS24x20x5/8 | D14: 24x20x0.625 | E14: 24x20 | F14: 0.625 | G14: 22x16 | H14: 6x6 | J14: 6 | K14: 56 | L14: 61 | M14: Rectangle | N14: 178.41 | O14: 48.9 | P14: 24 | Q14: 22.3 | R14: 20 | S14: 18.3 | T14: 0.625 | U14: 0.581 | V14: 31.4 | W14: 38.3 | X14: 4220 | Y14: 413 | Z14: 351 | AA14: 9.29 | AB14: 3190 | AC14: 365 | AD14: 319 | AE14: 8.08 | AF14: 5690 | AG14: 528
A15: HSS | B15: HSS24x20x0.500 | C15: HSS24x20x1/2 | D15: 24x20x0.500 | E15: 24x20 | F15: 0.500 | G15: 22x14 | H15: 5.5x5.5 | J15: 6 | K15: 62 | L15: 67 | M15: Rectangle | N15: 144.13 | O15: 39.5 | P15: 24 | Q15: 22.6 | R15: 20 | S15: 18.6 | T15: 0.5 | U15: 0.465 | V15: 40 | W15: 48.6 | X15: 3450 | Y15: 336 | Z15: 287 | AA15: 9.34 | AB15: 2610 | AC15: 297 | AD15: 261 | AE15: 8.13 | AF15: 4620 | AG15: 427
A16: HSS | B16: HSS24x20x0.375 | C16: HSS24x20x3/8 | D16: 24x20x0.375 | E16: 24x20 | F16: 0.375 | G16: 22x10 | H16: 5x5 | J16: 5 | K16: 68 | L16: 72 | M16: Rectangle | N16: 109.15 | O16: 29.9 | P16: 24 | Q16: 23 | R16: 20 | S16: 19.0 | T16: 0.375 | U16: 0.349 | V16: 54.3 | W16: 65.8 | X16: 2640 | Y16: 256 | Z16: 220 | AA16: 9.4 | AB16: 2000 | AC16: 226 | AD16: 200 | AE16: 8.19 | AF16: 3510 | AG16: 324
A17: HSS | B17: HSS24x20x0.313 | C17: HSS24x20x5/16 | D17: 24x20x0.313 | E17: 24x20 | F17: 0.313 | G17: 20x16 | H17: 4.5x4.5 | J17: 6 | K17: 73 | L17: 78 | M17: Rectangle | N17: 91.39 | O17: 25.1 | P17: 24 | Q17: 23.1 | R17: 20 | S17: 19.1 | T17: 0.3125 | U17: 0.291 | V17: 65.7 | W17: 79.5 | X17: 2230 | Y17: 215 | Z17: 186 | AA17: 9.43 | AB17: 1690 | AC17: 190 | AD17: 169 | AE17: 8.21 | AF17: 2950 | AG17: 272
A18: HSS | B18: HSS24x18x0.750 | C18: HSS24x18x3/4 | D18: 24x18x0.750 | E18: 24x18 | F18: 0.750 | G18: 20x12 | H18: 4x4 | J18: 7 | K18: 79 | L18: 85 | M18: Rectangle | N18: 201.79 | O18: 55.4 | P18: 24 | Q18: 21.9 | R18: 18 | S18: 15.9 | T18: 0.75 | U18: 0.698 | V18: 22.8 | W18: 31.4 | X18: 4580 | Y18: 456 | Z18: 382 | AA18: 9.09 | AB18: 2940 | AC18: 375 | AD18: 327 | AE18: 7.29 | AF18: 5690 | AG18: 562
A19: HSS | B19: HSS24x18x0.625 | C19: HSS24x18x5/8 | D19: 24x18x0.625 | E19: 24x18 | F19: 0.625 | G19: 20x8 | H19: 3.5x3.5 | J19: 7 | K19: 86 | L19: 92 | M19: Rectangle | N19: 169.91 | O19: 46.6 | P19: 24 | Q19: 22.3 | R19: 18 | S19: 16.3 | T19: 0.625 | U19: 0.581 | V19: 28 | W19: 38.3 | X19: 3900 | Y19: 386 | Z19: 325 | AA19: 9.15 | AB19: 2510 | AC19: 318 | AD19: 279 | AE19: 7.34 | AF19: 4810 | AG19: 473
A20: HSS | B20: HSS24x18x0.500 | C20: HSS24x18x1/2 | D20: 24x18x0.500 | E20: 24x18 | F20: 0.500 | G20: 20x6 | H20: 3x3 | J20: 5 | K20: 93 | L20: 97 | M20: Rectangle | N20: 137.32 | O20: 37.6 | P20: 24 | Q20: 22.6 | R20: 18 | S20: 16.6 | T20: 0.5 | U20: 0.465 | V20: 35.7 | W20: 48.6 | X20: 3190 | Y20: 314 | Z20: 266 | AA20: 9.21 | AB20: 2060 | AC20: 258 | AD20: 229 | AE20: 7.39 | AF20: 3910 | AG20: 383
A21: HSS | B21: HSS24x18x0.375 | C21: HSS24x18x3/8 | D21: 24x18x0.375 | E21: 24x18 | F21: 0.375 | G21: 20x4 | H21: 2.5x2.5 | J21: 4 | K21: 98 | L21: 101 | M21: Rectangle | N21: 104.04 | O21: 28.5 | P21: 24 | Q21: 23 | R21: 18 | S21: 17.0 | T21: 0.375 | U21: 0.349 | V21: 48.6 | W21: 65.8 | X21: 2450 | Y21: 240 | Z21: 204 | AA21: 9.27 | AB21: 1580 | AC21: 197 | AD21: 176 | AE21: 7.45 | AF21: 2970 | AG21: 291
A22: HSS | B22: HSS24x18x0.313 | C22: HSS24x18x5/16 | D22: 24x18x0.313 | E22: 24x18 | F22: 0.313 | G22: 18x10 | H22: 2.25x2.25 | J22: 5 | K22: 102 | L22: 106 | M22: Rectangle | N22: 87.14 | O22: 23.9 | P22: 24 | Q22: 23.1 | R22: 18 | S22: 17.1 | T22: 0.3125 | U22: 0.291 | V22: 58.9 | W22: 79.5 | X22: 2060 | Y22: 201 | Z22: 172 | AA22: 9.3 | AB22: 1330 | AC22: 166 | AD22: 148 | AE22: 7.47 | AF22: 2500 | AG22: 244
A23: HSS | B23: HSS24x16x0.750 | C23: HSS24x16x3/4 | D23: 24x16x0.750 | E23: 24x16 | F23: 0.750 | G23: 18x8 | H23: 2x2 | J23: 5 | K23: 107 | L23: 111 | M23: Rectangle | N23: 191.58 | O23: 52.6 | P23: 24 | Q23: 21.9 | R23: 16 | S23: 13.9 | T23: 0.75 | U23: 0.698 | V23: 19.9 | W23: 31.4 | X23: 4200 | Y23: 424 | Z23: 350 | AA23: 8.93 | AB23: 2250 | AC23: 321 | AD23: 281 | AE23: 6.53 | AF23: 4680 | AG23: 496
A24: HSS | B24: HSS24x16x0.625 | C24: HSS24x16x5/8 | D24: 24x16x0.625 | E24: 24x16 | F24: 0.625 | G24: 18x6 | H24: 1.5x1.5 | J24: 6 | K24: 112 | L24: 117 | M24: Rectangle | N24: 161.4 | O24: 44.3 | P24: 24 | Q24: 22.3 | R24: 16 | S24: 14.3 | T24: 0.625 | U24: 0.581 | V24: 24.5 | W24: 38.3 | X24: 3580 | Y24: 359 | Z24: 298 | AA24: 8.99 | AB24: 1920 | AC24: 272 | AD24: 240 | AE24: 6.59 | AF24: 3960 | AG24: 419
A25: HSS | B25: HSS24x16x0.500 | C25: HSS24x16x1/2 | D25: 24x16x0.500 | E25: 24x16 | F25: 0.500 | G25: 16x12 | J25: 7 | K25: 118 | L25: 124 | M25: Rectangle | N25: 130.52 | O25: 35.8 | P25: 24 | Q25: 22.6 | R25: 16 | S25: 14.6 | T25: 0.5 | U25: 0.465 | V25: 31.4 | W25: 48.6 | X25: 2930 | Y25: 292 | Z25: 244 | AA25: 9.05 | AB25: 1580 | AC25: 222 | AD25: 197 | AE25: 6.64 | AF25: 3220 | AG25: 340
A26: HSS | B26: HSS24x16x0.375 | C26: HSS24x16x3/8 | D26: 24x16x0.375 | E26: 24x16 | F26: 0.375 | G26: 16x10 | J26: 5 | K26: 125 | L26: 129 | M26: Rectangle | N26: 98.94 | O26: 27.1 | P26: 24 | Q26: 23 | R26: 16 | S26: 15.0 | T26: 0.375 | U26: 0.349 | V26: 42.8 | W26: 65.8 | X26: 2250 | Y26: 223 | Z26: 188 | AA26: 9.12 | AB26: 1210 | AC26: 169 | AD26: 152 | AE26: 6.69 | AF26: 2460 | AG26: 258
A27: HSS | B27: HSS24x16x0.313 | C27: HSS24x16x5/16 | D27: 24x16x0.313 | E27: 24x16 | F27: 0.313 | G27: 16x8 | J27: 7 | K27: 130 | L27: 136 | M27: Rectangle | N27: 82.88 | O27: 22.7 | P27: 24 | Q27: 23.1 | R27: 16 | S27: 15.1 | T27: 0.3125 | U27: 0.291 | V27: 52 | W27: 79.5 | X27: 1900 | Y27: 188 | Z27: 158 | AA27: 9.15 | AB27: 1030 | AC27: 143 | AD27: 128 | AE27: 6.72 | AF27: 2070 | AG27: 217
A28: HSS | B28: HSS24x14x0.750 | C28: HSS24x14x3/4 | D28: 24x14x0.750 | E28: 24x14 | F28: 0.750 | G28: 16x6 | J28: 6 | K28: 137 | L28: 142 | M28: Rectangle | N28: 181.37 | O28: 49.8 | P28: 24 | Q28: 21.9 | R28: 14 | S28: 11.9 | T28: 0.75 | U28: 0.698 | V28: 17.1 | W28: 31.4 | X28: 3820 | Y28: 391 | Z28: 318 | AA28: 8.76 | AB28: 1660 | AC28: 270 | AD28: 237 | AE28: 5.77 | AF28: 3730 | AG28: 431
A29: HSS | B29: HSS24x14x0.625 | C29: HSS24x14x5/8 | D29: 24x14x0.625 | E29: 24x14 | F29: 0.625 | G29: 16x4 | J29: 6 | K29: 143 | L29: 148 | M29: Rectangle | N29: 152.89 | O29: 41.9 | P29: 24 | Q29: 22.3 | R29: 14 | S29: 12.3 | T29: 0.625 | U29: 0.581 | V29: 21.1 | W29: 38.3 | X29: 3260 | Y29: 332 | Z29: 272 | AA29: 8.82 | AB29: 1420 | AC29: 229 | AD29: 203 | AE29: 5.82 | AF29: 3170 | AG29: 364
A30: HSS | B30: HSS24x14x0.500 | C30: HSS24x14x1/2 | D30: 24x14x0.500 | E30: 24x14 | F30: 0.500 | G30: 14x12 | J30: 5 | K30: 149 | L30: 153 | M30: Rectangle | N30: 123.71 | O30: 33.9 | P30: 24 | Q30: 22.6 | R30: 14 | S30: 12.6 | T30: 0.5 | U30: 0.465 | V30: 27.1 | W30: 48.6 | X30: 2680 | Y30: 270 | Z30: 223 | AA30: 8.88 | AB30: 1170 | AC30: 187 | AD30: 167 | AE30: 5.87 | AF30: 2580 | AG30: 296
A31: HSS | B31: HSS24x14x0.375 | C31: HSS24x14x3/8 | D31: 24x14x0.375 | E31: 24x14 | F31: 0.375 | G31: 14x10 | J31: 7 | K31: 154 | L31: 160 | M31: Rectangle | N31: 93.83 | O31: 25.7 | P31: 24 | Q31: 23 | R31: 14 | S31: 13.0 | T31: 0.375 | U31: 0.349 | V31: 37.1 | W31: 65.8 | X31: 2060 | Y31: 207 | Z31: 171 | AA31: 8.94 | AB31: 902 | AC31: 143 | AD31: 129 | AE31: 5.92 | AF31: 1970 | AG31: 225
A32: HSS | B32: HSS24x14x0.313 | C32: HSS24x14x5/16 | D32: 24x14x0.313 | E32: 24x14 | F32: 0.313 | G32: 14x8 | J32: 6 | K32: 161 | L32: 166 | M32: Rectangle | N32: 78.63 | O32: 21.6 | P32: 24 | Q32: 23.1 | R32: 14 | S32: 13.1 | T32: 0.3125 | U32: 0.291 | V32: 45.1 | W32: 79.5 | X32: 1740 | Y32: 174 | Z32: 145 | AA32: 8.98 | AB32: 763 | AC32: 120 | AD32: 109 | AE32: 5.95 | AF32: 1660 | AG32: 189
A33: HSS | B33: HSS24x14x0.250 | C33: HSS24x14x1/4 | D33: 24x14x0.250 | E33: 24x14 | F33: 0.250 | G33: 14x6 | J33: 6 | K33: 167 | L33: 172 | M33: Rectangle | N33: 63.25 | O33: 17.4 | P33: 24 | Q33: 23.3 | R33: 14 | S33: 13.3 | T33: 0.25 | U33: 0.233 | V33: 57.1 | W33: 100 | X33: 1410 | Y33: 140 | Z33: 117 | AA33: 9.01 | AB33: 619 | AC33: 97.4 | AD33: 88.5 | AE33: 5.98 | AF33: 1340 | AG33: 152
A34: HSS | B34: HSS24x12x1 | C34: HSS24x12x1 | D34: 24x12x1 | E34: 24x12 | F34: 1 | G34: 14x4 | J34: 6 | K34: 173 | L34: 178 | M34: Rectangle | N34: 222.63 | O34: 61.3 | P34: 24 | Q34: 21.2 | R34: 12 | S34: 9.21 | T34: 1 | U34: 0.93 | V34: 9.9 | W34: 22.8 | X34: 4340 | Y34: 459 | Z34: 362 | AA34: 8.42 | AB34: 1460 | AC34: 282 | AD34: 243 | AE34: 4.88 | AF34: 3630 | AG34: 472
A35: HSS | B35: HSS24x12x0.875 | C35: HSS24x12x7/8 | D35: 24x12x0.875 | E35: 24x12 | F35: 0.875 | G35: 12x10 | J35: 6 | K35: 179 | L35: 184 | M35: Rectangle | N35: 197.24 | O35: 54.3 | P35: 24 | Q35: 21.6 | R35: 12 | S35: 9.56 | T35: 0.875 | U35: 0.814 | V35: 11.7 | W35: 26.5 | X35: 3910 | Y35: 410 | Z35: 326 | AA35: 8.49 | AB35: 1320 | AC35: 252 | AD35: 220 | AE35: 4.93 | AF35: 3250 | AG35: 420
A36: HSS | B36: HSS24x12x0.750 | C36: HSS24x12x3/4 | D36: 24x12x0.750 | E36: 24x12 | F36: 0.750 | G36: 12x8 | J36: 6 | K36: 185 | L36: 190 | M36: Rectangle | N36: 171.16 | O36: 47.1 | P36: 24 | Q36: 21.9 | R36: 12 | S36: 9.91 | T36: 0.75 | U36: 0.698 | V36: 14.2 | W36: 31.4 | X36: 3440 | Y36: 359 | Z36: 287 | AA36: 8.55 | AB36: 1170 | AC36: 221 | AD36: 195 | AE36: 4.98 | AF36: 2850 | AG36: 366
A37: HSS | B37: HSS24x12x0.625 | C37: HSS24x12x5/8 | D37: 24x12x0.625 | E37: 24x12 | F37: 0.625 | G37: 12x6 | J37: 6 | K37: 191 | L37: 196 | M37: Rectangle | N37: 144.39 | O37: 39.6 | P37: 24 | Q37: 22.3 | R37: 12 | S37: 10.3 | T37: 0.625 | U37: 0.581 | V37: 17.7 | W37: 38.4 | X37: 2940 | Y37: 304 | Z37: 245 | AA37: 8.62 | AB37: 1000 | AC37: 188 | AD37: 167 | AE37: 5.03 | AF37: 2430 | AG37: 310
A38: HSS | B38: HSS24x12x0.500 | C38: HSS24x12x1/2 | D38: 24x12x0.500 | E38: 24x12 | F38: 0.500 | G38: 12x4 | J38: 6 | K38: 197 | L38: 202 | M38: Rectangle | N38: 116.91 | O38: 32.1 | P38: 24 | Q38: 22.6 | R38: 12 | S38: 10.6 | T38: 0.5 | U38: 0.465 | V38: 22.8 | W38: 48.6 | X38: 2420 | Y38: 248 | Z38: 202 | AA38: 8.68 | AB38: 829 | AC38: 154 | AD38: 138 | AE38: 5.08 | AF38: 1980 | AG38: 252
A39: HSS | B39: HSS24x12x0.375 | C39: HSS24x12x3/8 | D39: 24x12x0.375 | E39: 24x12 | F39: 0.375 | G39: 12x3 | J39: 3 | K39: 203 | L39: 205 | M39: Rectangle | N39: 88.73 | O39: 24.3 | P39: 24 | Q39: 23 | R39: 12 | S39: 11.0 | T39: 0.375 | U39: 0.349 | V39: 31.4 | W39: 65.8 | X39: 1860 | Y39: 190 | Z39: 155 | AA39: 8.75 | AB39: 642 | AC39: 118 | AD39: 107 | AE39: 5.14 | AF39: 1520 | AG39: 192
A40: HSS | B40: HSS24x12x0.313 | C40: HSS24x12x5/16 | D40: 24x12x0.313 | E40: 24x12 | F40: 0.313 | G40: 12x2 | J40: 3 | K40: 206 | L40: 208 | M40: Rectangle | N40: 74.38 | O40: 20.4 | P40: 24 | Q40: 23.1 | R40: 12 | S40: 11.1 | T40: 0.3125 | U40: 0.291 | V40: 38.2 | W40: 79.5 | X40: 1570 | Y40: 160 | Z40: 131 | AA40: 8.78 | AB40: 543 | AC40: 99.4 | AD40: 90.6 | AE40: 5.16 | AF40: 1280 | AG40: 161
A41: HSS | B41: HSS24x12x0.250 | C41: HSS24x12x1/4 | D41: 24x12x0.250 | E41: 24x12 | F41: 0.250 | G41: 10x8 | J41: 6 | K41: 209 | L41: 214 | M41: Rectangle | N41: 59.85 | O41: 16.4 | P41: 24 | Q41: 23.3 | R41: 12 | S41: 11.3 | T41: 0.25 | U41: 0.233 | V41: 48.5 | W41: 100 | X41: 1280 | Y41: 129 | Z41: 106 | AA41: 8.82 | AB41: 442 | AC41: 80.5 | AD41: 73.6 | AE41: 5.19 | AF41: 1030 | AG41: 130
A42: HSS | B42: HSS24x8x0.500 | C42: HSS24x8x1/2 | D42: 24x8x0.500 | E42: 24x8 | F42: 0.500 | G42: 10x6 | J42: 6 | K42: 215 | L42: 220 | M42: Rectangle | N42: 103.3 | O42: 28.3 | P42: 24 | Q42: 22.6 | R42: 8 | S42: 6.61 | T42: 0.5 | U42: 0.465 | V42: 14.2 | W42: 48.6 | X42: 1900 | Y42: 205 | Z42: 159 | AA42: 8.19 | AB42: 336 | AC42: 93.5 | AD42: 84 | AE42: 3.44 | AF42: 955 | AG42: 165
A43: HSS | B43: HSS24x8x0.375 | C43: HSS24x8x3/8 | D43: 24x8x0.375 | E43: 24x8 | F43: 0.375 | G43: 10x5 | J43: 3 | K43: 221 | L43: 223 | M43: Rectangle | N43: 78.52 | O43: 21.5 | P43: 24 | Q43: 23 | R43: 8 | S43: 6.95 | T43: 0.375 | U43: 0.349 | V43: 19.9 | W43: 65.8 | X43: 1470 | Y43: 157 | Z43: 123 | AA43: 8.27 | AB43: 263 | AC43: 72.2 | AD43: 65.8 | AE43: 3.5 | AF43: 739 | AG43: 126
A44: HSS | B44: HSS24x8x0.313 | C44: HSS24x8x5/16 | D44: 24x8x0.313 | E44: 24x8 | F44: 0.313 | G44: 10x4 | J44: 7 | K44: 224 | L44: 230 | M44: Rectangle | N44: 65.87 | O44: 18.1 | P44: 24 | Q44: 23.1 | R44: 8 | S44: 7.13 | T44: 0.3125 | U44: 0.291 | V44: 24.5 | W44: 79.5 | X44: 1250 | Y44: 132 | Z44: 104 | AA44: 8.3 | AB44: 224 | AC44: 61 | AD44: 56 | AE44: 3.52 | AF44: 625 | AG44: 106
A45: HSS | B45: HSS24x8x0.250 | C45: HSS24x8x1/4 | D45: 24x8x0.250 | E45: 24x8 | F45: 0.250 | G45: 10x3.5 | J45: 4 | K45: 231 | L45: 234 | M45: Rectangle | N45: 53.05 | O45: 14.6 | P45: 24 | Q45: 23.3 | R45: 8 | S45: 7.30 | T45: 0.25 | U45: 0.233 | V45: 31.3 | W45: 100 | X45: 1010 | Y45: 107 | Z45: 84.4 | AA45: 8.34 | AB45: 183 | AC45: 49.5 | AD45: 45.8 | AE45: 3.55 | AF45: 508 | AG45: 86
A46: HSS | B46: HSS22x20x0.750 | C46: HSS22x20x3/4 | D46: 22x20x0.750 | E46: 22x20 | F46: 0.750 | G46: 10x3 | J46: 5 | K46: 235 | L46: 239 | M46: Rectangle | N46: 201.79 | O46: 55.4 | P46: 22 | Q46: 19.9 | R46: 20 | S46: 17.9 | T46: 0.75 | U46: 0.698 | V46: 25.7 | W46: 28.5 | X46: 4040 | Y46: 432 | Z46: 367 | AA46: 8.54 | AB46: 3490 | AC46: 405 | AD46: 349 | AE46: 7.93 | AF46: 5920 | AG46: 573
A47: HSS | B47: HSS22x20x0.625 | C47: HSS22x20x5/8 | D47: 22x20x0.625 | E47: 22x20 | F47: 0.625 | G47: 10x2 | J47: 5 | K47: 240 | L47: 244 | M47: Rectangle | N47: 169.91 | O47: 46.6 | P47: 22 | Q47: 20.3 | R47: 20 | S47: 18.3 | T47: 0.625 | U47: 0.581 | V47: 31.4 | W47: 34.9 | X47: 3440 | Y47: 366 | Z47: 313 | AA47: 8.59 | AB47: 2970 | AC47: 343 | AD47: 297 | AE47: 7.99 | AF47: 5000 | AG47: 483
A48: HSS | B48: HSS22x20x0.500 | C48: HSS22x20x1/2 | D48: 22x20x0.500 | E48: 22x20 | F48: 0.500 | G48: 9x7 | J48: 6 | K48: 245 | L48: 250 | M48: Rectangle | N48: 137.32 | O48: 37.6 | P48: 22 | Q48: 20.6 | R48: 20 | S48: 18.6 | T48: 0.5 | U48: 0.465 | V48: 40 | W48: 44.3 | X48: 2820 | Y48: 297 | Z48: 256 | AA48: 8.65 | AB48: 2440 | AC48: 279 | AD48: 244 | AE48: 8.04 | AF48: 4060 | AG48: 391
A49: HSS | B49: HSS22x20x0.375 | C49: HSS22x20x3/8 | D49: 22x20x0.375 | E49: 22x20 | F49: 0.375 | G49: 9x5 | J49: 6 | K49: 251 | L49: 256 | M49: Rectangle | N49: 104.04 | O49: 28.5 | P49: 22 | Q49: 21 | R49: 20 | S49: 19.0 | T49: 0.375 | U49: 0.349 | V49: 54.3 | W49: 60 | X49: 2160 | Y49: 227 | Z49: 196 | AA49: 8.71 | AB49: 1870 | AC49: 213 | AD49: 187 | AE49: 8.1 | AF49: 3090 | AG49: 297
A50: HSS | B50: HSS22x20x0.313 | C50: HSS22x20x5/16 | D50: 22x20x0.313 | E50: 22x20 | F50: 0.313 | G50: 9x3 | J50: 5 | K50: 257 | L50: 261 | M50: Rectangle | N50: 87.14 | O50: 23.9 | P50: 22 | Q50: 21.1 | R50: 20 | S50: 19.1 | T50: 0.3125 | U50: 0.291 | V50: 65.7 | W50: 72.6 | X50: 1820 | Y50: 191 | Z50: 166 | AA50: 8.73 | AB50: 1580 | AC50: 179 | AD50: 158 | AE50: 8.13 | AF50: 2590 | AG50: 249
A51: HSS | B51: HSS22x18x0.750 | C51: HSS22x18x3/4 | D51: 22x18x0.750 | E51: 22x18 | F51: 0.750 | G51: 8x6 | J51: 6 | K51: 262 | L51: 267 | M51: Rectangle | N51: 191.58 | O51: 52.6 | P51: 22 | Q51: 19.9 | R51: 18 | S51: 15.9 | T51: 0.75 | U51: 0.698 | V51: 22.8 | W51: 28.5 | X51: 3720 | Y51: 402 | Z51: 338 | AA51: 8.41 | AB51: 2730 | AC51: 351 | AD51: 304 | AE51: 7.21 | AF51: 5000 | AG51: 513
A52: HSS | B52: HSS22x18x0.625 | C52: HSS22x18x5/8 | D52: 22x18x0.625 | E52: 22x18 | F52: 0.625 | G52: 8x4 | J52: 7 | K52: 268 | L52: 274 | M52: Rectangle | N52: 161.4 | O52: 44.3 | P52: 22 | Q52: 20.3 | R52: 18 | S52: 16.3 | T52: 0.625 | U52: 0.581 | V52: 28 | W52: 34.9 | X52: 3170 | Y52: 341 | Z52: 288 | AA52: 8.47 | AB52: 2330 | AC52: 297 | AD52: 259 | AE52: 7.26 | AF52: 4230 | AG52: 433
A53: HSS | B53: HSS22x18x0.500 | C53: HSS22x18x1/2 | D53: 22x18x0.500 | E53: 22x18 | F53: 0.500 | G53: 8x3 | J53: 6 | K53: 275 | L53: 280 | M53: Rectangle | N53: 130.52 | O53: 35.8 | P53: 22 | Q53: 20.6 | R53: 18 | S53: 16.6 | T53: 0.5 | U53: 0.465 | V53: 35.7 | W53: 44.3 | X53: 2600 | Y53: 277 | Z53: 236 | AA53: 8.52 | AB53: 1910 | AC53: 242 | AD53: 213 | AE53: 7.31 | AF53: 3440 | AG53: 351
A54: HSS | B54: HSS22x18x0.375 | C54: HSS22x18x3/8 | D54: 22x18x0.375 | E54: 22x18 | F54: 0.375 | G54: 8x2 | J54: 6 | K54: 281 | L54: 286 | M54: Rectangle | N54: 98.94 | O54: 27.1 | P54: 22 | Q54: 21 | R54: 18 | S54: 17.0 | T54: 0.375 | U54: 0.349 | V54: 48.6 | W54: 60 | X54: 2000 | Y54: 212 | Z54: 182 | AA54: 8.58 | AB54: 1470 | AC54: 185 | AD54: 164 | AE54: 7.37 | AF54: 2620 | AG54: 267
A55: HSS | B55: HSS22x18x0.313 | C55: HSS22x18x5/16 | D55: 22x18x0.313 | E55: 22x18 | F55: 0.313 | G55: 7x5 | J55: 6 | K55: 287 | L55: 292 | M55: Rectangle | N55: 82.88 | O55: 22.7 | P55: 22 | Q55: 21.1 | R55: 18 | S55: 17.1 | T55: 0.3125 | U55: 0.291 | V55: 58.9 | W55: 72.6 | X55: 1680 | Y55: 178 | Z55: 153 | AA55: 8.61 | AB55: 1240 | AC55: 156 | AD55: 138 | AE55: 7.4 | AF55: 2200 | AG55: 224
A56: HSS | B56: HSS22x16x0.750 | C56: HSS22x16x3/4 | D56: 22x16x0.750 | E56: 22x16 | F56: 0.750 | G56: 7x4 | J56: 6 | K56: 293 | L56: 298 | M56: Rectangle | N56: 181.37 | O56: 49.8 | P56: 22 | Q56: 19.9 | R56: 16 | S56: 13.9 | T56: 0.75 | U56: 0.698 | V56: 19.9 | W56: 28.5 | X56: 3400 | Y56: 372 | Z56: 309 | AA56: 8.26 | AB56: 2080 | AC56: 300 | AD56: 260 | AE56: 6.47 | AF56: 4130 | AG56: 454
A57: HSS | B57: HSS22x16x0.625 | C57: HSS22x16x5/8 | D57: 22x16x0.625 | E57: 22x16 | F57: 0.625 | G57: 7x3 | J57: 6 | K57: 299 | L57: 304 | M57: Rectangle | N57: 152.89 | O57: 41.9 | P57: 22 | Q57: 20.3 | R57: 16 | S57: 14.3 | T57: 0.625 | U57: 0.581 | V57: 24.5 | W57: 34.9 | X57: 2910 | Y57: 316 | Z57: 264 | AA57: 8.32 | AB57: 1780 | AC57: 254 | AD57: 223 | AE57: 6.52 | AF57: 3500 | AG57: 383
A58: HSS | B58: HSS22x16x0.500 | C58: HSS22x16x1/2 | D58: 22x16x0.500 | E58: 22x16 | F58: 0.500 | G58: 7x2 | J58: 3 | K58: 305 | L58: 307 | M58: Rectangle | N58: 123.71 | O58: 33.9 | P58: 22 | Q58: 20.6 | R58: 16 | S58: 14.6 | T58: 0.5 | U58: 0.465 | V58: 31.4 | W58: 44.3 | X58: 2380 | Y58: 257 | Z58: 217 | AA58: 8.38 | AB58: 1470 | AC58: 207 | AD58: 183 | AE58: 6.57 | AF58: 2850 | AG58: 311
A59: HSS | B59: HSS22x16x0.375 | C59: HSS22x16x3/8 | D59: 22x16x0.375 | E59: 22x16 | F59: 0.375 | G59: 6x5 | J59: 6 | K59: 308 | L59: 313 | M59: Rectangle | N59: 93.83 | O59: 25.7 | P59: 22 | Q59: 21 | R59: 16 | S59: 15.0 | T59: 0.375 | U59: 0.349 | V59: 42.8 | W59: 60 | X59: 1830 | Y59: 197 | Z59: 167 | AA59: 8.44 | AB59: 1130 | AC59: 159 | AD59: 141 | AE59: 6.63 | AF59: 2170 | AG59: 236
A60: HSS | B60: HSS22x16x0.313 | C60: HSS22x16x5/16 | D60: 22x16x0.313 | E60: 22x16 | F60: 0.313 | G60: 6x4 | J60: 6 | K60: 314 | L60: 319 | M60: Rectangle | N60: 78.63 | O60: 21.6 | P60: 22 | Q60: 21.1 | R60: 16 | S60: 15.1 | T60: 0.3125 | U60: 0.291 | V60: 52 | W60: 72.6 | X60: 1550 | Y60: 165 | Z60: 141 | AA60: 8.47 | AB60: 954 | AC60: 133 | AD60: 119 | AE60: 6.65 | AF60: 1830 | AG60: 198
A61: HSS | B61: HSS22x16x0.250 | C61: HSS22x16x1/4 | D61: 22x16x0.250 | E61: 22x16 | F61: 0.250 | G61: 6x3 | J61: 6 | K61: 320 | L61: 325 | M61: Rectangle | N61: 63.25 | O61: 17.4 | P61: 22 | Q61: 21.3 | R61: 16 | S61: 15.3 | T61: 0.25 | U61: 0.233 | V61: 65.7 | W61: 91.4 | X61: 1250 | Y61: 134 | Z61: 114 | AA61: 8.5 | AB61: 774 | AC61: 108 | AD61: 96.7 | AE61: 6.68 | AF61: 1470 | AG61: 160
A62: HSS | B62: HSS22x14x0.750 | C62: HSS22x14x3/4 | D62: 22x14x0.750 | E62: 22x14 | F62: 0.750 | G62: 6x2 | J62: 5 | K62: 326 | L62: 330 | M62: Rectangle | N62: 171.16 | O62: 47.1 | P62: 22 | Q62: 19.9 | R62: 14 | S62: 11.9 | T62: 0.75 | U62: 0.698 | V62: 17.1 | W62: 28.5 | X62: 3090 | Y62: 343 | Z62: 281 | AA62: 8.1 | AB62: 1530 | AC62: 251 | AD62: 219 | AE62: 5.71 | AF62: 3300 | AG62: 394
A63: HSS | B63: HSS22x14x0.625 | C63: HSS22x14x5/8 | D63: 22x14x0.625 | E63: 22x14 | F63: 0.625 | G63: 5x4 | J63: 6 | K63: 331 | L63: 336 | M63: Rectangle | N63: 144.39 | O63: 39.6 | P63: 22 | Q63: 20.3 | R63: 14 | S63: 12.3 | T63: 0.625 | U63: 0.581 | V63: 21.1 | W63: 34.9 | X63: 2640 | Y63: 291 | Z63: 240 | AA63: 8.16 | AB63: 1320 | AC63: 213 | AD63: 188 | AE63: 5.76 | AF63: 2800 | AG63: 333
A64: HSS | B64: HSS22x14x0.500 | C64: HSS22x14x1/2 | D64: 22x14x0.500 | E64: 22x14 | F64: 0.500 | G64: 5x3 | J64: 6 | K64: 337 | L64: 342 | M64: Rectangle | N64: 116.91 | O64: 32.1 | P64: 22 | Q64: 20.6 | R64: 14 | S64: 12.6 | T64: 0.5 | U64: 0.465 | V64: 27.1 | W64: 44.3 | X64: 2170 | Y64: 237 | Z64: 197 | AA64: 8.22 | AB64: 1080 | AC64: 174 | AD64: 155 | AE64: 5.81 | AF64: 2290 | AG64: 271
A65: HSS | B65: HSS22x14x0.375 | C65: HSS22x14x3/8 | D65: 22x14x0.375 | E65: 22x14 | F65: 0.375 | G65: 5x2.5 | J65: 3 | K65: 343 | L65: 345 | M65: Rectangle | N65: 88.73 | O65: 24.3 | P65: 22 | Q65: 21 | R65: 14 | S65: 13.0 | T65: 0.375 | U65: 0.349 | V65: 37.1 | W65: 60 | X65: 1670 | Y65: 182 | Z65: 152 | AA65: 8.29 | AB65: 837 | AC65: 134 | AD65: 120 | AE65: 5.87 | AF65: 1750 | AG65: 206
A66: HSS | B66: HSS22x14x0.313 | C66: HSS22x14x5/16 | D66: 22x14x0.313 | E66: 22x14 | F66: 0.313 | G66: 5x2 | J66: 5 | K66: 346 | L66: 350 | M66: Rectangle | N66: 74.38 | O66: 20.4 | P66: 22 | Q66: 21.1 | R66: 14 | S66: 13.1 | T66: 0.3125 | U66: 0.291 | V66: 45.1 | W66: 72.6 | X66: 1410 | Y66: 153 | Z66: 128 | AA66: 8.32 | AB66: 708 | AC66: 112 | AD66: 101 | AE66: 5.89 | AF66: 1470 | AG66: 173
A67: HSS | B67: HSS22x14x0.250 | C67: HSS22x14x1/4 | D67: 22x14x0.250 | E67: 22x14 | F67: 0.250 | G67: 4x3 | J67: 5 | K67: 351 | L67: 355 | M67: Rectangle | N67: 59.85 | O67: 16.4 | P67: 22 | Q67: 21.3 | R67: 14 | S67: 13.3 | T67: 0.25 | U67: 0.233 | V67: 57.1 | W67: 91.4 | X67: 1140 | Y67: 123 | Z67: 104 | AA67: 8.35 | AB67: 575 | AC67: 90.9 | AD67: 82.2 | AE67: 5.92 | AF67: 1190 | AG67: 140
A68: HSS | B68: HSS22x10x0.625 | C68: HSS22x10x5/8 | D68: 22x10x0.625 | E68: 22x10 | F68: 0.625 | G68: 4x2.5 | J68: 3 | K68: 356 | L68: 358 | M68: Rectangle | N68: 127.37 | O68: 35 | P68: 22 | Q68: 20.3 | R68: 10 | S68: 8.26 | T68: 0.625 | U68: 0.581 | V68: 14.2 | W68: 34.9 | X68: 2110 | Y68: 241 | Z68: 191 | AA68: 7.76 | AB68: 614 | AC68: 139 | AD68: 123 | AE68: 4.19 | AF68: 1560 | AG68: 234
A69: HSS | B69: HSS22x10x0.500 | C69: HSS22x10x1/2 | D69: 22x10x0.500 | E69: 22x10 | F69: 0.500 | G69: 4x2 | J69: 5 | K69: 359 | L69: 363 | M69: Rectangle | N69: 103.3 | O69: 28.3 | P69: 22 | Q69: 20.6 | R69: 10 | S69: 8.61 | T69: 0.5 | U69: 0.465 | V69: 18.5 | W69: 44.3 | X69: 1740 | Y69: 197 | Z69: 158 | AA69: 7.83 | AB69: 510 | AC69: 114 | AD69: 102 | AE69: 4.24 | AF69: 1280 | AG69: 191
A70: HSS | B70: HSS22x10x0.375 | C70: HSS22x10x3/8 | D70: 22x10x0.375 | E70: 22x10 | F70: 0.375 | G70: 4x1.5 | J70: 3 | K70: 364 | L70: 366 | M70: Rectangle | N70: 78.52 | O70: 21.5 | P70: 22 | Q70: 21 | R70: 10 | S70: 8.95 | T70: 0.375 | U70: 0.349 | V70: 25.7 | W70: 60 | X70: 1340 | Y70: 151 | Z70: 122 | AA70: 7.9 | AB70: 397 | AC70: 87.7 | AD70: 79.4 | AE70: 4.29 | AF70: 986 | AG70: 146
A71: HSS | B71: HSS22x10x0.313 | C71: HSS22x10x5/16 | D71: 22x10x0.313 | E71: 22x10 | F71: 0.313 | G71: 3.5x2.5 | J71: 5 | K71: 367 | L71: 371 | M71: Rectangle | N71: 65.87 | O71: 18.1 | P71: 22 | Q71: 21.1 | R71: 10 | S71: 9.13 | T71: 0.3125 | U71: 0.291 | V71: 31.4 | W71: 72.6 | X71: 1140 | Y71: 128 | Z71: 103 | AA71: 7.93 | AB71: 337 | AC71: 74 | AD71: 67.4 | AE71: 4.32 | AF71: 832 | AG71: 123
A72: HSS | B72: HSS22x10x0.250 | C72: HSS22x10x1/4 | D72: 22x10x0.250 | E72: 22x10 | F72: 0.250 | G72: 3.5x2 | J72: 3 | K72: 372 | L72: 374 | M72: Rectangle | N72: 53.05 | O72: 14.6 | P72: 22 | Q72: 21.3 | R72: 10 | S72: 9.30 | T72: 0.25 | U72: 0.233 | V72: 39.9 | W72: 91.4 | X72: 923 | Y72: 103 | Z72: 83.9 | AA72: 7.96 | AB72: 275 | AC72: 60 | AD72: 55 | AE72: 4.34 | AF72: 674 | AG72: 99
A73: HSS | B73: HSS20x16x0.750 | C73: HSS20x16x3/4 | D73: 20x16x0.750 | E73: 20x16 | F73: 0.750 | G73: 3.5x1.5 | J73: 3 | K73: 375 | L73: 377 | M73: Rectangle | N73: 171.16 | O73: 47.1 | P73: 20 | Q73: 17.9 | R73: 16 | S73: 13.9 | T73: 0.75 | U73: 0.698 | V73: 19.9 | W73: 25.7 | X73: 2710 | Y73: 324 | Z73: 271 | AA73: 7.59 | AB73: 1920 | AC73: 278 | AD73: 240 | AE73: 6.39 | AF73: 3590 | AG73: 411
A74: HSS | B74: HSS20x16x0.625 | C74: HSS20x16x5/8 | D74: 20x16x0.625 | E74: 20x16 | F74: 0.625 | G74: 3x2.5 | J74: 4 | K74: 378 | L74: 381 | M74: Rectangle | N74: 144.39 | O74: 39.6 | P74: 20 | Q74: 18.3 | R74: 16 | S74: 14.3 | T74: 0.625 | U74: 0.581 | V74: 24.5 | W74: 31.4 | X74: 2320 | Y74: 275 | Z74: 232 | AA74: 7.65 | AB74: 1640 | AC74: 236 | AD74: 206 | AE74: 6.44 | AF74: 3040 | AG74: 347
A75: HSS | B75: HSS20x16x0.500 | C75: HSS20x16x1/2 | D75: 20x16x0.500 | E75: 20x16 | F75: 0.500 | G75: 3x2 | J75: 4 | K75: 382 | L75: 385 | M75: Rectangle | N75: 116.91 | O75: 32.1 | P75: 20 | Q75: 18.6 | R75: 16 | S75: 14.6 | T75: 0.5 | U75: 0.465 | V75: 31.4 | W75: 40 | X75: 1900 | Y75: 224 | Z75: 190 | AA75: 7.7 | AB75: 1350 | AC75: 193 | AD75: 169 | AE75: 6.5 | AF75: 2480 | AG75: 282
A76: HSS | B76: HSS20x16x0.375 | C76: HSS20x16x3/8 | D76: 20x16x0.375 | E76: 20x16 | F76: 0.375 | G76: 3x1.5 | J76: 3 | K76: 386 | L76: 388 | M76: Rectangle | N76: 88.73 | O76: 24.3 | P76: 20 | Q76: 19 | R76: 16 | S76: 15.0 | T76: 0.375 | U76: 0.349 | V76: 42.8 | W76: 54.3 | X76: 1470 | Y76: 172 | Z76: 147 | AA76: 7.76 | AB76: 1040 | AC76: 148 | AD76: 130 | AE76: 6.55 | AF76: 1890 | AG76: 215
A77: HSS | B77: HSS20x16x0.313 | C77: HSS20x16x5/16 | D77: 20x16x0.313 | E77: 20x16 | F77: 0.313 | G77: 3x1 | J77: 2 | K77: 389 | L77: 390 | M77: Rectangle | N77: 74.38 | O77: 20.4 | P77: 20 | Q77: 19.1 | R77: 16 | S77: 15.1 | T77: 0.3125 | U77: 0.291 | V77: 52 | W77: 65.7 | X77: 1240 | Y77: 144 | Z77: 124 | AA77: 7.79 | AB77: 882 | AC77: 124 | AD77: 110 | AE77: 6.58 | AF77: 1590 | AG77: 180
A78: HSS | B78: HSS20x16x0.250 | C78: HSS20x16x1/4 | D78: 20x16x0.250 | E78: 20x16 | F78: 0.250 | G78: 2.5x2 | J78: 3 | K78: 391 | L78: 393 | M78: Rectangle | N78: 59.85 | O78: 16.4 | P78: 20 | Q78: 19.3 | R78: 16 | S78: 15.3 | T78: 0.25 | U78: 0.233 | V78: 65.7 | W78: 82.8 | X78: 1000 | Y78: 117 | Z78: 100 | AA78: 7.82 | AB78: 716 | AC78: 100 | AD78: 89.5 | AE78: 6.6 | AF78: 1280 | AG78: 145
A79: HSS | B79: HSS20x12x1 | C79: HSS20x12x1 | D79: 20x12x1 | E79: 20x12 | F79: 1 | G79: 2.5x1.5 | J79: 3 | K79: 394 | L79: 396 | M79: Rectangle | N79: 195.4 | O79: 53.8 | P79: 20 | Q79: 17.2 | R79: 12 | S79: 9.21 | T79: 1 | U79: 0.93 | V79: 9.9 | W79: 18.5 | X79: 2740 | Y79: 344 | Z79: 274 | AA79: 7.14 | AB79: 1230 | AC79: 241 | AD79: 205 | AE79: 4.78 | AF79: 2820 | AG79: 390
A80: HSS | B80: HSS20x12x0.875 | C80: HSS20x12x7/8 | D80: 20x12x0.875 | E80: 20x12 | F80: 0.875 | G80: 2.5x1 | J80: 2 | K80: 397 | L80: 398 | M80: Rectangle | N80: 173.43 | O80: 47.7 | P80: 20 | Q80: 17.6 | R80: 12 | S80: 9.56 | T80: 0.875 | U80: 0.814 | V80: 11.7 | W80: 21.6 | X80: 2480 | Y80: 308 | Z80: 248 | AA80: 7.2 | AB80: 1110 | AC80: 216 | AD80: 186 | AE80: 4.83 | AF80: 2530 | AG80: 347
A81: HSS | B81: HSS20x12x0.750 | C81: HSS20x12x3/4 | D81: 20x12x0.750 | E81: 20x12 | F81: 0.750 | G81: 2x1.5 | J81: 2 | K81: 399 | L81: 400 | M81: Rectangle | N81: 150.75 | O81: 41.5 | P81: 20 | Q81: 17.9 | R81: 12 | S81: 9.91 | T81: 0.75 | U81: 0.698 | V81: 14.2 | W81: 25.6 | X81: 2190 | Y81: 270 | Z81: 219 | AA81: 7.26 | AB81: 988 | AC81: 190 | AD81: 165 | AE81: 4.88 | AF81: 2220 | AG81: 303
A82: HSS | B82: HSS20x12x0.625 | C82: HSS20x12x5/8 | D82: 20x12x0.625 | E82: 20x12 | F82: 0.625 | G82: 2x1 | J82: 2 | K82: 401 | L82: 402 | M82: Rectangle | N82: 127.37 | O82: 35 | P82: 20 | Q82: 18.3 | R82: 12 | S82: 10.3 | T82: 0.625 | U82: 0.581 | V82: 17.7 | W82: 31.4 | X82: 1880 | Y82: 230 | Z82: 188 | AA82: 7.33 | AB82: 851 | AC82: 162 | AD82: 142 | AE82: 4.93 | AF82: 1890 | AG82: 257
A83: HSS | B83: HSS20x12x0.500 | C83: HSS20x12x1/2 | D83: 20x12x0.500 | E83: 20x12 | F83: 0.500 | M83: Rectangle | N83: 103.3 | O83: 28.3 | P83: 20 | Q83: 18.6 | R83: 12 | S83: 10.6 | T83: 0.5 | U83: 0.465 | V83: 22.8 | W83: 40 | X83: 1550 | Y83: 188 | Z83: 155 | AA83: 7.39 | AB83: 705 | AC83: 132 | AD83: 117 | AE83: 4.99 | AF83: 1540 | AG83: 209
A84: HSS | B84: HSS20x12x0.375 | C84: HSS20x12x3/8 | D84: 20x12x0.375 | E84: 20x12 | F84: 0.375 | M84: Rectangle | N84: 78.52 | O84: 21.5 | P84: 20 | Q84: 19 | R84: 12 | S84: 11 | T84: 0.375 | U84: 0.349 | V84: 31.4 | W84: 54.3 | X84: 1200 | Y84: 144 | Z84: 120 | AA84: 7.45 | AB84: 547 | AC84: 102 | AD84: 91.1 | AE84: 5.04 | AF84: 1180 | AG84: 160
A85: HSS | B85: HSS20x12x0.313 | C85: HSS20x12x5/16 | D85: 20x12x0.313 | E85: 20x12 | F85: 0.313 | M85: Rectangle | N85: 65.87 | O85: 18.1 | P85: 20 | Q85: 19.1 | R85: 12 | S85: 11.1 | T85: 0.3125 | U85: 0.291 | V85: 38.2 | W85: 65.7 | X85: 1010 | Y85: 122 | Z85: 101 | AA85: 7.48 | AB85: 464 | AC85: 85.8 | AD85: 77.3 | AE85: 5.07 | AF85: 997 | AG85: 134
A86: HSS | B86: HSS20x8x1 | C86: HSS20x8x1 | D86: 20x8x1 | E86: 20x8 | F86: 1 | M86: Rectangle | N86: 168.18 | O86: 46.4 | P86: 20 | Q86: 17.2 | R86: 8 | S86: 5.21 | T86: 1 | U86: 0.93 | V86: 5.6 | W86: 18.5 | X86: 2060 | Y86: 273 | Z86: 206 | AA86: 6.67 | AB86: 472 | AC86: 141 | AD86: 118 | AE86: 3.19 | AF86: 1320 | AG86: 248
A87: HSS | B87: HSS20x8x0.875 | C87: HSS20x8x7/8 | D87: 20x8x0.875 | E87: 20x8 | F87: 0.875 | M87: Rectangle | N87: 149.61 | O87: 41.2 | P87: 20 | Q87: 17.6 | R87: 8 | S87: 5.56 | T87: 0.875 | U87: 0.814 | V87: 6.83 | W87: 21.6 | X87: 1880 | Y87: 246 | Z87: 188 | AA87: 6.74 | AB87: 432 | AC87: 127 | AD87: 108 | AE87: 3.24 | AF87: 1200 | AG87: 222
A88: HSS | B88: HSS20x8x0.750 | C88: HSS20x8x3/4 | D88: 20x8x0.750 | E88: 20x8 | F88: 0.750 | M88: Rectangle | N88: 130.33 | O88: 35.9 | P88: 20 | Q88: 17.9 | R88: 8 | S88: 5.91 | T88: 0.75 | U88: 0.698 | V88: 8.46 | W88: 25.7 | X88: 1670 | Y88: 216 | Z88: 167 | AA88: 6.82 | AB88: 388 | AC88: 112 | AD88: 97.1 | AE88: 3.29 | AF88: 1060 | AG88: 195
A89: HSS | B89: HSS20x8x0.625 | C89: HSS20x8x5/8 | D89: 20x8x0.625 | E89: 20x8 | F89: 0.625 | M89: Rectangle | N89: 110.36 | O89: 30.3 | P89: 20 | Q89: 18.3 | R89: 8 | S89: 6.26 | T89: 0.625 | U89: 0.581 | V89: 10.8 | W89: 31.4 | X89: 1440 | Y89: 185 | Z89: 144 | AA89: 6.89 | AB89: 338 | AC89: 96.4 | AD89: 84.6 | AE89: 3.34 | AF89: 916 | AG89: 167
A90: HSS | B90: HSS20x8x0.500 | C90: HSS20x8x1/2 | D90: 20x8x0.500 | E90: 20x8 | F90: 0.500 | M90: Rectangle | N90: 89.68 | O90: 24.6 | P90: 20 | Q90: 18.6 | R90: 8 | S90: 6.6 | T90: 0.5 | U90: 0.465 | V90: 14.2 | W90: 40 | X90: 1190 | Y90: 152 | Z90: 119 | AA90: 6.96 | AB90: 283 | AC90: 79.5 | AD90: 70.8 | AE90: 3.39 | AF90: 757 | AG90: 137
A91: HSS | B91: HSS20x8x0.375 | C91: HSS20x8x3/8 | D91: 20x8x0.375 | E91: 20x8 | F91: 0.375 | M91: Rectangle | N91: 68.31 | O91: 18.7 | P91: 20 | Q91: 19 | R91: 8 | S91: 6.95 | T91: 0.375 | U91: 0.349 | V91: 19.9 | W91: 54.3 | X91: 926 | Y91: 117 | Z91: 92.6 | AA91: 7.03 | AB91: 222 | AC91: 61.5 | AD91: 55.6 | AE91: 3.44 | AF91: 586 | AG91: 105
A92: HSS | B92: HSS20x8x0.313 | C92: HSS20x8x5/16 | D92: 20x8x0.313 | E92: 20x8 | F92: 0.313 | M92: Rectangle | N92: 57.36 | O92: 15.7 | P92: 20 | Q92: 19.1 | R92: 8 | S92: 7.13 | T92: 0.3125 | U92: 0.291 | V92: 24.5 | W92: 65.7 | X92: 786 | Y92: 98.6 | Z92: 78.6 | AA92: 7.07 | AB92: 189 | AC92: 52 | AD92: 47.4 | AE92: 3.47 | AF92: 496 | AG92: 88.3
A93: HSS | B93: HSS20x6x0.625 | C93: HSS20x6x5/8 | D93: 20x6x0.625 | E93: 20x6 | F93: 0.625 | M93: Rectangle | N93: 101.85 | O93: 28 | P93: 20 | Q93: 18.3 | R93: 6 | S93: 4.26 | T93: 0.625 | U93: 0.581 | V93: 7.33 | W93: 31.4 | X93: 1220 | Y93: 162 | Z93: 122 | AA93: 6.6 | AB93: 175 | AC93: 67.3 | AD93: 58.4 | AE93: 2.5 | AF93: 528 | AG93: 122
A94: HSS | B94: HSS20x6x0.500 | C94: HSS20x6x1/2 | D94: 20x6x0.500 | E94: 20x6 | F94: 0.500 | M94: Rectangle | N94: 82.88 | O94: 22.8 | P94: 20 | Q94: 18.6 | R94: 6 | S94: 4.61 | T94: 0.5 | U94: 0.465 | V94: 9.9 | W94: 40 | X94: 1020 | Y94: 134 | Z94: 102 | AA94: 6.68 | AB94: 148 | AC94: 55.8 | AD94: 49.4 | AE94: 2.55 | AF94: 441 | AG94: 100
A95: HSS | B95: HSS20x6x0.375 | C95: HSS20x6x3/8 | D95: 20x6x0.375 | E95: 20x6 | F95: 0.375 | M95: Rectangle | N95: 63.21 | O95: 17.3 | P95: 20 | Q95: 19 | R95: 6 | S95: 4.95 | T95: 0.375 | U95: 0.349 | V95: 14.2 | W95: 54.3 | X95: 792 | Y95: 103 | Z95: 79.2 | AA95: 6.76 | AB95: 118 | AC95: 43.4 | AD95: 39.2 | AE95: 2.6 | AF95: 345 | AG95: 77.3
A96: HSS | B96: HSS20x6x0.313 | C96: HSS20x6x5/16 | D96: 20x6x0.313 | E96: 20x6 | F96: 0.313 | M96: Rectangle | N96: 53.11 | O96: 14.6 | P96: 20 | Q96: 19.1 | R96: 6 | S96: 5.13 | T96: 0.3125 | U96: 0.291 | V96: 17.6 | W96: 65.7 | X96: 673 | Y96: 87.1 | Z96: 67.3 | AA96: 6.79 | AB96: 101 | AC96: 36.9 | AD96: 33.6 | AE96: 2.63 | AF96: 293 | AG96: 65.4
A97: HSS | B97: HSS20x6x0.250 | C97: HSS20x6x1/4 | D97: 20x6x0.250 | E97: 20x6 | F97: 0.250 | M97: Rectangle | N97: 42.84 | O97: 11.8 | P97: 20 | Q97: 19.3 | R97: 6 | S97: 5.30 | T97: 0.25 | U97: 0.233 | V97: 22.8 | W97: 82.8 | X97: 549 | Y97: 70.7 | Z97: 54.9 | AA97: 6.83 | AB97: 82.9 | AC97: 30 | AD97: 27.6 | AE97: 2.66 | AF97: 240 | AG97: 53.1
A98: HSS | B98: HSS20x4x0.500 | C98: HSS20x4x1/2 | D98: 20x4x0.500 | E98: 20x4 | F98: 0.500 | M98: Rectangle | N98: 76.07 | O98: 20.9 | P98: 20 | Q98: 18.6 | R98: 4 | S98: 2.6 | T98: 0.5 | U98: 0.465 | V98: 5.6 | W98: 40 | X98: 838 | Y98: 115 | Z98: 83.8 | AA98: 6.33 | AB98: 58.7 | AC98: 34 | AD98: 29.3 | AE98: 1.68 | AF98: 195 | AG98: 63.8
A99: HSS | B99: HSS20x4x0.375 | C99: HSS20x4x3/8 | D99: 20x4x0.375 | E99: 20x4 | F99: 0.375 | M99: Rectangle | N99: 58.1 | O99: 16 | P99: 20 | Q99: 19 | R99: 4 | S99: 2.95 | T99: 0.375 | U99: 0.349 | V99: 8.46 | W99: 54.3 | X99: 657 | Y99: 89.3 | Z99: 65.7 | AA99: 6.42 | AB99: 47.6 | AC99: 26.8 | AD99: 23.8 | AE99: 1.73 | AF99: 156 | AG99: 49.9
A100: HSS | B100: HSS20x4x0.313 | C100: HSS20x4x5/16 | D100: 20x4x0.313 | E100: 20x4 | F100: 0.313 | M100: Rectangle | N100: 48.86 | O100: 13.4 | P100: 20 | Q100: 19.1 | R100: 4 | S100: 3.13 | T100: 0.3125 | U100: 0.291 | V100: 10.7 | W100: 65.7 | X100: 560 | Y100: 75.6 | Z100: 56 | AA100: 6.46 | AB100: 41.2 | AC100: 22.9 | AD100: 20.6 | AE100: 1.75 | AF100: 134 | AG100: 42.4
A101: HSS | B101: HSS20x4x0.250 | C101: HSS20x4x1/4 | D101: 20x4x0.250 | E101: 20x4 | F101: 0.250 | M101: Rectangle | N101: 39.43 | O101: 10.8 | P101: 20 | Q101: 19.3 | R101: 4 | S101: 3.3 | T101: 0.25 | U101: 0.233 | V101: 14.2 | W101: 82.8 | X101: 458 | Y101: 61.5 | Z101: 45.8 | AA101: 6.5 | AB101: 34.3 | AC101: 18.7 | AD101: 17.1 | AE101: 1.78 | AF101: 111 | AG101: 34.7
A102: HSS | B102: HSS18x10x0.625 | C102: HSS18x10x5/8 | D102: 18x10x0.625 | E102: 18x10 | F102: 0.625 | M102: Rectangle | N102: 110.36 | O102: 30.3 | P102: 18 | Q102: 16.3 | R102: 10 | S102: 8.26 | T102: 0.625 | U102: 0.581 | V102: 14.2 | W102: 28 | X102: 1280 | Y102: 176 | Z102: 142 | AA102: 6.49 | AB102: 511 | AC102: 117 | AD102: 102 | AE102: 4.1 | AF102: 1190 | AG102: 190
A103: HSS | B103: HSS18x10x0.500 | C103: HSS18x10x1/2 | D103: 18x10x0.500 | E103: 18x10 | F103: 0.500 | M103: Rectangle | N103: 89.68 | O103: 24.6 | P103: 18 | Q103: 16.6 | R103: 10 | S103: 8.61 | T103: 0.5 | U103: 0.465 | V103: 18.5 | W103: 35.7 | X103: 1060 | Y103: 144 | Z103: 117 | AA103: 6.55 | AB103: 425 | AC103: 96.2 | AD103: 85 | AE103: 4.16 | AF103: 977 | AG103: 155
A104: HSS | B104: HSS18x10x0.375 | C104: HSS18x10x3/8 | D104: 18x10x0.375 | E104: 18x10 | F104: 0.375 | M104: Rectangle | N104: 68.31 | O104: 18.7 | P104: 18 | Q104: 17 | R104: 10 | S104: 8.95 | T104: 0.375 | U104: 0.349 | V104: 25.7 | W104: 48.6 | X104: 820 | Y104: 111 | Z104: 91.1 | AA104: 6.61 | AB104: 332 | AC104: 74.2 | AD104: 66.4 | AE104: 4.21 | AF104: 752 | AG104: 119
A105: HSS | B105: HSS18x10x0.313 | C105: HSS18x10x5/16 | D105: 18x10x0.313 | E105: 18x10 | F105: 0.313 | M105: Rectangle | N105: 57.36 | O105: 15.7 | P105: 18 | Q105: 17.1 | R105: 10 | S105: 9.13 | T105: 0.3125 | U105: 0.291 | V105: 31.4 | W105: 58.9 | X105: 695 | Y105: 93.7 | Z105: 77.2 | AA105: 6.65 | AB105: 282 | AC105: 62.7 | AD105: 56.4 | AE105: 4.23 | AF105: 635 | AG105: 100
A106: HSS | B106: HSS18x10x0.250 | C106: HSS18x10x1/4 | D106: 18x10x0.250 | E106: 18x10 | F106: 0.250 | M106: Rectangle | N106: 46.24 | O106: 12.7 | P106: 18 | Q106: 17.3 | R106: 10 | S106: 9.30 | T106: 0.25 | U106: 0.233 | V106: 39.9 | W106: 74.3 | X106: 566 | Y106: 76 | Z106: 62.9 | AA106: 6.68 | AB106: 230 | AC106: 50.9 | AD106: 46.1 | AE106: 4.26 | AF106: 515 | AG106: 80.8
A107: HSS | B107: HSS18x8x0.625 | C107: HSS18x8x5/8 | D107: 18x8x0.625 | E107: 18x8 | F107: 0.625 | M107: Rectangle | N107: 101.85 | O107: 28 | P107: 18 | Q107: 16.3 | R107: 8 | S107: 6.26 | T107: 0.625 | U107: 0.581 | V107: 10.8 | W107: 28 | X107: 1100 | Y107: 156 | Z107: 122 | AA107: 6.27 | AB107: 306 | AC107: 87.8 | AD107: 76.6 | AE107: 3.31 | AF107: 797 | AG107: 149
A108: HSS | B108: HSS18x8x0.500 | C108: HSS18x8x1/2 | D108: 18x8x0.500 | E108: 18x8 | F108: 0.500 | M108: Rectangle | N108: 82.88 | O108: 22.8 | P108: 18 | Q108: 16.6 | R108: 8 | S108: 6.61 | T108: 0.5 | U108: 0.465 | V108: 14.2 | W108: 35.7 | X108: 913 | Y108: 128 | Z108: 101 | AA108: 6.33 | AB108: 257 | AC108: 72.5 | AD108: 64.2 | AE108: 3.36 | AF108: 659 | AG108: 122
A109: HSS | B109: HSS18x8x0.375 | C109: HSS18x8x3/8 | D109: 18x8x0.375 | E109: 18x8 | F109: 0.375 | M109: Rectangle | N109: 63.21 | O109: 17.3 | P109: 18 | Q109: 17 | R109: 8 | S109: 6.95 | T109: 0.375 | U109: 0.349 | V109: 19.9 | W109: 48.6 | X109: 711 | Y109: 98.7 | Z109: 79 | AA109: 6.4 | AB109: 202 | AC109: 56.1 | AD109: 50.5 | AE109: 3.41 | AF109: 510 | AG109: 94.1
A110: HSS | B110: HSS18x8x0.313 | C110: HSS18x8x5/16 | D110: 18x8x0.313 | E110: 18x8 | F110: 0.313 | M110: Rectangle | N110: 53.11 | O110: 14.6 | P110: 18 | Q110: 17.1 | R110: 8 | S110: 7.13 | T110: 0.3125 | U110: 0.291 | V110: 24.5 | W110: 58.9 | X110: 604 | Y110: 83.4 | Z110: 67.1 | AA110: 6.44 | AB110: 172 | AC110: 47.5 | AD110: 43 | AE110: 3.44 | AF110: 432 | AG110: 79.4
A111: HSS | B111: HSS18x8x0.250 | C111: HSS18x8x1/4 | D111: 18x8x0.250 | E111: 18x8 | F111: 0.250 | M111: Rectangle | N111: 42.84 | O111: 11.8 | P111: 18 | Q111: 17.3 | R111: 8 | S111: 7.30 | T111: 0.25 | U111: 0.233 | V111: 31.3 | W111: 74.3 | X111: 492 | Y111: 67.7 | Z111: 54.7 | AA111: 6.47 | AB111: 141 | AC111: 38.6 | AD111: 35.2 | AE111: 3.46 | AF111: 351 | AG111: 64.3
A112: HSS | B112: HSS18x6x0.750 | C112: HSS18x6x3/4 | D112: 18x6x0.750 | E112: 18x6 | F112: 0.750 | M112: Rectangle | N112: 109.91 | O112: 30.3 | P112: 18 | Q112: 15.9 | R112: 6 | S112: 3.91 | T112: 0.75 | U112: 0.698 | V112: 5.6 | W112: 22.8 | X112: 1060 | Y112: 158 | Z112: 118 | AA112: 5.92 | AB112: 179 | AC112: 70.4 | AD112: 59.6 | AE112: 2.43 | AF112: 530 | AG112: 127
A113: HSS | B113: HSS18x6x0.625 | C113: HSS18x6x5/8 | D113: 18x6x0.625 | E113: 18x6 | F113: 0.625 | M113: Rectangle | N113: 93.34 | O113: 25.7 | P113: 18 | Q113: 16.3 | R113: 6 | S113: 4.26 | T113: 0.625 | U113: 0.581 | V113: 7.33 | W113: 28 | X113: 923 | Y113: 135 | Z113: 103 | AA113: 6 | AB113: 158 | AC113: 61 | AD113: 52.7 | AE113: 2.48 | AF113: 462 | AG113: 109
A114: HSS | B114: HSS18x6x0.500 | C114: HSS18x6x1/2 | D114: 18x6x0.500 | E114: 18x6 | F114: 0.500 | M114: Rectangle | N114: 76.07 | O114: 20.9 | P114: 18 | Q114: 16.6 | R114: 6 | S114: 4.61 | T114: 0.5 | U114: 0.465 | V114: 9.9 | W114: 35.7 | X114: 770 | Y114: 112 | Z114: 85.6 | AA114: 6.07 | AB114: 134 | AC114: 50.7 | AD114: 44.6 | AE114: 2.53 | AF114: 387 | AG114: 89.9
A115: HSS | B115: HSS18x6x0.375 | C115: HSS18x6x3/8 | D115: 18x6x0.375 | E115: 18x6 | F115: 0.375 | M115: Rectangle | N115: 58.1 | O115: 16 | P115: 18 | Q115: 17 | R115: 6 | S115: 4.95 | T115: 0.375 | U115: 0.349 | V115: 14.2 | W115: 48.6 | X115: 602 | Y115: 86.4 | Z115: 66.9 | AA115: 6.15 | AB115: 106 | AC115: 39.5 | AD115: 35.5 | AE115: 2.58 | AF115: 302 | AG115: 69.5
A116: HSS | B116: HSS18x6x0.313 | C116: HSS18x6x5/16 | D116: 18x6x0.313 | E116: 18x6 | F116: 0.313 | M116: Rectangle | N116: 48.86 | O116: 13.4 | P116: 18 | Q116: 17.1 | R116: 6 | S116: 5.13 | T116: 0.3125 | U116: 0.291 | V116: 17.6 | W116: 58.9 | X116: 513 | Y116: 73.1 | Z116: 57 | AA116: 6.18 | AB116: 91.3 | AC116: 33.5 | AD116: 30.4 | AE116: 2.61 | AF116: 257 | AG116: 58.7
A117: HSS | B117: HSS18x6x0.250 | C117: HSS18x6x1/4 | D117: 18x6x0.250 | E117: 18x6 | F117: 0.250 | M117: Rectangle | N117: 39.43 | O117: 10.8 | P117: 18 | Q117: 17.3 | R117: 6 | S117: 5.3 | T117: 0.25 | U117: 0.233 | V117: 22.8 | W117: 74.3 | X117: 419 | Y117: 59.4 | Z117: 46.5 | AA117: 6.22 | AB117: 75.1 | AC117: 27.3 | AD117: 25 | AE117: 2.63 | AF117: 210 | AG117: 47.7
A118: HSS | B118: HSS16x12x1 | C118: HSS16x12x1 | D118: 16x12x1 | E118: 16x12 | F118: 1 | M118: Rectangle | N118: 168.18 | O118: 46.4 | P118: 16 | Q118: 13.2 | R118: 12 | S118: 9.21 | T118: 1 | U118: 0.93 | V118: 9.9 | W118: 14.2 | X118: 1570 | Y118: 244 | Z118: 196 | AA118: 5.82 | AB118: 1000 | AC118: 200 | AD118: 167 | AE118: 4.64 | AF118: 2030 | AG118: 307
A119: HSS | B119: HSS16x12x0.875 | C119: HSS16x12x7/8 | D119: 16x12x0.875 | E119: 16x12 | F119: 0.875 | M119: Rectangle | N119: 149.61 | O119: 41.2 | P119: 16 | Q119: 13.6 | R119: 12 | S119: 9.56 | T119: 0.875 | U119: 0.814 | V119: 11.7 | W119: 16.7 | X119: 1430 | Y119: 219 | Z119: 178 | AA119: 5.88 | AB119: 910 | AC119: 179 | AD119: 152 | AE119: 4.7 | AF119: 1830 | AG119: 274
A120: HSS | B120: HSS16x12x0.750 | C120: HSS16x12x3/4 | D120: 16x12x0.750 | E120: 16x12 | F120: 0.750 | M120: Rectangle | N120: 130.33 | O120: 35.9 | P120: 16 | Q120: 13.9 | R120: 12 | S120: 9.91 | T120: 0.75 | U120: 0.698 | V120: 14.2 | W120: 19.9 | X120: 1270 | Y120: 193 | Z120: 159 | AA120: 5.95 | AB120: 810 | AC120: 158 | AD120: 135 | AE120: 4.75 | AF120: 1610 | AG120: 240
A121: HSS | B121: HSS16x12x0.625 | C121: HSS16x12x5/8 | D121: 16x12x0.625 | E121: 16x12 | F121: 0.625 | M121: Rectangle | N121: 110.36 | O121: 30.3 | P121: 16 | Q121: 14.3 | R121: 12 | S121: 10.3 | T121: 0.625 | U121: 0.581 | V121: 17.7 | W121: 24.5 | X121: 1090 | Y121: 165 | Z121: 136 | AA121: 6 | AB121: 700 | AC121: 135 | AD121: 117 | AE121: 4.8 | AF121: 1370 | AG121: 204
A122: HSS | B122: HSS16x12x0.500 | C122: HSS16x12x1/2 | D122: 16x12x0.500 | E122: 16x12 | F122: 0.500 | M122: Rectangle | N122: 89.68 | O122: 24.6 | P122: 16 | Q122: 14.6 | R122: 12 | S122: 10.6 | T122: 0.5 | U122: 0.465 | V122: 22.8 | W122: 31.4 | X122: 904 | Y122: 135 | Z122: 113 | AA122: 6.06 | AB122: 581 | AC122: 111 | AD122: 96.8 | AE122: 4.86 | AF122: 1120 | AG122: 166
A123: HSS | B123: HSS16x12x0.375 | C123: HSS16x12x3/8 | D123: 16x12x0.375 | E123: 16x12 | F123: 0.375 | M123: Rectangle | N123: 68.31 | O123: 18.7 | P123: 16 | Q123: 15 | R123: 12 | S123: 11 | T123: 0.375 | U123: 0.349 | V123: 31.4 | W123: 42.8 | X123: 702 | Y123: 104 | Z123: 87.7 | AA123: 6.12 | AB123: 452 | AC123: 85.5 | AD123: 75.3 | AE123: 4.91 | AF123: 862 | AG123: 127
A124: HSS | B124: HSS16x12x0.313 | C124: HSS16x12x5/16 | D124: 16x12x0.313 | E124: 16x12 | F124: 0.313 | M124: Rectangle | N124: 57.36 | O124: 15.7 | P124: 16 | Q124: 15.1 | R124: 12 | S124: 11.1 | T124: 0.3125 | U124: 0.291 | V124: 38.2 | W124: 52 | X124: 595 | Y124: 87.7 | Z124: 74.4 | AA124: 6.15 | AB124: 384 | AC124: 72.2 | AD124: 64 | AE124: 4.94 | AF124: 727 | AG124: 107
A125: HSS | B125: HSS16x10x0.625 | C125: HSS16x10x5/8 | D125: 16x10x0.625 | E125: 16x10 | F125: 0.625 | M125: Rectangle | N125: 101.85 | O125: 28 | P125: 16 | Q125: 14.3 | R125: 10 | S125: 8.26 | T125: 0.625 | U125: 0.581 | V125: 14.2 | W125: 24.5 | X125: 953 | Y125: 147 | Z125: 119 | AA125: 5.84 | AB125: 459 | AC125: 106 | AD125: 91.8 | AE125: 4.05 | AF125: 1010 | AG125: 168
A126: HSS | B126: HSS16x10x0.500 | C126: HSS16x10x1/2 | D126: 16x10x0.500 | E126: 16x10 | F126: 0.500 | M126: Rectangle | N126: 82.88 | O126: 22.8 | P126: 16 | Q126: 14.6 | R126: 10 | S126: 8.61 | T126: 0.5 | U126: 0.465 | V126: 18.5 | W126: 31.4 | X126: 792 | Y126: 121 | Z126: 99 | AA126: 5.9 | AB126: 383 | AC126: 87.3 | AD126: 76.6 | AE126: 4.1 | AF126: 829 | AG126: 137
A127: HSS | B127: HSS16x10x0.375 | C127: HSS16x10x3/8 | D127: 16x10x0.375 | E127: 16x10 | F127: 0.375 | M127: Rectangle | N127: 63.21 | O127: 17.3 | P127: 16 | Q127: 15 | R127: 10 | S127: 8.95 | T127: 0.375 | U127: 0.349 | V127: 25.7 | W127: 42.8 | X127: 616 | Y127: 93 | Z127: 77 | AA127: 5.96 | AB127: 299 | AC127: 67.4 | AD127: 59.9 | AE127: 4.15 | AF127: 639 | AG127: 105
A128: HSS | B128: HSS16x10x0.313 | C128: HSS16x10x5/16 | D128: 16x10x0.313 | E128: 16x10 | F128: 0.313 | M128: Rectangle | N128: 53.11 | O128: 14.6 | P128: 16 | Q128: 15.1 | R128: 10 | S128: 9.13 | T128: 0.3125 | U128: 0.291 | V128: 31.4 | W128: 52 | X128: 523 | Y128: 78.6 | Z128: 65.4 | AA128: 5.99 | AB128: 255 | AC128: 57 | AD128: 50.9 | AE128: 4.18 | AF128: 539 | AG128: 88.7
A129: HSS | B129: HSS16x10x0.250 | C129: HSS16x10x1/4 | D129: 16x10x0.250 | E129: 16x10 | F129: 0.250 | M129: Rectangle | N129: 42.84 | O129: 11.8 | P129: 16 | Q129: 15.3 | R129: 10 | S129: 9.30 | T129: 0.25 | U129: 0.233 | V129: 39.9 | W129: 65.7 | X129: 426 | Y129: 63.7 | Z129: 53.3 | AA129: 6.02 | AB129: 208 | AC129: 46.3 | AD129: 41.6 | AE129: 4.21 | AF129: 437 | AG129: 71.7
A130: HSS | B130: HSS16x8x0.875 | C130: HSS16x8x7/8 | D130: 16x8x0.875 | E130: 16x8 | F130: 0.875 | M130: Rectangle | N130: 125.79 | O130: 34.7 | P130: 16 | Q130: 13.6 | R130: 8 | S130: 5.56 | T130: 0.875 | U130: 0.814 | V130: 6.83 | W130: 16.7 | X130: 1050 | Y130: 170 | Z130: 131 | AA130: 5.5 | AB130: 348 | AC130: 104 | AD130: 87 | AE130: 3.17 | AF130: 888 | AG130: 176
A131: HSS | B131: HSS16x8x0.750 | C131: HSS16x8x3/4 | D131: 16x8x0.750 | E131: 16x8 | F131: 0.750 | M131: Rectangle | N131: 109.91 | O131: 30.3 | P131: 16 | Q131: 13.9 | R131: 8 | S131: 5.91 | T131: 0.75 | U131: 0.698 | V131: 8.46 | W131: 19.9 | X131: 939 | Y131: 150 | Z131: 117 | AA131: 5.57 | AB131: 314 | AC131: 91.9 | AD131: 78.4 | AE131: 3.22 | AF131: 790 | AG131: 155
A132: HSS | B132: HSS16x8x0.625 | C132: HSS16x8x5/8 | D132: 16x8x0.625 | E132: 16x8 | F132: 0.625 | M132: Rectangle | N132: 93.34 | O132: 25.7 | P132: 16 | Q132: 14.3 | R132: 8 | S132: 6.26 | T132: 0.625 | U132: 0.581 | V132: 10.8 | W132: 24.5 | X132: 815 | Y132: 129 | Z132: 102 | AA132: 5.64 | AB132: 274 | AC132: 79.2 | AD132: 68.6 | AE132: 3.27 | AF132: 681 | AG132: 132
A133: HSS | B133: HSS16x8x0.500 | C133: HSS16x8x1/2 | D133: 16x8x0.500 | E133: 16x8 | F133: 0.500 | M133: Rectangle | N133: 76.07 | O133: 20.9 | P133: 16 | Q133: 14.6 | R133: 8 | S133: 6.6 | T133: 0.5 | U133: 0.465 | V133: 14.2 | W133: 31.4 | X133: 679 | Y133: 106 | Z133: 84.9 | AA133: 5.7 | AB133: 230 | AC133: 65.5 | AD133: 57.6 | AE133: 3.32 | AF133: 563 | AG133: 108
A134: HSS | B134: HSS16x8x0.375 | C134: HSS16x8x3/8 | D134: 16x8x0.375 | E134: 16x8 | F134: 0.375 | M134: Rectangle | N134: 58.1 | O134: 16 | P134: 16 | Q134: 15 | R134: 8 | S134: 6.95 | T134: 0.375 | U134: 0.349 | V134: 19.9 | W134: 42.8 | X134: 531 | Y134: 82.1 | Z134: 66.3 | AA134: 5.77 | AB134: 181 | AC134: 50.8 | AD134: 45.3 | AE134: 3.37 | AF134: 436 | AG134: 83.4
A135: HSS | B135: HSS16x8x0.313 | C135: HSS16x8x5/16 | D135: 16x8x0.313 | E135: 16x8 | F135: 0.313 | M135: Rectangle | N135: 48.86 | O135: 13.4 | P135: 16 | Q135: 15.1 | R135: 8 | S135: 7.13 | T135: 0.3125 | U135: 0.291 | V135: 24.5 | W135: 52 | X135: 451 | Y135: 69.4 | Z135: 56.4 | AA135: 5.8 | AB135: 155 | AC135: 43 | AD135: 38.7 | AE135: 3.4 | AF135: 369 | AG135: 70.4
A136: HSS | B136: HSS16x8x0.250 | C136: HSS16x8x1/4 | D136: 16x8x0.250 | E136: 16x8 | F136: 0.250 | M136: Rectangle | N136: 39.43 | O136: 10.8 | P136: 16 | Q136: 15.3 | R136: 8 | S136: 7.3 | T136: 0.25 | U136: 0.233 | V136: 31.3 | W136: 65.7 | X136: 368 | Y136: 56.4 | Z136: 46.1 | AA136: 5.83 | AB136: 127 | AC136: 35 | AD136: 31.7 | AE136: 3.42 | AF136: 300 | AG136: 57
A137: HSS | B137: HSS16x6x0.625 | C137: HSS16x6x5/8 | D137: 16x6x0.625 | E137: 16x6 | F137: 0.625 | M137: Rectangle | N137: 84.84 | O137: 23.3 | P137: 16 | Q137: 14.3 | R137: 6 | S137: 4.26 | T137: 0.625 | U137: 0.581 | V137: 7.33 | W137: 24.5 | X137: 677 | Y137: 111 | Z137: 84.6 | AA137: 5.38 | AB137: 141 | AC137: 54.7 | AD137: 46.9 | AE137: 2.46 | AF137: 398 | AG137: 96.3
A138: HSS | B138: HSS16x6x0.500 | C138: HSS16x6x1/2 | D138: 16x6x0.500 | E138: 16x6 | F138: 0.500 | M138: Rectangle | N138: 69.27 | O138: 19 | P138: 16 | Q138: 14.6 | R138: 6 | S138: 4.61 | T138: 0.5 | U138: 0.465 | V138: 9.9 | W138: 31.4 | X138: 567 | Y138: 91.7 | Z138: 70.9 | AA138: 5.46 | AB138: 120 | AC138: 45.5 | AD138: 39.9 | AE138: 2.51 | AF138: 333 | AG138: 79.6
A139: HSS | B139: HSS16x6x0.375 | C139: HSS16x6x3/8 | D139: 16x6x0.375 | E139: 16x6 | F139: 0.375 | M139: Rectangle | N139: 53 | O139: 14.6 | P139: 16 | Q139: 15 | R139: 6 | S139: 4.95 | T139: 0.375 | U139: 0.349 | V139: 14.2 | W139: 42.8 | X139: 445 | Y139: 71.1 | Z139: 55.6 | AA139: 5.53 | AB139: 95.3 | AC139: 35.5 | AD139: 31.8 | AE139: 2.56 | AF139: 260 | AG139: 61.6
A140: HSS | B140: HSS16x6x0.313 | C140: HSS16x6x5/16 | D140: 16x6x0.313 | E140: 16x6 | F140: 0.313 | M140: Rectangle | N140: 44.6 | O140: 12.2 | P140: 16 | Q140: 15.1 | R140: 6 | S140: 5.13 | T140: 0.3125 | U140: 0.291 | V140: 17.6 | W140: 52 | X140: 379 | Y140: 60.3 | Z140: 47.4 | AA140: 5.57 | AB140: 81.8 | AC140: 30.2 | AD140: 27.3 | AE140: 2.58 | AF140: 222 | AG140: 52.1
A141: HSS | B141: HSS16x6x0.250 | C141: HSS16x6x1/4 | D141: 16x6x0.250 | E141: 16x6 | F141: 0.250 | M141: Rectangle | N141: 36.03 | O141: 9.9 | P141: 16 | Q141: 15.3 | R141: 6 | S141: 5.30 | T141: 0.25 | U141: 0.233 | V141: 22.8 | W141: 65.7 | X141: 311 | Y141: 49 | Z141: 38.8 | AA141: 5.6 | AB141: 67.4 | AC141: 24.7 | AD141: 22.5 | AE141: 2.61 | AF141: 181 | AG141: 42.3
A142: HSS | B142: HSS16x6x0.188 | C142: HSS16x6x3/16 | D142: 16x6x0.188 | E142: 16x6 | F142: 0.188 | M142: Rectangle | N142: 27.29 | O142: 7.46 | P142: 16 | Q142: 15.5 | R142: 6 | S142: 5.48 | T142: 0.1875 | U142: 0.174 | V142: 31.5 | W142: 89 | X142: 237 | Y142: 37.2 | Z142: 29.6 | AA142: 5.64 | AB142: 51.8 | AC142: 18.8 | AD142: 17.3 | AE142: 2.64 | AF142: 138 | AG142: 32.1
A143: HSS | B143: HSS16x4x0.625 | C143: HSS16x4x5/8 | D143: 16x4x0.625 | E143: 16x4 | F143: 0.625 | M143: Rectangle | N143: 76.33 | O143: 21 | P143: 16 | Q143: 14.3 | R143: 4 | S143: 2.26 | T143: 0.625 | U143: 0.581 | V143: 3.88 | W143: 24.5 | X143: 539 | Y143: 92.9 | Z143: 67.3 | AA143: 5.06 | AB143: 54.1 | AC143: 32.5 | AD143: 27 | AE143: 1.6 | AF143: 174 | AG143: 60.5
A144: HSS | B144: HSS16x4x0.500 | C144: HSS16x4x1/2 | D144: 16x4x0.500 | E144: 16x4 | F144: 0.500 | M144: Rectangle | N144: 62.46 | O144: 17.2 | P144: 16 | Q144: 14.6 | R144: 4 | S144: 2.6 | T144: 0.5 | U144: 0.465 | V144: 5.6 | W144: 31.4 | X144: 455 | Y144: 77.3 | Z144: 56.9 | AA144: 5.15 | AB144: 47 | AC144: 27.4 | AD144: 23.5 | AE144: 1.65 | AF144: 150 | AG144: 50.7
A145: HSS | B145: HSS16x4x0.375 | C145: HSS16x4x3/8 | D145: 16x4x0.375 | E145: 16x4 | F145: 0.375 | M145: Rectangle | N145: 47.9 | O145: 13.2 | P145: 16 | Q145: 15 | R145: 4 | S145: 2.95 | T145: 0.375 | U145: 0.349 | V145: 8.46 | W145: 42.8 | X145: 360 | Y145: 60.2 | Z145: 45 | AA145: 5.23 | AB145: 38.3 | AC145: 21.7 | AD145: 19.1 | AE145: 1.71 | AF145: 120 | AG145: 39.7
A146: HSS | B146: HSS16x4x0.313 | C146: HSS16x4x5/16 | D146: 16x4x0.313 | E146: 16x4 | F146: 0.313 | M146: Rectangle | N146: 40.35 | O146: 11.1 | P146: 16 | Q146: 15.1 | R146: 4 | S146: 3.13 | T146: 0.3125 | U146: 0.291 | V146: 10.7 | W146: 52 | X146: 308 | Y146: 51.1 | Z146: 38.5 | AA146: 5.27 | AB146: 33.2 | AC146: 18.5 | AD146: 16.6 | AE146: 1.73 | AF146: 103 | AG146: 33.8
A147: HSS | B147: HSS16x4x0.250 | C147: HSS16x4x1/4 | D147: 16x4x0.250 | E147: 16x4 | F147: 0.250 | M147: Rectangle | N147: 32.63 | O147: 8.96 | P147: 16 | Q147: 15.3 | R147: 4 | S147: 3.3 | T147: 0.25 | U147: 0.233 | V147: 14.2 | W147: 65.7 | X147: 253 | Y147: 41.7 | Z147: 31.6 | AA147: 5.31 | AB147: 27.7 | AC147: 15.2 | AD147: 13.8 | AE147: 1.76 | AF147: 85.2 | AG147: 27.6
A148: HSS | B148: HSS16x4x0.188 | C148: HSS16x4x3/16 | D148: 16x4x0.188 | E148: 16x4 | F148: 0.188 | M148: Rectangle | N148: 24.73 | O148: 6.76 | P148: 16 | Q148: 15.5 | R148: 4 | S148: 3.48 | T148: 0.1875 | U148: 0.174 | V148: 20 | W148: 89 | X148: 193 | Y148: 31.7 | Z148: 24.2 | AA148: 5.35 | AB148: 21.5 | AC148: 11.7 | AD148: 10.8 | AE148: 1.78 | AF148: 65.5 | AG148: 21.1
A149: HSS | B149: HSS14x12x0.625 | C149: HSS14x12x5/8 | D149: 14x12x0.625 | E149: 14x12 | F149: 0.625 | M149: Rectangle | N149: 101.85 | O149: 28 | P149: 14 | Q149: 12.3 | R149: 12 | S149: 10.3 | T149: 0.625 | U149: 0.581 | V149: 17.7 | W149: 21.1 | X149: 792 | Y149: 135 | Z149: 113 | AA149: 5.32 | AB149: 624 | AC149: 122 | AD149: 104 | AE149: 4.72 | AF149: 1120 | AG149: 177
A150: HSS | B150: HSS14x12x0.500 | C150: HSS14x12x1/2 | D150: 14x12x0.500 | E150: 14x12 | F150: 0.500 | M150: Rectangle | N150: 82.88 | O150: 22.8 | P150: 14 | Q150: 12.6 | R150: 12 | S150: 10.6 | T150: 0.5 | U150: 0.465 | V150: 22.8 | W150: 27.1 | X150: 658 | Y150: 111 | Z150: 94 | AA150: 5.38 | AB150: 519 | AC150: 100 | AD150: 86.5 | AE150: 4.78 | AF150: 921 | AG150: 145
A151: HSS | B151: HSS14x12x0.375 | C151: HSS14x12x3/8 | D151: 14x12x0.375 | E151: 14x12 | F151: 0.375 | M151: Rectangle | N151: 63.21 | O151: 17.3 | P151: 14 | Q151: 13 | R151: 12 | S151: 11.0 | T151: 0.375 | U151: 0.349 | V151: 31.4 | W151: 37.1 | X151: 512 | Y151: 85.9 | Z151: 73.2 | AA151: 5.43 | AB151: 405 | AC151: 77.4 | AD151: 67.4 | AE151: 4.83 | AF151: 708 | AG151: 111
A152: HSS | B152: HSS14x12x0.313 | C152: HSS14x12x5/16 | D152: 14x12x0.313 | E152: 14x12 | F152: 0.313 | M152: Rectangle | N152: 53.11 | O152: 14.6 | P152: 14 | Q152: 13.1 | R152: 12 | S152: 11.1 | T152: 0.3125 | U152: 0.291 | V152: 38.2 | W152: 45.1 | X152: 435 | Y152: 72.6 | Z152: 62.1 | AA152: 5.46 | AB152: 344 | AC152: 65.4 | AD152: 57.3 | AE152: 4.86 | AF152: 598 | AG152: 93.3
A153: HSS | B153: HSS14x12x0.250 | C153: HSS14x12x1/4 | D153: 14x12x0.250 | E153: 14x12 | F153: 0.250 | M153: Rectangle | N153: 42.84 | O153: 11.8 | P153: 14 | Q153: 13.3 | R153: 12 | S153: 11.3 | T153: 0.25 | U153: 0.233 | V153: 48.5 | W153: 57.1 | X153: 354 | Y153: 58.9 | Z153: 50.6 | AA153: 5.49 | AB153: 280 | AC153: 53 | AD153: 46.7 | AE153: 4.88 | AF153: 484 | AG153: 75.4
A154: HSS | B154: HSS14x10x0.875 | C154: HSS14x10x7/8 | D154: 14x10x0.875 | E154: 14x10 | F154: 0.875 | M154: Rectangle | N154: 125.79 | O154: 34.7 | P154: 14 | Q154: 11.6 | R154: 10 | S154: 7.56 | T154: 0.875 | U154: 0.814 | V154: 9.29 | W154: 14.2 | X154: 886 | Y154: 158 | Z154: 127 | AA154: 5.05 | AB154: 522 | AC154: 125 | AD154: 104 | AE154: 3.88 | AF154: 1100 | AG154: 195
A155: HSS | B155: HSS14x10x0.750 | C155: HSS14x10x3/4 | D155: 14x10x0.750 | E155: 14x10 | F155: 0.750 | M155: Rectangle | N155: 109.91 | O155: 30.3 | P155: 14 | Q155: 11.9 | R155: 10 | S155: 7.91 | T155: 0.75 | U155: 0.698 | V155: 11.3 | W155: 17.1 | X155: 792 | Y155: 140 | Z155: 113 | AA155: 5.11 | AB155: 468 | AC155: 111 | AD155: 93.6 | AE155: 3.93 | AF155: 970 | AG155: 171
A156: HSS | B156: HSS14x10x0.625 | C156: HSS14x10x5/8 | D156: 14x10x0.625 | E156: 14x10 | F156: 0.625 | M156: Rectangle | N156: 93.34 | O156: 25.7 | P156: 14 | Q156: 12.3 | R156: 10 | S156: 8.26 | T156: 0.625 | U156: 0.581 | V156: 14.2 | W156: 21.1 | X156: 687 | Y156: 120 | Z156: 98.2 | AA156: 5.17 | AB156: 407 | AC156: 95.1 | AD156: 81.5 | AE156: 3.98 | AF156: 832 | AG156: 146
A157: HSS | B157: HSS14x10x0.500 | C157: HSS14x10x1/2 | D157: 14x10x0.500 | E157: 14x10 | F157: 0.500 | M157: Rectangle | N157: 76.07 | O157: 20.9 | P157: 14 | Q157: 12.6 | R157: 10 | S157: 8.6 | T157: 0.5 | U157: 0.465 | V157: 18.5 | W157: 27.1 | X157: 573 | Y157: 98.8 | Z157: 81.8 | AA157: 5.23 | AB157: 341 | AC157: 78.5 | AD157: 68.1 | AE157: 4.04 | AF157: 685 | AG157: 120
A158: HSS | B158: HSS14x10x0.375 | C158: HSS14x10x3/8 | D158: 14x10x0.375 | E158: 14x10 | F158: 0.375 | M158: Rectangle | N158: 58.1 | O158: 16 | P158: 14 | Q158: 13 | R158: 10 | S158: 8.95 | T158: 0.375 | U158: 0.349 | V158: 25.7 | W158: 37.1 | X158: 447 | Y158: 76.3 | Z158: 63.9 | AA158: 5.29 | AB158: 267 | AC158: 60.7 | AD158: 53.4 | AE158: 4.09 | AF158: 528 | AG158: 91.8
A159: HSS | B159: HSS14x10x0.313 | C159: HSS14x10x5/16 | D159: 14x10x0.313 | E159: 14x10 | F159: 0.313 | M159: Rectangle | N159: 48.86 | O159: 13.4 | P159: 14 | Q159: 13.1 | R159: 10 | S159: 9.13 | T159: 0.3125 | U159: 0.291 | V159: 31.4 | W159: 45.1 | X159: 380 | Y159: 64.6 | Z159: 54.3 | AA159: 5.32 | AB159: 227 | AC159: 51.4 | AD159: 45.5 | AE159: 4.12 | AF159: 446 | AG159: 77.4
A160: HSS | B160: HSS14x10x0.250 | C160: HSS14x10x1/4 | D160: 14x10x0.250 | E160: 14x10 | F160: 0.250 | M160: Rectangle | N160: 39.43 | O160: 10.8 | P160: 14 | Q160: 13.3 | R160: 10 | S160: 9.3 | T160: 0.25 | U160: 0.233 | V160: 39.9 | W160: 57.1 | X160: 310 | Y160: 52.4 | Z160: 44.3 | AA160: 5.35 | AB160: 186 | AC160: 41.8 | AD160: 37.2 | AE160: 4.14 | AF160: 362 | AG160: 62.6
A161: HSS | B161: HSS14x8x0.625 | C161: HSS14x8x5/8 | D161: 14x8x0.625 | E161: 14x8 | F161: 0.625 | M161: Rectangle | N161: 84.84 | O161: 23.3 | P161: 14 | Q161: 12.3 | R161: 8 | S161: 6.26 | T161: 0.625 | U161: 0.581 | V161: 10.8 | W161: 21.1 | X161: 582 | Y161: 104 | Z161: 83.2 | AA161: 5 | AB161: 242 | AC161: 70.5 | AD161: 60.6 | AE161: 3.22 | AF161: 566 | AG161: 115
A162: HSS | B162: HSS14x8x0.500 | C162: HSS14x8x1/2 | D162: 14x8x0.500 | E162: 14x8 | F162: 0.500 | M162: Rectangle | N162: 69.27 | O162: 19 | P162: 14 | Q162: 12.6 | R162: 8 | S162: 6.61 | T162: 0.5 | U162: 0.465 | V162: 14.2 | W162: 27.1 | X162: 487 | Y162: 86.2 | Z162: 69.6 | AA162: 5.06 | AB162: 204 | AC162: 58.5 | AD162: 51 | AE162: 3.27 | AF162: 469 | AG162: 94.5
A163: HSS | B163: HSS14x8x0.375 | C163: HSS14x8x3/8 | D163: 14x8x0.375 | E163: 14x8 | F163: 0.375 | M163: Rectangle | N163: 53 | O163: 14.6 | P163: 14 | Q163: 13 | R163: 8 | S163: 6.95 | T163: 0.375 | U163: 0.349 | V163: 19.9 | W163: 37.1 | X163: 382 | Y163: 66.8 | Z163: 54.6 | AA163: 5.12 | AB163: 161 | AC163: 45.5 | AD163: 40.2 | AE163: 3.32 | AF163: 363 | AG163: 72.7
A164: HSS | B164: HSS14x8x0.313 | C164: HSS14x8x5/16 | D164: 14x8x0.313 | E164: 14x8 | F164: 0.313 | M164: Rectangle | N164: 44.6 | O164: 12.2 | P164: 14 | Q164: 13.1 | R164: 8 | S164: 7.13 | T164: 0.3125 | U164: 0.291 | V164: 24.5 | W164: 45.1 | X164: 325 | Y164: 56.6 | Z164: 46.5 | AA164: 5.15 | AB164: 138 | AC164: 38.6 | AD164: 34.4 | AE164: 3.35 | AF164: 308 | AG164: 61.4
A165: HSS | B165: HSS14x8x0.250 | C165: HSS14x8x1/4 | D165: 14x8x0.250 | E165: 14x8 | F165: 0.250 | M165: Rectangle | N165: 36.03 | O165: 9.9 | P165: 14 | Q165: 13.3 | R165: 8 | S165: 7.30 | T165: 0.25 | U165: 0.233 | V165: 31.3 | W165: 57.1 | X165: 266 | Y165: 46 | Z165: 38 | AA165: 5.19 | AB165: 113 | AC165: 31.4 | AD165: 28.2 | AE165: 3.38 | AF165: 250 | AG165: 49.8
A166: HSS | B166: HSS14x8x0.188 | C166: HSS14x8x3/16 | D166: 14x8x0.188 | E166: 14x8 | F166: 0.188 | M166: Rectangle | N166: 27.29 | O166: 7.46 | P166: 14 | Q166: 13.5 | R166: 8 | S166: 7.48 | T166: 0.1875 | U166: 0.174 | V166: 43 | W166: 77.5 | X166: 203 | Y166: 34.9 | Z166: 29 | AA166: 5.22 | AB166: 86.4 | AC166: 23.8 | AD166: 21.6 | AE166: 3.4 | AF166: 190 | AG166: 37.6
A167: HSS | B167: HSS14x6x0.625 | C167: HSS14x6x5/8 | D167: 14x6x0.625 | E167: 14x6 | F167: 0.625 | M167: Rectangle | N167: 76.33 | O167: 21 | P167: 14 | Q167: 12.3 | R167: 6 | S167: 4.26 | T167: 0.625 | U167: 0.581 | V167: 7.33 | W167: 21.1 | X167: 478 | Y167: 88.7 | Z167: 68.3 | AA167: 4.77 | AB167: 124 | AC167: 48.4 | AD167: 41.2 | AE167: 2.43 | AF167: 334 | AG167: 83.7
A168: HSS | B168: HSS14x6x0.500 | C168: HSS14x6x1/2 | D168: 14x6x0.500 | E168: 14x6 | F168: 0.500 | M168: Rectangle | N168: 62.46 | O168: 17.2 | P168: 14 | Q168: 12.6 | R168: 6 | S168: 4.61 | T168: 0.5 | U168: 0.465 | V168: 9.9 | W168: 27.1 | X168: 402 | Y168: 73.6 | Z168: 57.4 | AA168: 4.84 | AB168: 105 | AC168: 40.4 | AD168: 35.1 | AE168: 2.48 | AF168: 279 | AG168: 69.3
A169: HSS | B169: HSS14x6x0.375 | C169: HSS14x6x3/8 | D169: 14x6x0.375 | E169: 14x6 | F169: 0.375 | M169: Rectangle | N169: 47.9 | O169: 13.2 | P169: 14 | Q169: 13 | R169: 6 | S169: 4.95 | T169: 0.375 | U169: 0.349 | V169: 14.2 | W169: 37.1 | X169: 317 | Y169: 57.3 | Z169: 45.3 | AA169: 4.91 | AB169: 84.1 | AC169: 31.6 | AD169: 28 | AE169: 2.53 | AF169: 219 | AG169: 53.7
A170: HSS | B170: HSS14x6x0.313 | C170: HSS14x6x5/16 | D170: 14x6x0.313 | E170: 14x6 | F170: 0.313 | M170: Rectangle | N170: 40.35 | O170: 11.1 | P170: 14 | Q170: 13.1 | R170: 6 | S170: 5.13 | T170: 0.3125 | U170: 0.291 | V170: 17.6 | W170: 45.1 | X170: 271 | Y170: 48.6 | Z170: 38.7 | AA170: 4.94 | AB170: 72.3 | AC170: 26.9 | AD170: 24.1 | AE170: 2.55 | AF170: 186 | AG170: 45.5
A171: HSS | B171: HSS14x6x0.250 | C171: HSS14x6x1/4 | D171: 14x6x0.250 | E171: 14x6 | F171: 0.250 | M171: Rectangle | N171: 32.63 | O171: 8.96 | P171: 14 | Q171: 13.3 | R171: 6 | S171: 5.3 | T171: 0.25 | U171: 0.233 | V171: 22.8 | W171: 57.1 | X171: 222 | Y171: 39.6 | Z171: 31.7 | AA171: 4.98 | AB171: 59.6 | AC171: 22 | AD171: 19.9 | AE171: 2.58 | AF171: 152 | AG171: 36.9
A172: HSS | B172: HSS14x6x0.188 | C172: HSS14x6x3/16 | D172: 14x6x0.188 | E172: 14x6 | F172: 0.188 | M172: Rectangle | N172: 24.73 | O172: 6.76 | P172: 14 | Q172: 13.5 | R172: 6 | S172: 5.48 | T172: 0.1875 | U172: 0.174 | V172: 31.5 | W172: 77.5 | X172: 170 | Y172: 30.1 | Z172: 24.3 | AA172: 5.01 | AB172: 45.9 | AC172: 16.7 | AD172: 15.3 | AE172: 2.61 | AF172: 116 | AG172: 28
A173: HSS | B173: HSS14x4x0.625 | C173: HSS14x4x5/8 | D173: 14x4x0.625 | E173: 14x4 | F173: 0.625 | M173: Rectangle | N173: 67.82 | O173: 18.7 | P173: 14 | Q173: 12.3 | R173: 4 | S173: 2.26 | T173: 0.625 | U173: 0.581 | V173: 3.88 | W173: 21.1 | X173: 373 | Y173: 73.1 | Z173: 53.3 | AA173: 4.47 | AB173: 47.2 | AC173: 28.5 | AD173: 23.6 | AE173: 1.59 | AF173: 148 | AG173: 52.6
A174: HSS | B174: HSS14x4x0.500 | C174: HSS14x4x1/2 | D174: 14x4x0.500 | E174: 14x4 | F174: 0.500 | M174: Rectangle | N174: 55.66 | O174: 15.3 | P174: 14 | Q174: 12.6 | R174: 4 | S174: 2.6 | T174: 0.5 | U174: 0.465 | V174: 5.6 | W174: 27.1 | X174: 317 | Y174: 61 | Z174: 45.3 | AA174: 4.55 | AB174: 41.2 | AC174: 24.1 | AD174: 20.6 | AE174: 1.64 | AF174: 127 | AG174: 44.1
A175: HSS | B175: HSS14x4x0.375 | C175: HSS14x4x3/8 | D175: 14x4x0.375 | E175: 14x4 | F175: 0.375 | M175: Rectangle | N175: 42.79 | O175: 11.8 | P175: 14 | Q175: 13 | R175: 4 | S175: 2.95 | T175: 0.375 | U175: 0.349 | V175: 8.46 | W175: 37.1 | X175: 252 | Y175: 47.8 | Z175: 36 | AA175: 4.63 | AB175: 33.6 | AC175: 19.1 | AD175: 16.8 | AE175: 1.69 | AF175: 102 | AG175: 34.6
A176: HSS | B176: HSS14x4x0.313 | C176: HSS14x4x5/16 | D176: 14x4x0.313 | E176: 14x4 | F176: 0.313 | M176: Rectangle | N176: 36.1 | O176: 9.92 | P176: 14 | Q176: 13.1 | R176: 4 | S176: 3.13 | T176: 0.3125 | U176: 0.291 | V176: 10.7 | W176: 45.1 | X176: 216 | Y176: 40.6 | Z176: 30.9 | AA176: 4.67 | AB176: 29.2 | AC176: 16.4 | AD176: 14.6 | AE176: 1.72 | AF176: 87.7 | AG176: 29.5
A177: HSS | B177: HSS14x4x0.250 | C177: HSS14x4x1/4 | D177: 14x4x0.250 | E177: 14x4 | F177: 0.250 | M177: Rectangle | N177: 29.23 | O177: 8.03 | P177: 14 | Q177: 13.3 | R177: 4 | S177: 3.3 | T177: 0.25 | U177: 0.233 | V177: 14.2 | W177: 57.1 | X177: 178 | Y177: 33.2 | Z177: 25.4 | AA177: 4.71 | AB177: 24.4 | AC177: 13.5 | AD177: 12.2 | AE177: 1.74 | AF177: 72.4 | AG177: 24.1
A178: HSS | B178: HSS14x4x0.188 | C178: HSS14x4x3/16 | D178: 14x4x0.188 | E178: 14x4 | F178: 0.188 | M178: Rectangle | N178: 22.18 | O178: 6.06 | P178: 14 | Q178: 13.5 | R178: 4 | S178: 3.48 | T178: 0.1875 | U178: 0.174 | V178: 20 | W178: 77.5 | X178: 137 | Y178: 25.3 | Z178: 19.5 | AA178: 4.74 | AB178: 19 | AC178: 10.3 | AD178: 9.48 | AE178: 1.77 | AF178: 55.8 | AG178: 18.4
A179: HSS | B179: HSS12x10x0.625 | C179: HSS12x10x5/8 | D179: 12x10x0.625 | E179: 12x10 | F179: 0.625 | M179: Rectangle | N179: 84.84 | O179: 23.3 | P179: 12 | Q179: 10.3 | R179: 10 | S179: 8.26 | T179: 0.625 | U179: 0.581 | V179: 14.2 | W179: 17.7 | X179: 472 | Y179: 95.3 | Z179: 78.7 | AA179: 4.5 | AB179: 356 | AC179: 84.1 | AD179: 71.2 | AE179: 3.9 | AF179: 661 | AG179: 124
A180: HSS | B180: HSS12x10x0.500 | C180: HSS12x10x1/2 | D180: 12x10x0.500 | E180: 12x10 | F180: 0.500 | M180: Rectangle | N180: 69.27 | O180: 19 | P180: 12 | Q180: 10.6 | R180: 10 | S180: 8.6 | T180: 0.5 | U180: 0.465 | V180: 18.5 | W180: 22.8 | X180: 395 | Y180: 78.8 | Z180: 65.9 | AA180: 4.56 | AB180: 298 | AC180: 69.6 | AD180: 59.7 | AE180: 3.96 | AF180: 545 | AG180: 102
A181: HSS | B181: HSS12x10x0.375 | C181: HSS12x10x3/8 | D181: 12x10x0.375 | E181: 12x10 | F181: 0.375 | M181: Rectangle | N181: 53 | O181: 14.6 | P181: 12 | Q181: 11 | R181: 10 | S181: 8.95 | T181: 0.375 | U181: 0.349 | V181: 25.7 | W181: 31.4 | X181: 310 | Y181: 61.1 | Z181: 51.6 | AA181: 4.61 | AB181: 234 | AC181: 54 | AD181: 46.9 | AE181: 4.01 | AF181: 421 | AG181: 78.3
A182: HSS | B182: HSS12x10x0.313 | C182: HSS12x10x5/16 | D182: 12x10x0.313 | E182: 12x10 | F182: 0.313 | M182: Rectangle | N182: 44.6 | O182: 12.2 | P182: 12 | Q182: 11.1 | R182: 10 | S182: 9.13 | T182: 0.3125 | U182: 0.291 | V182: 31.4 | W182: 38.2 | X182: 264 | Y182: 51.7 | Z182: 44 | AA182: 4.64 | AB182: 200 | AC182: 45.7 | AD182: 40 | AE182: 4.04 | AF182: 356 | AG182: 66.1
A183: HSS | B183: HSS12x10x0.250 | C183: HSS12x10x1/4 | D183: 12x10x0.250 | E183: 12x10 | F183: 0.250 | M183: Rectangle | N183: 36.03 | O183: 9.9 | P183: 12 | Q183: 11.3 | R183: 10 | S183: 9.3 | T183: 0.25 | U183: 0.233 | V183: 39.9 | W183: 48.5 | X183: 216 | Y183: 42.1 | Z183: 36 | AA183: 4.67 | AB183: 164 | AC183: 37.2 | AD183: 32.7 | AE183: 4.07 | AF183: 289 | AG183: 53.5
A184: HSS | B184: HSS12x10x0.188 | C184: HSS12x10x3/16 | D184: 12x10x0.188 | E184: 12x10 | F184: 0.188 | M184: Rectangle | N184: 27.29 | O184: 7.46 | P184: 12 | Q184: 11.5 | R184: 10 | S184: 9.48 | T184: 0.1875 | U184: 0.174 | V184: 54.5 | W184: 66 | X184: 165 | Y184: 31.9 | Z184: 27.5 | AA184: 4.7 | AB184: 125 | AC184: 28.2 | AD184: 25 | AE184: 4.09 | AF184: 219 | AG184: 40.4
A185: HSS | B185: HSS12x8x0.625 | C185: HSS12x8x5/8 | D185: 12x8x0.625 | E185: 12x8 | F185: 0.625 | M185: Rectangle | N185: 76.33 | O185: 21 | P185: 12 | Q185: 10.3 | R185: 8 | S185: 6.26 | T185: 0.625 | U185: 0.581 | V185: 10.8 | W185: 17.7 | X185: 397 | Y185: 82.1 | Z185: 66.1 | AA185: 4.34 | AB185: 210 | AC185: 61.9 | AD185: 52.5 | AE185: 3.16 | AF185: 454 | AG185: 97.7
A186: HSS | B186: HSS12x8x0.500 | C186: HSS12x8x1/2 | D186: 12x8x0.500 | E186: 12x8 | F186: 0.500 | M186: Rectangle | N186: 62.46 | O186: 17.2 | P186: 12 | Q186: 10.6 | R186: 8 | S186: 6.6 | T186: 0.5 | U186: 0.465 | V186: 14.2 | W186: 22.8 | X186: 333 | Y186: 68.1 | Z186: 55.6 | AA186: 4.41 | AB186: 178 | AC186: 51.5 | AD186: 44.4 | AE186: 3.21 | AF186: 377 | AG186: 80.4
A187: HSS | B187: HSS12x8x0.375 | C187: HSS12x8x3/8 | D187: 12x8x0.375 | E187: 12x8 | F187: 0.375 | M187: Rectangle | N187: 47.9 | O187: 13.2 | P187: 12 | Q187: 11 | R187: 8 | S187: 6.95 | T187: 0.375 | U187: 0.349 | V187: 19.9 | W187: 31.4 | X187: 262 | Y187: 53 | Z187: 43.7 | AA187: 4.47 | AB187: 140 | AC187: 40.1 | AD187: 35.1 | AE187: 3.27 | AF187: 293 | AG187: 62.1
A188: HSS | B188: HSS12x8x0.313 | C188: HSS12x8x5/16 | D188: 12x8x0.313 | E188: 12x8 | F188: 0.313 | M188: Rectangle | N188: 40.35 | O188: 11.1 | P188: 12 | Q188: 11.1 | R188: 8 | S188: 7.13 | T188: 0.3125 | U188: 0.291 | V188: 24.5 | W188: 38.2 | X188: 224 | Y188: 44.9 | Z188: 37.4 | AA188: 4.5 | AB188: 120 | AC188: 34.1 | AD188: 30.1 | AE188: 3.29 | AF188: 248 | AG188: 52.4
A189: HSS | B189: HSS12x8x0.250 | C189: HSS12x8x1/4 | D189: 12x8x0.250 | E189: 12x8 | F189: 0.250 | M189: Rectangle | N189: 32.63 | O189: 8.96 | P189: 12 | Q189: 11.3 | R189: 8 | S189: 7.3 | T189: 0.25 | U189: 0.233 | V189: 31.3 | W189: 48.5 | X189: 184 | Y189: 36.6 | Z189: 30.6 | AA189: 4.53 | AB189: 98.8 | AC189: 27.8 | AD189: 24.7 | AE189: 3.32 | AF189: 202 | AG189: 42.5
A190: HSS | B190: HSS12x8x0.188 | C190: HSS12x8x3/16 | D190: 12x8x0.188 | E190: 12x8 | F190: 0.188 | M190: Rectangle | N190: 24.73 | O190: 6.76 | P190: 12 | Q190: 11.5 | R190: 8 | S190: 7.48 | T190: 0.1875 | U190: 0.174 | V190: 43 | W190: 66 | X190: 140 | Y190: 27.8 | Z190: 23.4 | AA190: 4.56 | AB190: 75.7 | AC190: 21.1 | AD190: 18.9 | AE190: 3.35 | AF190: 153 | AG190: 32.2
A191: HSS | B191: HSS12x6x0.625 | C191: HSS12x6x5/8 | D191: 12x6x0.625 | E191: 12x6 | F191: 0.625 | M191: Rectangle | N191: 67.82 | O191: 18.7 | P191: 12 | Q191: 10.3 | R191: 6 | S191: 4.26 | T191: 0.625 | U191: 0.581 | V191: 7.33 | W191: 17.7 | X191: 321 | Y191: 68.8 | Z191: 53.4 | AA191: 4.14 | AB191: 107 | AC191: 42.1 | AD191: 35.5 | AE191: 2.39 | AF191: 271 | AG191: 71.1
A192: HSS | B192: HSS12x6x0.500 | C192: HSS12x6x1/2 | D192: 12x6x0.500 | E192: 12x6 | F192: 0.500 | M192: Rectangle | N192: 55.66 | O192: 15.3 | P192: 12 | Q192: 10.6 | R192: 6 | S192: 4.61 | T192: 0.5 | U192: 0.465 | V192: 9.9 | W192: 22.8 | X192: 271 | Y192: 57.4 | Z192: 45.2 | AA192: 4.21 | AB192: 91.1 | AC192: 35.2 | AD192: 30.4 | AE192: 2.44 | AF192: 227 | AG192: 59
A193: HSS | B193: HSS12x6x0.375 | C193: HSS12x6x3/8 | D193: 12x6x0.375 | E193: 12x6 | F193: 0.375 | M193: Rectangle | N193: 42.79 | O193: 11.8 | P193: 12 | Q193: 11 | R193: 6 | S193: 4.95 | T193: 0.375 | U193: 0.349 | V193: 14.2 | W193: 31.4 | X193: 215 | Y193: 44.8 | Z193: 35.9 | AA193: 4.28 | AB193: 72.9 | AC193: 27.7 | AD193: 24.3 | AE193: 2.49 | AF193: 178 | AG193: 45.8
A194: HSS | B194: HSS12x6x0.313 | C194: HSS12x6x5/16 | D194: 12x6x0.313 | E194: 12x6 | F194: 0.313 | M194: Rectangle | N194: 36.1 | O194: 9.92 | P194: 12 | Q194: 11.1 | R194: 6 | S194: 5.13 | T194: 0.3125 | U194: 0.291 | V194: 17.6 | W194: 38.2 | X194: 184 | Y194: 38.1 | Z194: 30.7 | AA194: 4.31 | AB194: 62.8 | AC194: 23.6 | AD194: 20.9 | AE194: 2.52 | AF194: 152 | AG194: 38.8
A195: HSS | B195: HSS12x6x0.250 | C195: HSS12x6x1/4 | D195: 12x6x0.250 | E195: 12x6 | F195: 0.250 | M195: Rectangle | N195: 29.23 | O195: 8.03 | P195: 12 | Q195: 11.3 | R195: 6 | S195: 5.3 | T195: 0.25 | U195: 0.233 | V195: 22.8 | W195: 48.5 | X195: 151 | Y195: 31.1 | Z195: 25.2 | AA195: 4.34 | AB195: 51.9 | AC195: 19.3 | AD195: 17.3 | AE195: 2.54 | AF195: 124 | AG195: 31.6
A196: HSS | B196: HSS12x6x0.188 | C196: HSS12x6x3/16 | D196: 12x6x0.188 | E196: 12x6 | F196: 0.188 | M196: Rectangle | N196: 22.18 | O196: 6.06 | P196: 12 | Q196: 11.5 | R196: 6 | S196: 5.48 | T196: 0.1875 | U196: 0.174 | V196: 31.5 | W196: 66 | X196: 116 | Y196: 23.7 | Z196: 19.4 | AA196: 4.38 | AB196: 40 | AC196: 14.7 | AD196: 13.3 | AE196: 2.57 | AF196: 94.6 | AG196: 24
A197: HSS | B197: HSS12x4x0.625 | C197: HSS12x4x5/8 | D197: 12x4x0.625 | E197: 12x4 | F197: 0.625 | M197: Rectangle | N197: 59.32 | O197: 16.4 | P197: 12 | Q197: 10.3 | R197: 4 | S197: 2.26 | T197: 0.625 | U197: 0.581 | V197: 3.88 | W197: 17.7 | X197: 245 | Y197: 55.5 | Z197: 40.8 | AA197: 3.87 | AB197: 40.4 | AC197: 24.5 | AD197: 20.2 | AE197: 1.57 | AF197: 122 | AG197: 44.6
A198: HSS | B198: HSS12x4x0.500 | C198: HSS12x4x1/2 | D198: 12x4x0.500 | E198: 12x4 | F198: 0.500 | M198: Rectangle | N198: 48.85 | O198: 13.5 | P198: 12 | Q198: 10.6 | R198: 4 | S198: 2.6 | T198: 0.5 | U198: 0.465 | V198: 5.6 | W198: 22.8 | X198: 210 | Y198: 46.7 | Z198: 34.9 | AA198: 3.95 | AB198: 35.3 | AC198: 20.9 | AD198: 17.7 | AE198: 1.62 | AF198: 105 | AG198: 37.5
A199: HSS | B199: HSS12x4x0.375 | C199: HSS12x4x3/8 | D199: 12x4x0.375 | E199: 12x4 | F199: 0.375 | M199: Rectangle | N199: 37.69 | O199: 10.4 | P199: 12 | Q199: 11 | R199: 4 | S199: 2.95 | T199: 0.375 | U199: 0.349 | V199: 8.46 | W199: 31.4 | X199: 168 | Y199: 36.7 | Z199: 28 | AA199: 4.02 | AB199: 28.9 | AC199: 16.6 | AD199: 14.5 | AE199: 1.67 | AF199: 84.1 | AG199: 29.5
A200: HSS | B200: HSS12x4x0.313 | C200: HSS12x4x5/16 | D200: 12x4x0.313 | E200: 12x4 | F200: 0.313 | M200: Rectangle | N200: 31.84 | O200: 8.76 | P200: 12 | Q200: 11.1 | R200: 4 | S200: 3.13 | T200: 0.3125 | U200: 0.291 | V200: 10.7 | W200: 38.2 | X200: 144 | Y200: 31.3 | Z200: 24.1 | AA200: 4.06 | AB200: 25.2 | AC200: 14.2 | AD200: 12.6 | AE200: 1.7 | AF200: 72.4 | AG200: 25.2
... 328 more rows

Sheet HSS1085_Database
A1: Type | B1: EDI_Std_Nomenclature | C1: AISC_Manual_Label | D1: Column1 | E1: Column2 | F1: Column3 | G1: Column4 | H1: Column5 | I1: Column6 | J1: Column7 | K1: Column8 | L1: Column9 | M1: Column10 | N1: W | O1: A | P1: Depth | Q1: Width | R1: Added to database | T1: tnom | U1: tdes | V1: b/tdes | W1: h/tdes | X1: Ix | Y1: Zx | Z1: Sx | AA1: rx | AB1: Iy | AC1: Zy | AD1: Sy | AE1: ry | AF1: J | AG1: C
D2: hss1085_hss | E2: Size | F2: Thickness | G2: Unique | H2: Member | I2: Thickness | J2: Different | K2: t start row | L2: t end row | M2: Sq/rect | N2: weight | O2: area | P2: depth | Q2: width | R2: h | S2: b | T2: tnom | U2: tdes | V2: b_t | W2: h_t | X2: Ix | Y2: Zx | Z2: Sx | AA2: rx | AB2: Iy | AC2: Zy | AD2: Sy | AE2: ry | AF2: J | AG2: C
G3: sizes | J3: thicknesses | N3: lbs/ft^2 | O3: in^2 | P3: in | Q3: in | R3: in | S3: in | T3: in | U3: in | X3: in^4 | Y3: in^4 | Z3: in^3 | AA3: in | AB3: in^4 | AC3: in^4 | AD3: in^3 | AE3: in | AF3: in^4 | AG3: in^6
A4: HSS | B4: HSS34x10x1 | C4: HSS34x10x1 | D4: 34x10x1 | E4: 34x10 | F4: 1 | G4: 34x10 | J4: 4 | K4: 4 | L4: =+K4+J4-1 -> 7 | M4: Rectangular | N4: 277.07 | O4: 81.4 | P4: 34 | Q4: 10 | R4: =W4*U4 -> 31 | S4: =V4*U4 -> 7 | T4: 1 | U4: 1 | V4: 7 | W4: 31 | X4: 10200 | Y4: 799 | Z4: 599 | AA4: 11.2 | AB4: 1410 | AC4: 326 | AD4: 282 | AE4: 4.16 | AF4: 4280 | AG4: 590
A5: HSS | B5: HSS34x10x0.875 | C5: HSS34x10x7/8 | D5: 34x10x0.875 | E5: 34x10 | F5: 0.875 | G5: 30x10 | J5: 5 | K5: =+L4+1 -> 8 | L5: =+K5+J5-1 -> 12 | M5: Rectangular | N5: 244.88 | O5: 72 | P5: 34 | Q5: 10 | R5: =W5*U5 -> 31.4125 | S5: =V5*U5 -> 7.37625 | T5: 0.875 | U5: 0.875 | V5: 8.43 | W5: 35.9 | X5: 9130 | Y5: 712 | Z5: 537 | AA5: 11.3 | AB5: 1280 | AC5: 292 | AD5: 256 | AE5: 4.22 | AF5: 3850 | AG5: 526
A6: HSS | B6: HSS34x10x0.750 | C6: HSS34x10x3/4 | D6: 34x10x0.750 | E6: 34x10 | F6: 0.75 | G6: 24x20 | J6: 5 | K6: =+L5+1 -> 13 | L6: =+K6+J6-1 -> 17 | M6: Rectangular | N6: 212 | O6: 62.3 | P6: 34 | Q6: 10 | R6: 31.725 | S6: 7.725 | T6: 0.75 | U6: 0.75 | V6: 10.3 | W6: 42.3 | X6: 8030 | Y6: 621 | Z6: 472 | AA6: 11.4 | AB6: 1140 | AC6: 256 | AD6: 228 | AE6: 4.27 | AF6: 3390 | AG6: 460
A7: HSS | B7: HSS34x10x0.625 | C7: HSS34x10x5/8 | D7: 34x10x0.625 | E7: 34x10 | F7: 0.625 | G7: 24x18 | J7: 5 | K7: 18 | L7: 22 | M7: Rectangular | N7: 178.41 | O7: 52.4 | P7: 34 | Q7: 10 | R7: 32.125 | S7: 8.125 | T7: 0.625 | U7: 0.625 | V7: 13 | W7: 51.4 | X7: 6850 | Y7: 527 | Z7: 403 | AA7: 11.4 | AB7: 981 | AC7: 218 | AD7: 196 | AE7: 4.33 | AF7: 2900 | AG7: 390
A8: HSS | B8: HSS30x10x1 | C8: HSS30x10x1 | D8: 30x10x1 | E8: 30x10 | F8: 1 | G8: 24x16 | J8: 5 | K8: 23 | L8: 27 | M8: Rectangular | N8: 249.85 | O8: 73.4 | P8: 30 | Q8: 10 | R8: 27 | S8: 7 | T8: 1 | U8: 1 | V8: 7 | W8: 27 | X8: 7300 | Y8: 644 | Z8: 487 | AA8: 9.97 | AB8: 1250 | AC8: 290 | AD8: 250 | AE8: 4.12 | AF8: 3660 | AG8: 518
A9: HSS | B9: HSS30x10x0.875 | C9: HSS30x10x7/8 | D9: 30x10x0.875 | E9: 30x10 | F9: 0.875 | G9: 24x14 | J9: 6 | K9: 28 | L9: 33 | M9: Rectangular | N9: 221.06 | O9: 65 | P9: 30 | Q9: 10 | R9: 27.3875 | S9: 7.37625 | T9: 0.875 | U9: 0.875 | V9: 8.43 | W9: 31.3 | X9: 6570 | Y9: 575 | Z9: 438 | AA9: 10.1 | AB9: 1130 | AC9: 260 | AD9: 226 | AE9: 4.18 | AF9: 3290 | AG9: 463
A10: HSS | B10: HSS30x10x0.750 | C10: HSS30x10x3/4 | D10: 30x10x0.750 | E10: 30x10 | F10: 0.75 | G10: 24x12 | J10: 8 | K10: 34 | L10: 41 | M10: Rectangular | N10: 191.58 | O10: 56.3 | P10: 30 | Q10: 10 | R10: 27.75 | S10: 7.725 | T10: 0.75 | U10: 0.75 | V10: 10.3 | W10: 37 | X10: 5780 | Y10: 502 | Z10: 386 | AA10: 10.1 | AB10: 1010 | AC10: 228 | AD10: 202 | AE10: 4.23 | AF10: 2900 | AG10: 404
A11: HSS | B11: HSS30x10x0.625 | C11: HSS30x10x5/8 | D11: 30x10x0.625 | E11: 30x10 | F11: 0.625 | G11: 24x8 | J11: 4 | K11: 42 | L11: 45 | M11: Rectangular | N11: 161.4 | O11: 47.4 | P11: 30 | Q11: 10 | R11: 28.125 | S11: 8.125 | T11: 0.625 | U11: 0.625 | V11: 13 | W11: 45 | X11: 4950 | Y11: 427 | Z11: 330 | AA11: 10.2 | AB11: 871 | AC11: 195 | AD11: 174 | AE11: 4.29 | AF11: 2480 | AG11: 343
A12: HSS | B12: HSS30x10x0.500 | C12: HSS30x10x1/2 | D12: 30x10x0.500 | E12: 30x10 | F12: 0.5 | G12: 22x20 | J12: 5 | K12: 46 | L12: 50 | M12: Rectangular | N12: 130.52 | O12: 38.4 | P12: 30 | Q12: 10 | R12: 28.5 | S12: 8.5 | T12: 0.5 | U12: 0.5 | V12: 17 | W12: 57 | X12: 4070 | Y12: 348 | Z12: 271 | AA12: 10.3 | AB12: 723 | AC12: 160 | AD12: 145 | AE12: 4.34 | AF12: 2040 | AG12: 280
A13: HSS | B13: HSS24x20x0.750 | C13: HSS24x20x3/4 | D13: 24x20x0.750 | E13: 24x20 | F13: 0.75 | G13: 22x18 | J13: 5 | K13: 51 | L13: 55 | M13: Rectangular | N13: 212 | O13: 62.3 | P13: 24 | Q13: 20 | R13: 21.75 | S13: 17.775 | T13: 0.75 | U13: 0.75 | V13: 23.7 | W13: 29 | X13: 5280 | Y13: 521 | Z13: 440 | AA13: 9.2 | AB13: 3990 | AC13: 461 | AD13: 399 | AE13: 8 | AF13: 7200 | AG13: 670
A14: HSS | B14: HSS24x20x0.625 | C14: HSS24x20x5/8 | D14: 24x20x0.625 | E14: 24x20 | F14: 0.625 | G14: 22x16 | J14: 6 | K14: 56 | L14: 61 | M14: Rectangular | N14: 178.41 | O14: 52.4 | P14: 24 | Q14: 20 | R14: 22.125 | S14: 18.125 | T14: 0.625 | U14: 0.625 | V14: 29 | W14: 35.4 | X14: 4500 | Y14: 442 | Z14: 375 | AA14: 9.26 | AB14: 3400 | AC14: 391 | AD14: 340 | AE14: 8.06 | AF14: 6090 | AG14: 565
A15: HSS | B15: HSS24x20x0.500 | C15: HSS24x20x1/2 | D15: 24x20x0.500 | E15: 24x20 | F15: 0.5 | G15: 22x14 | J15: 6 | K15: 62 | L15: 67 | M15: Rectangular | N15: 144.13 | O15: 42.4 | P15: 24 | Q15: 20 | R15: 22.5 | S15: 18.5 | T15: 0.5 | U15: 0.5 | V15: 37 | W15: 45 | X15: 3680 | Y15: 360 | Z15: 307 | AA15: 9.33 | AB15: 2790 | AC15: 318 | AD15: 279 | AE15: 8.12 | AF15: 4950 | AG15: 458
A16: HSS | B16: HSS24x20x0.375 | C16: HSS24x20x3/8 | D16: 24x20x0.375 | E16: 24x20 | F16: 0.375 | G16: 22x10 | J16: 5 | K16: 68 | L16: 72 | M16: Rectangular | N16: 109.15 | O16: 32.1 | P16: 24 | Q16: 20 | R16: 22.875 | S16: 18.8625 | T16: 0.375 | U16: 0.375 | V16: 50.3 | W16: 61 | X16: 2830 | Y16: 274 | Z16: 236 | AA16: 9.39 | AB16: 2140 | AC16: 243 | AD16: 214 | AE16: 8.17 | AF16: 3770 | AG16: 348
A17: HSS | B17: HSS24x20x0.312 | C17: HSS24x20x5/16 | D17: 24x20x0.312 | E17: 24x20 | F17: 0.312 | G17: 20x16 | J17: 6 | K17: 73 | L17: 78 | M17: Rectangular | N17: 91.39 | O17: 26.9 | P17: 24 | Q17: 20 | R17: 23.0681 | S17: 19.0617 | T17: 0.3125 | U17: 0.313 | V17: 60.9 | W17: 73.7 | X17: 2390 | Y17: 231 | Z17: 199 | AA17: 9.42 | AB17: 1810 | AC17: 204 | AD17: 181 | AE17: 8.2 | AF17: 3170 | AG17: 292
A18: HSS | B18: HSS24x18x0.750 | C18: HSS24x18x3/4 | D18: 24x18x0.750 | E18: 24x18 | F18: 0.75 | G18: 20x12 | J18: 7 | K18: 79 | L18: 85 | M18: Rectangular | N18: 201.79 | O18: 59.3 | P18: 24 | Q18: 18 | R18: 21.75 | S18: 15.75 | T18: 0.75 | U18: 0.75 | V18: 21 | W18: 29 | X18: 4870 | Y18: 487 | Z18: 406 | AA18: 9.06 | AB18: 3130 | AC18: 400 | AD18: 348 | AE18: 7.26 | AF18: 6070 | AG18: 600
A19: HSS | B19: HSS24x18x0.625 | C19: HSS24x18x5/8 | D19: 24x18x0.625 | E19: 24x18 | F19: 0.625 | G19: 20x8 | J19: 7 | K19: 86 | L19: 92 | M19: Rectangular | N19: 169.91 | O19: 49.9 | P19: 24 | Q19: 18 | R19: 22.125 | S19: 16.125 | T19: 0.625 | U19: 0.625 | V19: 25.8 | W19: 35.4 | X19: 4160 | Y19: 413 | Z19: 347 | AA19: 9.13 | AB19: 2680 | AC19: 339 | AD19: 298 | AE19: 7.32 | AF19: 5140 | AG19: 507
A20: HSS | B20: HSS24x18x0.500 | C20: HSS24x18x1/2 | D20: 24x18x0.500 | E20: 24x18 | F20: 0.5 | G20: 20x6 | J20: 5 | K20: 93 | L20: 97 | M20: Rectangular | N20: 137.32 | O20: 40.4 | P20: 24 | Q20: 18 | R20: 22.5 | S20: 16.5 | T20: 0.5 | U20: 0.5 | V20: 33 | W20: 45 | X20: 3410 | Y20: 336 | Z20: 284 | AA20: 9.19 | AB20: 2200 | AC20: 277 | AD20: 244 | AE20: 7.38 | AF20: 4180 | AG20: 411
A21: HSS | B21: HSS24x18x0.375 | C21: HSS24x18x3/8 | D21: 24x18x0.375 | E21: 24x18 | F21: 0.375 | G21: 20x4 | J21: 4 | K21: 98 | L21: 101 | M21: Rectangular | N21: 104.04 | O21: 30.6 | P21: 24 | Q21: 18 | R21: 22.875 | S21: 16.875 | T21: 0.375 | U21: 0.375 | V21: 45 | W21: 61 | X21: 2620 | Y21: 257 | Z21: 218 | AA21: 9.25 | AB21: 1690 | AC21: 211 | AD21: 188 | AE21: 7.43 | AF21: 3190 | AG21: 312
A22: HSS | B22: HSS24x18x0.312 | C22: HSS24x18x5/16 | D22: 24x18x0.312 | E22: 24x18 | F22: 0.312 | G22: 18x10 | J22: 5 | K22: 102 | L22: 106 | M22: Rectangular | N22: 87.14 | O22: 25.6 | P22: 24 | Q22: 18 | R22: 23.0681 | S22: 17.0585 | T22: 0.3125 | U22: 0.313 | V22: 54.5 | W22: 73.7 | X22: 2210 | Y22: 216 | Z22: 184 | AA22: 9.28 | AB22: 1430 | AC22: 178 | AD22: 159 | AE22: 7.46 | AF22: 2680 | AG22: 262
A23: HSS | B23: HSS24x16x0.750 | C23: HSS24x16x3/4 | D23: 24x16x0.750 | E23: 24x16 | F23: 0.75 | G23: 18x8 | J23: 5 | K23: 107 | L23: 111 | M23: Rectangular | N23: 191.58 | O23: 56.3 | P23: 24 | Q23: 16 | R23: 21.75 | S23: 13.725 | T23: 0.75 | U23: 0.75 | V23: 18.3 | W23: 29 | X23: 4460 | Y23: 452 | Z23: 372 | AA23: 8.91 | AB23: 2390 | AC23: 342 | AD23: 299 | AE23: 6.51 | AF23: 4990 | AG23: 530
A24: HSS | B24: HSS24x16x0.625 | C24: HSS24x16x5/8 | D24: 24x16x0.625 | E24: 24x16 | F24: 0.625 | G24: 18x6 | J24: 6 | K24: 112 | L24: 117 | M24: Rectangular | N24: 161.4 | O24: 47.4 | P24: 24 | Q24: 16 | R24: 22.125 | S24: 14.125 | T24: 0.625 | U24: 0.625 | V24: 22.6 | W24: 35.4 | X24: 3820 | Y24: 384 | Z24: 318 | AA24: 8.97 | AB24: 2050 | AC24: 291 | AD24: 256 | AE24: 6.57 | AF24: 4240 | AG24: 448
A25: HSS | B25: HSS24x16x0.500 | C25: HSS24x16x1/2 | D25: 24x16x0.500 | E25: 24x16 | F25: 0.5 | G25: 16x12 | J25: 7 | K25: 118 | L25: 124 | M25: Rectangular | N25: 130.52 | O25: 38.4 | P25: 24 | Q25: 16 | R25: 22.5 | S25: 14.5 | T25: 0.5 | U25: 0.5 | V25: 29 | W25: 45 | X25: 3130 | Y25: 313 | Z25: 261 | AA25: 9.04 | AB25: 1680 | AC25: 237 | AD25: 210 | AE25: 6.62 | AF25: 3450 | AG25: 364
A26: HSS | B26: HSS24x16x0.375 | C26: HSS24x16x3/8 | D26: 24x16x0.375 | E26: 24x16 | F26: 0.375 | G26: 16x10 | J26: 5 | K26: 125 | L26: 129 | M26: Rectangular | N26: 98.94 | O26: 29.1 | P26: 24 | Q26: 16 | R26: 22.875 | S26: 14.8875 | T26: 0.375 | U26: 0.375 | V26: 39.7 | W26: 61 | X26: 2410 | Y26: 239 | Z26: 201 | AA26: 9.1 | AB26: 1300 | AC26: 181 | AD26: 163 | AE26: 6.68 | AF26: 2630 | AG26: 277
A27: HSS | B27: HSS24x16x0.312 | C27: HSS24x16x5/16 | D27: 24x16x0.312 | E27: 24x16 | F27: 0.312 | G27: 16x8 | J27: 7 | K27: 130 | L27: 136 | M27: Rectangular | N27: 82.88 | O27: 24.4 | P27: 24 | Q27: 16 | R27: 23.0681 | S27: 15.0553 | T27: 0.3125 | U27: 0.313 | V27: 48.1 | W27: 73.7 | X27: 2040 | Y27: 201 | Z27: 170 | AA27: 9.13 | AB27: 1100 | AC27: 153 | AD27: 138 | AE27: 6.71 | AF27: 2220 | AG27: 232
A28: HSS | B28: HSS24x14x0.750 | C28: HSS24x14x3/4 | D28: 24x14x0.750 | E28: 24x14 | F28: 0.75 | G28: 16x6 | J28: 6 | K28: 137 | L28: 142 | M28: Rectangular | N28: 181.37 | O28: 53.3 | P28: 24 | Q28: 14 | R28: 21.75 | S28: 11.775 | T28: 0.75 | U28: 0.75 | V28: 15.7 | W28: 29 | X28: 4060 | Y28: 417 | Z28: 338 | AA28: 8.73 | AB28: 1760 | AC28: 287 | AD28: 251 | AE28: 5.74 | AF28: 3980 | AG28: 460
A29: HSS | B29: HSS24x14x0.625 | C29: HSS24x14x5/8 | D29: 24x14x0.625 | E29: 24x14 | F29: 0.625 | G29: 16x4 | J29: 6 | K29: 143 | L29: 148 | M29: Rectangular | N29: 152.89 | O29: 44.9 | P29: 24 | Q29: 14 | R29: 22.125 | S29: 12.125 | T29: 0.625 | U29: 0.625 | V29: 19.4 | W29: 35.4 | X29: 3480 | Y29: 354 | Z29: 290 | AA29: 8.8 | AB29: 1510 | AC29: 245 | AD29: 216 | AE29: 5.8 | AF29: 3380 | AG29: 390
A30: HSS | B30: HSS24x14x0.500 | C30: HSS24x14x1/2 | D30: 24x14x0.500 | E30: 24x14 | F30: 0.5 | G30: 14x12 | J30: 5 | K30: 149 | L30: 153 | M30: Rectangular | N30: 123.71 | O30: 36.4 | P30: 24 | Q30: 14 | R30: 22.5 | S30: 12.5 | T30: 0.5 | U30: 0.5 | V30: 25 | W30: 45 | X30: 2860 | Y30: 289 | Z30: 238 | AA30: 8.86 | AB30: 1250 | AC30: 200 | AD30: 179 | AE30: 5.86 | AF30: 2760 | AG30: 317
A31: HSS | B31: HSS24x14x0.375 | C31: HSS24x14x3/8 | D31: 24x14x0.375 | E31: 24x14 | F31: 0.375 | G31: 14x10 | J31: 7 | K31: 154 | L31: 160 | M31: Rectangular | N31: 93.83 | O31: 27.6 | P31: 24 | Q31: 14 | R31: 22.875 | S31: 12.8625 | T31: 0.375 | U31: 0.375 | V31: 34.3 | W31: 61 | X31: 2200 | Y31: 221 | Z31: 183 | AA31: 8.93 | AB31: 964 | AC31: 153 | AD31: 138 | AE31: 5.91 | AF31: 2110 | AG31: 241
A32: HSS | B32: HSS24x14x0.312 | C32: HSS24x14x5/16 | D32: 24x14x0.312 | E32: 24x14 | F32: 0.312 | G32: 14x8 | J32: 6 | K32: 161 | L32: 166 | M32: Rectangular | N32: 78.63 | O32: 23.1 | P32: 24 | Q32: 14 | R32: 23.0681 | S32: 13.0521 | T32: 0.3125 | U32: 0.313 | V32: 41.7 | W32: 73.7 | X32: 1860 | Y32: 186 | Z32: 155 | AA32: 8.96 | AB32: 816 | AC32: 129 | AD32: 117 | AE32: 5.94 | AF32: 1780 | AG32: 203
A33: HSS | B33: HSS24x14x0.250 | C33: HSS24x14x1/4 | D33: 24x14x0.250 | E33: 24x14 | F33: 0.25 | G33: 14x6 | J33: 6 | K33: 167 | L33: 172 | M33: Rectangular | N33: 63.25 | O33: 18.6 | P33: 24 | Q33: 14 | R33: 23.25 | S33: 13.25 | T33: 0.25 | U33: 0.25 | V33: 53 | W33: 93 | X33: 1500 | Y33: 150 | Z33: 125 | AA33: 9 | AB33: 662 | AC33: 104 | AD33: 94.6 | AE33: 5.97 | AF33: 1430 | AG33: 163
A34: HSS | B34: HSS24x12x1 | C34: HSS24x12x1 | D34: 24x12x1 | E34: 24x12 | F34: 1 | G34: 14x4 | J34: 6 | K34: 173 | L34: 178 | M34: Rectangular | N34: 222.63 | O34: 65.4 | P34: 24 | Q34: 12 | R34: 21 | S34: 9 | T34: 1 | U34: 1 | V34: 9 | W34: 21 | X34: 4590 | Y34: 488 | Z34: 383 | AA34: 8.38 | AB34: 1540 | AC34: 299 | AD34: 257 | AE34: 4.85 | AF34: 3850 | AG34: 502
A35: HSS | B35: HSS24x12x0.875 | C35: HSS24x12x7/8 | D35: 24x12x0.875 | E35: 24x12 | F35: 0.875 | G35: 12x10 | J35: 6 | K35: 179 | L35: 184 | M35: Rectangular | N35: 197.24 | O35: 58 | P35: 24 | Q35: 12 | R35: 21.35 | S35: 9.3625 | T35: 0.875 | U35: 0.875 | V35: 10.7 | W35: 24.4 | X35: 4140 | Y35: 436 | Z35: 345 | AA35: 8.45 | AB35: 1390 | AC35: 268 | AD35: 232 | AE35: 4.9 | AF35: 3460 | AG35: 448
A36: HSS | B36: HSS24x12x0.750 | C36: HSS24x12x3/4 | D36: 24x12x0.750 | E36: 24x12 | F36: 0.75 | G36: 12x8 | J36: 6 | K36: 185 | L36: 190 | M36: Rectangular | N36: 171.16 | O36: 50.3 | P36: 24 | Q36: 12 | R36: 21.75 | S36: 9.75 | T36: 0.75 | U36: 0.75 | V36: 13 | W36: 29 | X36: 3650 | Y36: 382 | Z36: 304 | AA36: 8.52 | AB36: 1240 | AC36: 235 | AD36: 207 | AE36: 4.96 | AF36: 3030 | AG36: 391
A37: HSS | B37: HSS24x12x0.625 | C37: HSS24x12x5/8 | D37: 24x12x0.625 | E37: 24x12 | F37: 0.625 | G37: 12x6 | J37: 6 | K37: 191 | L37: 196 | M37: Rectangular | N37: 144.39 | O37: 42.4 | P37: 24 | Q37: 12 | R37: 22.125 | S37: 10.125 | T37: 0.625 | U37: 0.625 | V37: 16.2 | W37: 35.4 | X37: 3130 | Y37: 325 | Z37: 261 | AA37: 8.59 | AB37: 1070 | AC37: 201 | AD37: 178 | AE37: 5.01 | AF37: 2590 | AG37: 331
A38: HSS | B38: HSS24x12x0.500 | C38: HSS24x12x1/2 | D38: 24x12x0.500 | E38: 24x12 | F38: 0.5 | G38: 12x4 | J38: 6 | K38: 197 | L38: 202 | M38: Rectangular | N38: 116.91 | O38: 34.4 | P38: 24 | Q38: 12 | R38: 22.5 | S38: 10.5 | T38: 0.5 | U38: 0.5 | V38: 21 | W38: 45 | X38: 2580 | Y38: 266 | Z38: 215 | AA38: 8.67 | AB38: 883 | AC38: 164 | AD38: 147 | AE38: 5.07 | AF38: 2120 | AG38: 270
A39: HSS | B39: HSS24x12x0.375 | C39: HSS24x12x3/8 | D39: 24x12x0.375 | E39: 24x12 | F39: 0.375 | G39: 12x3 | J39: 3 | K39: 203 | L39: 205 | M39: Rectangular | N39: 88.73 | O39: 26.1 | P39: 24 | Q39: 12 | R39: 22.875 | S39: 10.875 | T39: 0.375 | U39: 0.375 | V39: 29 | W39: 61 | X39: 1990 | Y39: 203 | Z39: 166 | AA39: 8.74 | AB39: 685 | AC39: 126 | AD39: 114 | AE39: 5.12 | AF39: 1620 | AG39: 206
A40: HSS | B40: HSS24x12x0.312 | C40: HSS24x12x5/16 | D40: 24x12x0.312 | E40: 24x12 | F40: 0.312 | G40: 12x2 | J40: 3 | K40: 206 | L40: 208 | M40: Rectangular | N40: 74.38 | O40: 21.9 | P40: 24 | Q40: 12 | R40: 23.0681 | S40: 11.0489 | T40: 0.3125 | U40: 0.313 | V40: 35.3 | W40: 73.7 | X40: 1680 | Y40: 171 | Z40: 140 | AA40: 8.77 | AB40: 581 | AC40: 107 | AD40: 96.8 | AE40: 5.15 | AF40: 1370 | AG40: 173
A41: HSS | B41: HSS24x12x0.250 | C41: HSS24x12x1/4 | D41: 24x12x0.250 | E41: 24x12 | F41: 0.25 | G41: 10x8 | J41: 6 | K41: 209 | L41: 214 | M41: Rectangular | N41: 59.85 | O41: 17.6 | P41: 24 | Q41: 12 | R41: 23.25 | S41: 11.25 | T41: 0.25 | U41: 0.25 | V41: 45 | W41: 93 | X41: 1360 | Y41: 138 | Z41: 114 | AA41: 8.81 | AB41: 472 | AC41: 86.1 | AD41: 78.7 | AE41: 5.18 | AF41: 1110 | AG41: 139
A42: HSS | B42: HSS24x8x0.500 | C42: HSS24x8x1/2 | D42: 24x8x0.500 | E42: 24x8 | F42: 0.5 | G42: 10x6 | J42: 6 | K42: 215 | L42: 220 | M42: Rectangular | N42: 103.3 | O42: 30.4 | P42: 24 | Q42: 8 | R42: 22.5 | S42: 6.5 | T42: 0.5 | U42: 0.5 | V42: 13 | W42: 45 | X42: 2030 | Y42: 219 | Z42: 169 | AA42: 8.17 | AB42: 357 | AC42: 99.7 | AD42: 89.3 | AE42: 3.43 | AF42: 1020 | AG42: 176
A43: HSS | B43: HSS24x8x0.375 | C43: HSS24x8x3/8 | D43: 24x8x0.375 | E43: 24x8 | F43: 0.375 | G43: 10x5 | J43: 3 | K43: 221 | L43: 223 | M43: Rectangular | N43: 78.52 | O43: 23.1 | P43: 24 | Q43: 8 | R43: 22.875 | S43: 6.8625 | T43: 0.375 | U43: 0.375 | V43: 18.3 | W43: 61 | X43: 1570 | Y43: 168 | Z43: 131 | AA43: 8.25 | AB43: 280 | AC43: 77.1 | AD43: 70 | AE43: 3.48 | AF43: 789 | AG43: 135
A44: HSS | B44: HSS24x8x0.312 | C44: HSS24x8x5/16 | D44: 24x8x0.312 | E44: 24x8 | F44: 0.312 | G44: 10x4 | J44: 6 | K44: 224 | L44: 229 | M44: Rectangular | N44: 65.87 | O44: 19.4 | P44: 24 | Q44: 8 | R44: 23.0681 | S44: 7.0738 | T44: 0.3125 | U44: 0.313 | V44: 22.6 | W44: 73.7 | X44: 1330 | Y44: 142 | Z44: 111 | AA44: 8.29 | AB44: 239 | AC44: 65.3 | AD44: 59.8 | AE44: 3.51 | AF44: 669 | AG44: 114
A45: HSS | B45: HSS24x8x0.250 | C45: HSS24x8x1/4 | D45: 24x8x0.250 | E45: 24x8 | F45: 0.25 | G45: 10x3.5 | J45: 4 | K45: 230 | L45: 233 | M45: Rectangular | N45: 53.05 | O45: 15.6 | P45: 24 | Q45: 8 | R45: 23.25 | S45: 7.25 | T45: 0.25 | U45: 0.25 | V45: 29 | W45: 93 | X45: 1080 | Y45: 115 | Z45: 90.2 | AA45: 8.33 | AB45: 195 | AC45: 52.9 | AD45: 48.8 | AE45: 3.54 | AF45: 543 | AG45: 92
A46: HSS | B46: HSS22x20x0.750 | C46: HSS22x20x3/4 | D46: 22x20x0.750 | E46: 22x20 | F46: 0.75 | G46: 10x3 | J46: 4 | K46: 234 | L46: 237 | M46: Rectangular | N46: 201.79 | O46: 59.3 | P46: 22 | Q46: 20 | R46: 19.725 | S46: 17.775 | T46: 0.75 | U46: 0.75 | V46: 23.7 | W46: 26.3 | X46: 4290 | Y46: 461 | Z46: 390 | AA46: 8.51 | AB46: 3710 | AC46: 432 | AD46: 371 | AE46: 7.91 | AF46: 6320 | AG46: 612
A47: HSS | B47: HSS22x20x0.625 | C47: HSS22x20x5/8 | D47: 22x20x0.625 | E47: 22x20 | F47: 0.625 | G47: 10x2 | J47: 4 | K47: 238 | L47: 241 | M47: Rectangular | N47: 169.91 | O47: 49.9 | P47: 22 | Q47: 20 | R47: 20.125 | S47: 18.125 | T47: 0.625 | U47: 0.625 | V47: 29 | W47: 32.2 | X47: 3670 | Y47: 391 | Z47: 333 | AA47: 8.57 | AB47: 3170 | AC47: 366 | AD47: 317 | AE47: 7.97 | AF47: 5350 | AG47: 517
A48: HSS | B48: HSS22x20x0.500 | C48: HSS22x20x1/2 | D48: 22x20x0.500 | E48: 22x20 | F48: 0.5 | G48: 9x7 | J48: 6 | K48: 242 | L48: 247 | M48: Rectangular | N48: 137.32 | O48: 40.4 | P48: 22 | Q48: 20 | R48: 20.5 | S48: 18.5 | T48: 0.5 | U48: 0.5 | V48: 37 | W48: 41 | X48: 3010 | Y48: 318 | Z48: 273 | AA48: 8.63 | AB48: 2600 | AC48: 298 | AD48: 260 | AE48: 8.03 | AF48: 4350 | AG48: 419
A49: HSS | B49: HSS22x20x0.375 | C49: HSS22x20x3/8 | D49: 22x20x0.375 | E49: 22x20 | F49: 0.375 | G49: 9x5 | J49: 6 | K49: 248 | L49: 253 | M49: Rectangular | N49: 104.04 | O49: 30.6 | P49: 22 | Q49: 20 | R49: 20.8875 | S49: 18.8625 | T49: 0.375 | U49: 0.375 | V49: 50.3 | W49: 55.7 | X49: 2310 | Y49: 243 | Z49: 210 | AA49: 8.69 | AB49: 2000 | AC49: 228 | AD49: 200 | AE49: 8.09 | AF49: 3310 | AG49: 318
A50: HSS | B50: HSS22x20x0.312 | C50: HSS22x20x5/16 | D50: 22x20x0.312 | E50: 22x20 | F50: 0.312 | G50: 9x3 | J50: 5 | K50: 254 | L50: 258 | M50: Rectangular | N50: 87.14 | O50: 25.6 | P50: 22 | Q50: 20 | R50: 21.0649 | S50: 19.0617 | T50: 0.3125 | U50: 0.313 | V50: 60.9 | W50: 67.3 | X50: 1950 | Y50: 204 | Z50: 177 | AA50: 8.72 | AB50: 1690 | AC50: 192 | AD50: 169 | AE50: 8.11 | AF50: 2780 | AG50: 267
A51: HSS | B51: HSS22x18x0.750 | C51: HSS22x18x3/4 | D51: 22x18x0.750 | E51: 22x18 | F51: 0.75 | G51: 8x6 | J51: 6 | K51: 259 | L51: 264 | M51: Rectangular | N51: 191.58 | O51: 56.3 | P51: 22 | Q51: 18 | R51: 19.725 | S51: 15.75 | T51: 0.75 | U51: 0.75 | V51: 21 | W51: 26.3 | X51: 3960 | Y51: 429 | Z51: 360 | AA51: 8.38 | AB51: 2900 | AC51: 374 | AD51: 322 | AE51: 7.18 | AF51: 5340 | AG51: 548
A52: HSS | B52: HSS22x18x0.625 | C52: HSS22x18x5/8 | D52: 22x18x0.625 | E52: 22x18 | F52: 0.625 | G52: 8x4 | J52: 6 | K52: 265 | L52: 270 | M52: Rectangular | N52: 161.4 | O52: 47.4 | P52: 22 | Q52: 18 | R52: 20.125 | S52: 16.125 | T52: 0.625 | U52: 0.625 | V52: 25.8 | W52: 32.2 | X52: 3380 | Y52: 364 | Z52: 307 | AA52: 8.44 | AB52: 2490 | AC52: 318 | AD52: 277 | AE52: 7.24 | AF52: 4530 | AG52: 463
A53: HSS | B53: HSS22x18x0.500 | C53: HSS22x18x1/2 | D53: 22x18x0.500 | E53: 22x18 | F53: 0.5 | G53: 8x3 | J53: 5 | K53: 271 | L53: 275 | M53: Rectangular | N53: 130.52 | O53: 38.4 | P53: 22 | Q53: 18 | R53: 20.5 | S53: 16.5 | T53: 0.5 | U53: 0.5 | V53: 33 | W53: 41 | X53: 2780 | Y53: 297 | Z53: 252 | AA53: 8.51 | AB53: 2040 | AC53: 259 | AD53: 227 | AE53: 7.3 | AF53: 3680 | AG53: 376
A54: HSS | B54: HSS22x18x0.375 | C54: HSS22x18x3/8 | D54: 22x18x0.375 | E54: 22x18 | F54: 0.375 | G54: 8x2 | J54: 5 | K54: 276 | L54: 280 | M54: Rectangular | N54: 98.94 | O54: 29.1 | P54: 22 | Q54: 18 | R54: 20.8875 | S54: 16.875 | T54: 0.375 | U54: 0.375 | V54: 45 | W54: 55.7 | X54: 2130 | Y54: 227 | Z54: 194 | AA54: 8.57 | AB54: 1570 | AC54: 198 | AD54: 174 | AE54: 7.36 | AF54: 2810 | AG54: 286
A55: HSS | B55: HSS22x18x0.312 | C55: HSS22x18x5/16 | D55: 22x18x0.312 | E55: 22x18 | F55: 0.312 | G55: 7x5 | J55: 5 | K55: 281 | L55: 285 | M55: Rectangular | N55: 82.88 | O55: 24.4 | P55: 22 | Q55: 18 | R55: 21.0649 | S55: 17.0585 | T55: 0.3125 | U55: 0.313 | V55: 54.5 | W55: 67.3 | X55: 1800 | Y55: 191 | Z55: 164 | AA55: 8.6 | AB55: 1330 | AC55: 167 | AD55: 148 | AE55: 7.39 | AF55: 2360 | AG55: 240
A56: HSS | B56: HSS22x16x0.750 | C56: HSS22x16x3/4 | D56: 22x16x0.750 | E56: 22x16 | F56: 0.75 | G56: 7x4 | J56: 5 | K56: 286 | L56: 290 | M56: Rectangular | N56: 181.37 | O56: 53.3 | P56: 22 | Q56: 16 | R56: 19.725 | S56: 13.725 | T56: 0.75 | U56: 0.75 | V56: 18.3 | W56: 26.3 | X56: 3620 | Y56: 397 | Z56: 329 | AA56: 8.24 | AB56: 2210 | AC56: 319 | AD56: 276 | AE56: 6.44 | AF56: 4400 | AG56: 484
A57: HSS | B57: HSS22x16x0.625 | C57: HSS22x16x5/8 | D57: 22x16x0.625 | E57: 22x16 | F57: 0.625 | G57: 7x3 | J57: 5 | K57: 291 | L57: 295 | M57: Rectangular | N57: 152.89 | O57: 44.9 | P57: 22 | Q57: 16 | R57: 20.125 | S57: 14.125 | T57: 0.625 | U57: 0.625 | V57: 22.6 | W57: 32.2 | X57: 3100 | Y57: 337 | Z57: 282 | AA57: 8.3 | AB57: 1900 | AC57: 271 | AD57: 238 | AE57: 6.5 | AF57: 3740 | AG57: 410
A58: HSS | B58: HSS22x16x0.500 | C58: HSS22x16x1/2 | D58: 22x16x0.500 | E58: 22x16 | F58: 0.5 | G58: 7x2 | J58: 2 | K58: 296 | L58: 297 | M58: Rectangular | N58: 123.71 | O58: 36.4 | P58: 22 | Q58: 16 | R58: 20.5 | S58: 14.5 | T58: 0.5 | U58: 0.5 | V58: 29 | W58: 41 | X58: 2540 | Y58: 275 | Z58: 231 | AA58: 8.37 | AB58: 1560 | AC58: 222 | AD58: 195 | AE58: 6.56 | AF58: 3050 | AG58: 333
A59: HSS | B59: HSS22x16x0.375 | C59: HSS22x16x3/8 | D59: 22x16x0.375 | E59: 22x16 | F59: 0.375 | G59: 6x5 | J59: 5 | K59: 298 | L59: 302 | M59: Rectangular | N59: 93.83 | O59: 27.6 | P59: 22 | Q59: 16 | R59: 20.8875 | S59: 14.8875 | T59: 0.375 | U59: 0.375 | V59: 39.7 | W59: 55.7 | X59: 1960 | Y59: 210 | Z59: 178 | AA59: 8.43 | AB59: 1210 | AC59: 170 | AD59: 151 | AE59: 6.61 | AF59: 2330 | AG59: 253
A60: HSS | B60: HSS22x16x0.312 | C60: HSS22x16x5/16 | D60: 22x16x0.312 | E60: 22x16 | F60: 0.312 | G60: 6x4 | J60: 5 | K60: 303 | L60: 307 | M60: Rectangular | N60: 78.63 | O60: 23.1 | P60: 22 | Q60: 16 | R60: 21.0649 | S60: 15.0553 | T60: 0.3125 | U60: 0.313 | V60: 48.1 | W60: 67.3 | X60: 1660 | Y60: 177 | Z60: 151 | AA60: 8.46 | AB60: 1020 | AC60: 143 | AD60: 128 | AE60: 6.64 | AF60: 1960 | AG60: 213
A61: HSS | B61: HSS22x16x0.250 | C61: HSS22x16x1/4 | D61: 22x16x0.250 | E61: 22x16 | F61: 0.25 | G61: 6x3 | J61: 5 | K61: 308 | L61: 312 | M61: Rectangular | N61: 63.25 | O61: 18.6 | P61: 22 | Q61: 16 | R61: 21.25 | S61: 15.25 | T61: 0.25 | U61: 0.25 | V61: 61 | W61: 85 | X61: 1340 | Y61: 143 | Z61: 122 | AA61: 8.49 | AB61: 827 | AC61: 115 | AD61: 103 | AE61: 6.67 | AF61: 1580 | AG61: 171
A62: HSS | B62: HSS22x14x0.750 | C62: HSS22x14x3/4 | D62: 22x14x0.750 | E62: 22x14 | F62: 0.75 | G62: 6x2 | J62: 4 | K62: 313 | L62: 316 | M62: Rectangular | N62: 171.16 | O62: 50.3 | P62: 22 | Q62: 14 | R62: 19.725 | S62: 11.775 | T62: 0.75 | U62: 0.75 | V62: 15.7 | W62: 26.3 | X62: 3280 | Y62: 365 | Z62: 298 | AA62: 8.07 | AB62: 1630 | AC62: 267 | AD62: 233 | AE62: 5.69 | AF62: 3520 | AG62: 421
A63: HSS | B63: HSS22x14x0.625 | C63: HSS22x14x5/8 | D63: 22x14x0.625 | E63: 22x14 | F63: 0.625 | G63: 5x4 | J63: 5 | K63: 317 | L63: 321 | M63: Rectangular | N63: 144.39 | O63: 42.4 | P63: 22 | Q63: 14 | R63: 20.125 | S63: 12.125 | T63: 0.625 | U63: 0.625 | V63: 19.4 | W63: 32.2 | X63: 2810 | Y63: 311 | Z63: 256 | AA63: 8.14 | AB63: 1400 | AC63: 228 | AD63: 200 | AE63: 5.74 | AF63: 2990 | AG63: 356
A64: HSS | B64: HSS22x14x0.500 | C64: HSS22x14x1/2 | D64: 22x14x0.500 | E64: 22x14 | F64: 0.5 | G64: 5x3 | J64: 5 | K64: 322 | L64: 326 | M64: Rectangular | N64: 116.91 | O64: 34.4 | P64: 22 | Q64: 14 | R64: 20.5 | S64: 12.5 | T64: 0.5 | U64: 0.5 | V64: 25 | W64: 41 | X64: 2310 | Y64: 254 | Z64: 210 | AA64: 8.21 | AB64: 1160 | AC64: 186 | AD64: 166 | AE64: 5.8 | AF64: 2440 | AG64: 290
A65: HSS | B65: HSS22x14x0.375 | C65: HSS22x14x3/8 | D65: 22x14x0.375 | E65: 22x14 | F65: 0.375 | G65: 5x2.5 | J65: 2 | K65: 327 | L65: 328 | M65: Rectangular | N65: 88.73 | O65: 26.1 | P65: 22 | Q65: 14 | R65: 20.8875 | S65: 12.8625 | T65: 0.375 | U65: 0.375 | V65: 34.3 | W65: 55.7 | X65: 1780 | Y65: 194 | Z65: 162 | AA65: 8.27 | AB65: 894 | AC65: 143 | AD65: 128 | AE65: 5.86 | AF65: 1870 | AG65: 221
A66: HSS | B66: HSS22x14x0.312 | C66: HSS22x14x5/16 | D66: 22x14x0.312 | E66: 22x14 | F66: 0.312 | G66: 5x2 | J66: 4 | K66: 329 | L66: 332 | M66: Rectangular | N66: 74.38 | O66: 21.9 | P66: 22 | Q66: 14 | R66: 21.0649 | S66: 13.0521 | T66: 0.3125 | U66: 0.313 | V66: 41.7 | W66: 67.3 | X66: 1510 | Y66: 164 | Z66: 137 | AA66: 8.3 | AB66: 758 | AC66: 120 | AD66: 108 | AE66: 5.88 | AF66: 1580 | AG66: 186
A67: HSS | B67: HSS22x14x0.250 | C67: HSS22x14x1/4 | D67: 22x14x0.250 | E67: 22x14 | F67: 0.25 | G67: 4x3 | J67: 4 | K67: 333 | L67: 336 | M67: Rectangular | N67: 59.85 | O67: 17.6 | P67: 22 | Q67: 14 | R67: 21.25 | S67: 13.25 | T67: 0.25 | U67: 0.25 | V67: 53 | W67: 85 | X67: 1220 | Y67: 132 | Z67: 111 | AA67: 8.34 | AB67: 615 | AC67: 97.3 | AD67: 87.9 | AE67: 5.91 | AF67: 1270 | AG67: 149
A68: HSS | B68: HSS22x10x0.625 | C68: HSS22x10x5/8 | D68: 22x10x0.625 | E68: 22x10 | F68: 0.625 | G68: 4x2.5 | J68: 2 | K68: 337 | L68: 338 | M68: Rectangular | N68: 127.37 | O68: 37.4 | P68: 22 | Q68: 10 | R68: 20.125 | S68: 8.125 | T68: 0.625 | U68: 0.625 | V68: 13 | W68: 32.2 | X68: 2240 | Y68: 257 | Z68: 204 | AA68: 7.74 | AB68: 651 | AC68: 148 | AD68: 130 | AE68: 4.17 | AF68: 1660 | AG68: 250
A69: HSS | B69: HSS22x10x0.500 | C69: HSS22x10x1/2 | D69: 22x10x0.500 | E69: 22x10 | F69: 0.5 | G69: 4x2 | J69: 4 | K69: 339 | L69: 342 | M69: Rectangular | N69: 103.3 | O69: 30.4 | P69: 22 | Q69: 10 | R69: =W69*U69 -> 20.5 | S69: =V69*U69 -> 8.5 | T69: 0.5 | U69: 0.5 | V69: 17 | W69: 41 | X69: 1850 | Y69: 211 | Z69: 168 | AA69: 7.81 | AB69: 542 | AC69: 122 | AD69: 108 | AE69: 4.23 | AF69: 1370 | AG69: 204
A70: HSS | B70: HSS22x10x0.375 | C70: HSS22x10x3/8 | D70: 22x10x0.375 | E70: 22x10 | F70: 0.375 | G70: 4x1.5 | J70: 2 | K70: =+L69+1 -> 343 | L70: =+K70+J70-1 -> 344 | M70: Rectangular | N70: 78.52 | O70: 23.1 | P70: 22 | Q70: 10 | R70: 20.8875 | S70: 8.8875 | T70: 0.375 | U70: 0.375 | V70: 23.7 | W70: 55.7 | X70: 1430 | Y70: 162 | Z70: 130 | AA70: 7.88 | AB70: 423 | AC70: 93.7 | AD70: 84.6 | AE70: 4.28 | AF70: 1050 | AG70: 156
A71: HSS | B71: HSS22x10x0.312 | C71: HSS22x10x5/16 | D71: 22x10x0.312 | E71: 22x10 | F71: 0.312 | G71: 3.5x2.5 | J71: 4 | K71: 345 | L71: 348 | M71: Rectangular | N71: 65.87 | O71: 19.4 | P71: 22 | Q71: 10 | R71: 21.0649 | S71: 9.0457 | T71: 0.3125 | U71: 0.313 | V71: 28.9 | W71: 67.3 | X71: 1220 | Y71: 137 | Z71: 110 | AA71: 7.92 | AB71: 360 | AC71: 79.2 | AD71: 72 | AE71: 4.31 | AF71: 890 | AG71: 131
A72: HSS | B72: HSS22x10x0.250 | C72: HSS22x10x1/4 | D72: 22x10x0.250 | E72: 22x10 | F72: 0.25 | G72: 3.5x2 | J72: 2 | K72: 349 | L72: 350 | M72: Rectangular | N72: 53.05 | O72: 15.6 | P72: 22 | Q72: 10 | R72: 21.25 | S72: 9.25 | T72: 0.25 | U72: 0.25 | V72: 37 | W72: 85 | X72: 986 | Y72: 110 | Z72: 89.6 | AA72: 7.95 | AB72: 293 | AC72: 64.1 | AD72: 58.6 | AE72: 4.34 | AF72: 720 | AG72: 106
A73: HSS | B73: HSS20x16x0.750 | C73: HSS20x16x3/4 | D73: 20x16x0.750 | E73: 20x16 | F73: 0.75 | G73: 3.5x1.5 | J73: 2 | K73: 351 | L73: 352 | M73: Rectangular | N73: 171.16 | O73: 50.3 | P73: 20 | Q73: 16 | R73: 17.775 | S73: 13.725 | T73: 0.75 | U73: 0.75 | V73: 18.3 | W73: 23.7 | X73: 2880 | Y73: 345 | Z73: 288 | AA73: 7.56 | AB73: 2040 | AC73: 296 | AD73: 255 | AE73: 6.36 | AF73: 3830 | AG73: 439
A74: HSS | B74: HSS20x16x0.625 | C74: HSS20x16x5/8 | D74: 20x16x0.625 | E74: 20x16 | F74: 0.625 | G74: 3x2.5 | J74: 3 | K74: 353 | L74: 355 | M74: Rectangular | N74: 144.39 | O74: 42.4 | P74: 20 | Q74: 16 | R74: 18.125 | S74: 14.125 | T74: 0.625 | U74: 0.625 | V74: 22.6 | W74: 29 | X74: 2470 | Y74: 294 | Z74: 247 | AA74: 7.62 | AB74: 1750 | AC74: 252 | AD74: 219 | AE74: 6.42 | AF74: 3250 | AG74: 371
A75: HSS | B75: HSS20x16x0.500 | C75: HSS20x16x1/2 | D75: 20x16x0.500 | E75: 20x16 | F75: 0.5 | G75: 3x2 | J75: 3 | K75: 356 | L75: 358 | M75: Rectangular | N75: 116.91 | O75: 34.4 | P75: 20 | Q75: 16 | R75: 18.5 | S75: 14.5 | T75: 0.5 | U75: 0.5 | V75: 29 | W75: 37 | X75: 2030 | Y75: 240 | Z75: 203 | AA75: 7.69 | AB75: 1440 | AC75: 206 | AD75: 180 | AE75: 6.48 | AF75: 2650 | AG75: 302
A76: HSS | B76: HSS20x16x0.375 | C76: HSS20x16x3/8 | D76: 20x16x0.375 | E76: 20x16 | F76: 0.375 | G76: 3x1.5 | J76: 2 | K76: 359 | L76: 360 | M76: Rectangular | N76: 88.73 | O76: 26.1 | P76: 20 | Q76: 16 | R76: 18.8625 | S76: 14.8875 | T76: 0.375 | U76: 0.375 | V76: 39.7 | W76: 50.3 | X76: 1570 | Y76: 184 | Z76: 157 | AA76: 7.75 | AB76: 1110 | AC76: 158 | AD76: 139 | AE76: 6.54 | AF76: 2020 | AG76: 230
A77: HSS | B77: HSS20x16x0.312 | C77: HSS20x16x5/16 | D77: 20x16x0.312 | E77: 20x16 | F77: 0.312 | G77: 3x1 | J77: 1 | K77: 361 | L77: 361 | M77: Rectangular | N77: 74.38 | O77: 21.9 | P77: 20 | Q77: 16 | R77: 19.0617 | S77: 15.0553 | T77: 0.3125 | U77: 0.313 | V77: 48.1 | W77: 60.9 | X77: 1330 | Y77: 155 | Z77: 133 | AA77: 7.78 | AB77: 944 | AC77: 133 | AD77: 118 | AE77: 6.57 | AF77: 1710 | AG77: 193
A78: HSS | B78: HSS20x16x0.250 | C78: HSS20x16x1/4 | D78: 20x16x0.250 | E78: 20x16 | F78: 0.25 | G78: 2.5x2 | J78: 2 | K78: 362 | L78: 363 | M78: Rectangular | N78: 59.85 | O78: 17.6 | P78: 20 | Q78: 16 | R78: 19.25 | S78: 15.25 | T78: 0.25 | U78: 0.25 | V78: 61 | W78: 77 | X78: 1070 | Y78: 125 | Z78: 107 | AA78: 7.81 | AB78: 765 | AC78: 108 | AD78: 95.6 | AE78: 6.6 | AF78: 1370 | AG78: 155
A79: HSS | B79: HSS20x12x1 | C79: HSS20x12x1 | D79: 20x12x1 | E79: 20x12 | F79: 1 | G79: 2.5x1.5 | J79: 2 | K79: 364 | L79: 365 | M79: Rectangular | N79: 195.4 | O79: 57.4 | P79: 20 | Q79: 12 | R79: 17 | S79: 9 | T79: 1 | U79: 1 | V79: 9 | W79: 17 | X79: 2890 | Y79: 365 | Z79: 289 | AA79: 7.1 | AB79: 1290 | AC79: 255 | AD79: 215 | AE79: 4.75 | AF79: 2990 | AG79: 414
A80: HSS | B80: HSS20x12x0.875 | C80: HSS20x12x7/8 | D80: 20x12x0.875 | E80: 20x12 | F80: 0.875 | G80: 2.5x1 | J80: 1 | K80: 366 | L80: 366 | M80: Rectangular | N80: 173.43 | O80: 51 | P80: 20 | Q80: 12 | R80: 17.4125 | S80: 9.3625 | T80: 0.875 | U80: 0.875 | V80: 10.7 | W80: 19.9 | X80: 2620 | Y80: 327 | Z80: 262 | AA80: 7.17 | AB80: 1180 | AC80: 229 | AD80: 197 | AE80: 4.8 | AF80: 2680 | AG80: 370
A81: HSS | B81: HSS20x12x0.750 | C81: HSS20x12x3/4 | D81: 20x12x0.750 | E81: 20x12 | F81: 0.75 | G81: 2x1.5 | J81: 1 | K81: 367 | L81: 367 | M81: Rectangular | N81: 150.75 | O81: 44.3 | P81: 20 | Q81: 12 | R81: 17.775 | S81: 9.75 | T81: 0.75 | U81: 0.75 | V81: 13 | W81: 23.7 | X81: 2320 | Y81: 287 | Z81: 232 | AA81: 7.24 | AB81: 1050 | AC81: 202 | AD81: 175 | AE81: 4.86 | AF81: 2360 | AG81: 323
A82: HSS | B82: HSS20x12x0.625 | C82: HSS20x12x5/8 | D82: 20x12x0.625 | E82: 20x12 | F82: 0.625 | G82: 2x1 | J82: 1 | K82: 368 | L82: 368 | M82: Rectangular | N82: 127.37 | O82: 37.4 | P82: 20 | Q82: 12 | R82: 18.125 | S82: 10.125 | T82: 0.625 | U82: 0.625 | V82: 16.2 | W82: 29 | X82: 2000 | Y82: 245 | Z82: 200 | AA82: 7.3 | AB82: 904 | AC82: 172 | AD82: 151 | AE82: 4.92 | AF82: 2010 | AG82: 275
A83: HSS | B83: HSS20x12x0.500 | C83: HSS20x12x1/2 | D83: 20x12x0.500 | E83: 20x12 | F83: 0.5 | M83: Rectangular | N83: 103.3 | O83: 30.4 | P83: 20 | Q83: 12 | R83: 18.5 | S83: 10.5 | T83: 0.5 | U83: 0.5 | V83: 21 | W83: 37 | X83: 1650 | Y83: 201 | Z83: 165 | AA83: 7.37 | AB83: 750 | AC83: 141 | AD83: 125 | AE83: 4.97 | AF83: 1650 | AG83: 224
A84: HSS | B84: HSS20x12x0.375 | C84: HSS20x12x3/8 | D84: 20x12x0.375 | E84: 20x12 | F84: 0.375 | M84: Rectangular | N84: 78.52 | O84: 23.1 | P84: 20 | Q84: 12 | R84: 18.8625 | S84: 10.875 | T84: 0.375 | U84: 0.375 | V84: 29 | W84: 50.3 | X84: 1280 | Y84: 154 | Z84: 128 | AA84: 7.44 | AB84: 583 | AC84: 109 | AD84: 97.2 | AE84: 5.03 | AF84: 1270 | AG84: 171
A85: HSS | B85: HSS20x12x0.312 | C85: HSS20x12x5/16 | D85: 20x12x0.312 | E85: 20x12 | F85: 0.312 | M85: Rectangular | N85: 65.87 | O85: 19.4 | P85: 20 | Q85: 12 | R85: 19.0617 | S85: 11.0489 | T85: 0.3125 | U85: 0.313 | V85: 35.3 | W85: 60.9 | X85: 1080 | Y85: 130 | Z85: 108 | AA85: 7.47 | AB85: 495 | AC85: 91.9 | AD85: 82.5 | AE85: 5.06 | AF85: 1070 | AG85: 144
A86: HSS | B86: HSS20x8x1 | C86: HSS20x8x1 | D86: 20x8x1 | E86: 20x8 | F86: 1 | M86: Rectangular | N86: 168.18 | O86: 49.4 | P86: 20 | Q86: 8 | R86: 17 | S86: 5 | T86: 1 | U86: 1 | V86: 5 | W86: 17 | X86: 2170 | Y86: 289 | Z86: 217 | AA86: 6.63 | AB86: 493 | AC86: 148 | AD86: 123 | AE86: 3.16 | AF86: 1390 | AG86: 262
A87: HSS | B87: HSS20x8x0.875 | C87: HSS20x8x7/8 | D87: 20x8x0.875 | E87: 20x8 | F87: 0.875 | M87: Rectangular | N87: 149.61 | O87: 44 | P87: 20 | Q87: 8 | R87: 17.4125 | S87: 5.3725 | T87: 0.875 | U87: 0.875 | V87: 6.14 | W87: 19.9 | X87: 1980 | Y87: 260 | Z87: 198 | AA87: 6.71 | AB87: 454 | AC87: 134 | AD87: 114 | AE87: 3.21 | AF87: 1270 | AG87: 236
A88: HSS | B88: HSS20x8x0.750 | C88: HSS20x8x3/4 | D88: 20x8x0.750 | E88: 20x8 | F88: 0.75 | M88: Rectangular | N88: 130.33 | O88: 38.3 | P88: 20 | Q88: 8 | R88: 17.775 | S88: 5.7525 | T88: 0.75 | U88: 0.75 | V88: 7.67 | W88: 23.7 | X88: 1760 | Y88: 230 | Z88: 176 | AA88: 6.78 | AB88: 409 | AC88: 119 | AD88: 102 | AE88: 3.27 | AF88: 1130 | AG88: 208
A89: HSS | B89: HSS20x8x0.625 | C89: HSS20x8x5/8 | D89: 20x8x0.625 | E89: 20x8 | F89: 0.625 | M89: Rectangular | N89: 110.36 | O89: 32.4 | P89: 20 | Q89: 8 | R89: 18.125 | S89: 6.125 | T89: 0.625 | U89: 0.625 | V89: 9.8 | W89: 29 | X89: 1530 | Y89: 197 | Z89: 153 | AA89: 6.86 | AB89: 358 | AC89: 103 | AD89: 89.5 | AE89: 3.32 | AF89: 973 | AG89: 178
A90: HSS | B90: HSS20x8x0.500 | C90: HSS20x8x1/2 | D90: 20x8x0.500 | E90: 20x8 | F90: 0.5 | M90: Rectangular | N90: 89.68 | O90: 26.4 | P90: 20 | Q90: 8 | R90: 18.5 | S90: 6.5 | T90: 0.5 | U90: 0.5 | V90: 13 | W90: 37 | X90: 1270 | Y90: 162 | Z90: 127 | AA90: 6.94 | AB90: 300 | AC90: 84.7 | AD90: 75 | AE90: 3.38 | AF90: 806 | AG90: 146
A91: HSS | B91: HSS20x8x0.375 | C91: HSS20x8x3/8 | D91: 20x8x0.375 | E91: 20x8 | F91: 0.375 | M91: Rectangular | N91: 68.31 | O91: 20.1 | P91: 20 | Q91: 8 | R91: 18.8625 | S91: 6.8625 | T91: 0.375 | U91: 0.375 | V91: 18.3 | W91: 50.3 | X91: 988 | Y91: 125 | Z91: 98.8 | AA91: 7.02 | AB91: 236 | AC91: 65.6 | AD91: 59 | AE91: 3.43 | AF91: 625 | AG91: 112
A92: HSS | B92: HSS20x8x0.312 | C92: HSS20x8x5/16 | D92: 20x8x0.312 | E92: 20x8 | F92: 0.312 | M92: Rectangular | N92: 57.36 | O92: 16.9 | P92: 20 | Q92: 8 | R92: 19.0617 | S92: 7.0738 | T92: 0.3125 | U92: 0.313 | V92: 22.6 | W92: 60.9 | X92: 840 | Y92: 106 | Z92: 84 | AA92: 7.05 | AB92: 202 | AC92: 55.6 | AD92: 50.5 | AE92: 3.46 | AF92: 530 | AG92: 94.6
A93: HSS | B93: HSS20x6x0.625 | C93: HSS20x6x5/8 | D93: 20x6x0.625 | E93: 20x6 | F93: 0.625 | M93: Rectangular | N93: 101.85 | O93: 29.9 | P93: 20 | Q93: 6 | R93: 18.125 | S93: 4.125 | T93: 0.625 | U93: 0.625 | V93: 6.6 | W93: 29 | X93: 1290 | Y93: 173 | Z93: 129 | AA93: 6.57 | AB93: 184 | AC93: 71.3 | AD93: 61.3 | AE93: 2.48 | AF93: 558 | AG93: 129
A94: HSS | B94: HSS20x6x0.500 | C94: HSS20x6x1/2 | D94: 20x6x0.500 | E94: 20x6 | F94: 0.5 | M94: Rectangular | N94: 82.88 | O94: 24.4 | P94: 20 | Q94: 6 | R94: 18.5 | S94: 4.5 | T94: 0.5 | U94: 0.5 | V94: 9 | W94: 37 | X94: 1080 | Y94: 142 | Z94: 108 | AA94: 6.66 | AB94: 157 | AC94: 59.4 | AD94: 52.3 | AE94: 2.54 | AF94: 468 | AG94: 107
A95: HSS | B95: HSS20x6x0.375 | C95: HSS20x6x3/8 | D95: 20x6x0.375 | E95: 20x6 | F95: 0.375 | M95: Rectangular | N95: 63.21 | O95: 18.6 | P95: 20 | Q95: 6 | R95: 18.8625 | S95: 4.875 | T95: 0.375 | U95: 0.375 | V95: 13 | W95: 50.3 | X95: 843 | Y95: 110 | Z95: 84.3 | AA95: 6.74 | AB95: 125 | AC95: 46.3 | AD95: 41.7 | AE95: 2.59 | AF95: 367 | AG95: 82.6
A96: HSS | B96: HSS20x6x0.312 | C96: HSS20x6x5/16 | D96: 20x6x0.312 | E96: 20x6 | F96: 0.312 | M96: Rectangular | N96: 53.11 | O96: 15.6 | P96: 20 | Q96: 6 | R96: 19.0617 | S96: 5.0706 | T96: 0.3125 | U96: 0.313 | V96: 16.2 | W96: 60.9 | X96: 718 | Y96: 93.2 | Z96: 71.8 | AA96: 6.78 | AB96: 107 | AC96: 39.4 | AD96: 35.7 | AE96: 2.62 | AF96: 313 | AG96: 70
A97: HSS | B97: HSS20x6x0.250 | C97: HSS20x6x1/4 | D97: 20x6x0.250 | E97: 20x6 | F97: 0.25 | M97: Rectangular | N97: 42.84 | O97: 12.6 | P97: 20 | Q97: 6 | R97: 19.25 | S97: 5.25 | T97: 0.25 | U97: 0.25 | V97: 21 | W97: 77 | X97: 586 | Y97: 75.6 | Z97: 58.6 | AA97: 6.82 | AB97: 88.2 | AC97: 32.1 | AD97: 29.4 | AE97: 2.65 | AF97: 256 | AG97: 56.7
A98: HSS | B98: HSS20x4x0.500 | C98: HSS20x4x1/2 | D98: 20x4x0.500 | E98: 20x4 | F98: 0.5 | M98: Rectangular | N98: 76.07 | O98: 22.4 | P98: 20 | Q98: 4 | R98: 18.5 | S98: 2.5 | T98: 0.5 | U98: 0.5 | V98: 5 | W98: 37 | X98: 889 | Y98: 123 | Z98: 88.9 | AA98: 6.31 | AB98: 61.6 | AC98: 36 | AD98: 30.8 | AE98: 1.66 | AF98: 205 | AG98: 67.8
A99: HSS | B99: HSS20x4x0.375 | C99: HSS20x4x3/8 | D99: 20x4x0.375 | E99: 20x4 | F99: 0.375 | M99: Rectangular | N99: 58.1 | O99: 17.1 | P99: 20 | Q99: 4 | R99: 18.8625 | S99: 2.87625 | T99: 0.375 | U99: 0.375 | V99: 7.67 | W99: 50.3 | X99: 699 | Y99: 95.3 | Z99: 69.9 | AA99: 6.4 | AB99: 50.3 | AC99: 28.5 | AD99: 25.2 | AE99: 1.72 | AF99: 165 | AG99: 53.2
A100: HSS | B100: HSS20x4x0.312 | C100: HSS20x4x5/16 | D100: 20x4x0.312 | E100: 20x4 | F100: 0.312 | M100: Rectangular | N100: 48.86 | O100: 14.4 | P100: 20 | Q100: 4 | R100: 19.0617 | S100: 3.06114 | T100: 0.3125 | U100: 0.313 | V100: 9.78 | W100: 60.9 | X100: 597 | Y100: 80.9 | Z100: 59.7 | AA100: 6.44 | AB100: 43.7 | AC100: 24.4 | AD100: 21.9 | AE100: 1.74 | AF100: 143 | AG100: 45.3
A101: HSS | B101: HSS20x4x0.250 | C101: HSS20x4x1/4 | D101: 20x4x0.250 | E101: 20x4 | F101: 0.25 | M101: Rectangular | N101: 39.43 | O101: 11.6 | P101: 20 | Q101: 4 | R101: 19.25 | S101: 3.25 | T101: 0.25 | U101: 0.25 | V101: 13 | W101: 77 | X101: 488 | Y101: 65.7 | Z101: 48.8 | AA101: 6.49 | AB101: 36.4 | AC101: 20 | AD101: 18.2 | AE101: 1.77 | AF101: 118 | AG101: 37
A102: HSS | B102: HSS18x10x0.625 | C102: HSS18x10x5/8 | D102: 18x10x0.625 | E102: 18x10 | F102: 0.625 | M102: Rectangular | N102: 110.36 | O102: 32.4 | P102: 18 | Q102: 10 | R102: 16.125 | S102: 8.125 | T102: 0.625 | U102: 0.625 | V102: 13 | W102: 25.8 | X102: 1350 | Y102: 187 | Z102: 150 | AA102: 6.46 | AB102: 541 | AC102: 124 | AD102: 108 | AE102: 4.08 | AF102: 1270 | AG102: 203
A103: HSS | B103: HSS18x10x0.500 | C103: HSS18x10x1/2 | D103: 18x10x0.500 | E103: 18x10 | F103: 0.5 | M103: Rectangular | N103: 89.68 | O103: 26.4 | P103: 18 | Q103: 10 | R103: 16.5 | S103: 8.5 | T103: 0.5 | U103: 0.5 | V103: 17 | W103: 33 | X103: 1120 | Y103: 154 | Z103: 125 | AA103: 6.53 | AB103: 452 | AC103: 103 | AD103: 90.4 | AE103: 4.14 | AF103: 1040 | AG103: 166
A104: HSS | B104: HSS18x10x0.375 | C104: HSS18x10x3/8 | D104: 18x10x0.375 | E104: 18x10 | F104: 0.375 | M104: Rectangular | N104: 68.31 | O104: 20.1 | P104: 18 | Q104: 10 | R104: 16.875 | S104: 8.8875 | T104: 0.375 | U104: 0.375 | V104: 23.7 | W104: 45 | X104: 874 | Y104: 119 | Z104: 97.2 | AA104: 6.6 | AB104: 354 | AC104: 79.2 | AD104: 70.8 | AE104: 4.2 | AF104: 804 | AG104: 127
A105: HSS | B105: HSS18x10x0.312 | C105: HSS18x10x5/16 | D105: 18x10x0.312 | E105: 18x10 | F105: 0.312 | M105: Rectangular | N105: 57.36 | O105: 16.9 | P105: 18 | Q105: 10 | R105: 17.0585 | S105: 9.0457 | T105: 0.3125 | U105: 0.313 | V105: 28.9 | W105: 54.5 | X105: 743 | Y105: 100 | Z105: 82.6 | AA105: 6.63 | AB105: 301 | AC105: 67.1 | AD105: 60.2 | AE105: 4.22 | AF105: 680 | AG105: 107
A106: HSS | B106: HSS18x10x0.250 | C106: HSS18x10x1/4 | D106: 18x10x0.250 | E106: 18x10 | F106: 0.25 | M106: Rectangular | N106: 46.24 | O106: 13.6 | P106: 18 | Q106: 10 | R106: 17.25 | S106: 9.25 | T106: 0.25 | U106: 0.25 | V106: 37 | W106: 69 | X106: 604 | Y106: 81.2 | Z106: 67.1 | AA106: 6.67 | AB106: 246 | AC106: 54.4 | AD106: 49.2 | AE106: 4.25 | AF106: 550 | AG106: 86.5
A107: HSS | B107: HSS18x8x0.625 | C107: HSS18x8x5/8 | D107: 18x8x0.625 | E107: 18x8 | F107: 0.625 | M107: Rectangular | N107: 101.85 | O107: 29.9 | P107: 18 | Q107: 8 | R107: 16.125 | S107: 6.125 | T107: 0.625 | U107: 0.625 | V107: 9.8 | W107: 25.8 | X107: 1170 | Y107: 166 | Z107: 129 | AA107: 6.24 | AB107: 324 | AC107: 93.3 | AD107: 81 | AE107: 3.29 | AF107: 847 | AG107: 159
A108: HSS | B108: HSS18x8x0.500 | C108: HSS18x8x1/2 | D108: 18x8x0.500 | E108: 18x8 | F108: 0.5 | M108: Rectangular | N108: 82.88 | O108: 24.4 | P108: 18 | Q108: 8 | R108: 16.5 | S108: 6.5 | T108: 0.5 | U108: 0.5 | V108: 13 | W108: 33 | X108: 971 | Y108: 137 | Z108: 108 | AA108: 6.31 | AB108: 272 | AC108: 77.2 | AD108: 68 | AE108: 3.34 | AF108: 702 | AG108: 131
A109: HSS | B109: HSS18x8x0.375 | C109: HSS18x8x3/8 | D109: 18x8x0.375 | E109: 18x8 | F109: 0.375 | M109: Rectangular | N109: 63.21 | O109: 18.6 | P109: 18 | Q109: 8 | R109: 16.875 | S109: 6.8625 | T109: 0.375 | U109: 0.375 | V109: 18.3 | W109: 45 | X109: 758 | Y109: 105 | Z109: 84.2 | AA109: 6.39 | AB109: 215 | AC109: 59.9 | AD109: 53.8 | AE109: 3.4 | AF109: 545 | AG109: 101
A110: HSS | B110: HSS18x8x0.312 | C110: HSS18x8x5/16 | D110: 18x8x0.312 | E110: 18x8 | F110: 0.312 | M110: Rectangular | N110: 53.11 | O110: 15.6 | P110: 18 | Q110: 8 | R110: 17.0585 | S110: 7.0738 | T110: 0.3125 | U110: 0.313 | V110: 22.6 | W110: 54.5 | X110: 645 | Y110: 89.3 | Z110: 71.7 | AA110: 6.42 | AB110: 184 | AC110: 50.8 | AD110: 46 | AE110: 3.43 | AF110: 462 | AG110: 85
A111: HSS | B111: HSS18x8x0.250 | C111: HSS18x8x1/4 | D111: 18x8x0.250 | E111: 18x8 | F111: 0.25 | M111: Rectangular | N111: 42.84 | O111: 12.6 | P111: 18 | Q111: 8 | R111: 17.25 | S111: 7.25 | T111: 0.25 | U111: 0.25 | V111: 29 | W111: 69 | X111: 525 | Y111: 72.3 | Z111: 58.4 | AA111: 6.46 | AB111: 150 | AC111: 41.3 | AD111: 37.5 | AE111: 3.45 | AF111: 375 | AG111: 68.7
A112: HSS | B112: HSS18x6x0.750 | C112: HSS18x6x3/4 | D112: 18x6x0.750 | E112: 18x6 | F112: 0.75 | M112: Rectangular | N112: 109.91 | O112: 32.3 | P112: 18 | Q112: 6 | R112: 15.75 | S112: 3.75 | T112: 0.75 | U112: 0.75 | V112: 5 | W112: 21 | X112: 1120 | Y112: 167 | Z112: 124 | AA112: 5.88 | AB112: 187 | AC112: 74.3 | AD112: 62.3 | AE112: 2.41 | AF112: 558 | AG112: 134
A113: HSS | B113: HSS18x6x0.625 | C113: HSS18x6x5/8 | D113: 18x6x0.625 | E113: 18x6 | F113: 0.625 | M113: Rectangular | N113: 93.34 | O113: 27.4 | P113: 18 | Q113: 6 | R113: 16.125 | S113: 4.125 | T113: 0.625 | U113: 0.625 | V113: 6.6 | W113: 25.8 | X113: 977 | Y113: 144 | Z113: 109 | AA113: 5.97 | AB113: 166 | AC113: 64.6 | AD113: 55.3 | AE113: 2.46 | AF113: 489 | AG113: 116
A114: HSS | B114: HSS18x6x0.500 | C114: HSS18x6x1/2 | D114: 18x6x0.500 | E114: 18x6 | F114: 0.5 | M114: Rectangular | N114: 76.07 | O114: 22.4 | P114: 18 | Q114: 6 | R114: 16.5 | S114: 4.5 | T114: 0.5 | U114: 0.5 | V114: 9 | W114: 33 | X114: 818 | Y114: 119 | Z114: 90.9 | AA114: 6.05 | AB114: 142 | AC114: 53.9 | AD114: 47.3 | AE114: 2.52 | AF114: 410 | AG114: 95.8
A115: HSS | B115: HSS18x6x0.375 | C115: HSS18x6x3/8 | D115: 18x6x0.375 | E115: 18x6 | F115: 0.375 | M115: Rectangular | N115: 58.1 | O115: 17.1 | P115: 18 | Q115: 6 | R115: 16.875 | S115: 4.875 | T115: 0.375 | U115: 0.375 | V115: 13 | W115: 45 | X115: 641 | Y115: 92.2 | Z115: 71.3 | AA115: 6.13 | AB115: 113 | AC115: 42.1 | AD115: 37.7 | AE115: 2.57 | AF115: 322 | AG115: 74.2
A116: HSS | B116: HSS18x6x0.312 | C116: HSS18x6x5/16 | D116: 18x6x0.312 | E116: 18x6 | F116: 0.312 | M116: Rectangular | N116: 48.86 | O116: 14.4 | P116: 18 | Q116: 6 | R116: 17.0585 | S116: 5.0706 | T116: 0.3125 | U116: 0.313 | V116: 16.2 | W116: 54.5 | X116: 547 | Y116: 78.2 | Z116: 60.8 | AA116: 6.17 | AB116: 97.1 | AC116: 35.8 | AD116: 32.4 | AE116: 2.6 | AF116: 275 | AG116: 62.8
A117: HSS | B117: HSS18x6x0.250 | C117: HSS18x6x1/4 | D117: 18x6x0.250 | E117: 18x6 | F117: 0.25 | M117: Rectangular | N117: 39.43 | O117: 11.6 | P117: 18 | Q117: 6 | R117: 17.25 | S117: 5.25 | T117: 0.25 | U117: 0.25 | V117: 21 | W117: 69 | X117: 447 | Y117: 63.5 | Z117: 49.6 | AA117: 6.21 | AB117: 80 | AC117: 29.2 | AD117: 26.7 | AE117: 2.63 | AF117: 224 | AG117: 51
A118: HSS | B118: HSS16x12x1 | C118: HSS16x12x1 | D118: 16x12x1 | E118: 16x12 | F118: 1 | M118: Rectangular | N118: 168.18 | O118: 49.4 | P118: 16 | Q118: 12 | R118: 13 | S118: 9 | T118: 1 | U118: 1 | V118: 9 | W118: 13 | X118: 1650 | Y118: 258 | Z118: 207 | AA118: 5.78 | AB118: 1050 | AC118: 211 | AD118: 175 | AE118: 4.61 | AF118: 2150 | AG118: 326
A119: HSS | B119: HSS16x12x0.875 | C119: HSS16x12x7/8 | D119: 16x12x0.875 | E119: 16x12 | F119: 0.875 | M119: Rectangular | N119: 149.61 | O119: 44 | P119: 16 | Q119: 12 | R119: 13.3875 | S119: 9.3625 | T119: 0.875 | U119: 0.875 | V119: 10.7 | W119: 15.3 | X119: 1500 | Y119: 232 | Z119: 188 | AA119: 5.85 | AB119: 959 | AC119: 190 | AD119: 160 | AE119: 4.67 | AF119: 1940 | AG119: 292
A120: HSS | B120: HSS16x12x0.750 | C120: HSS16x12x3/4 | D120: 16x12x0.750 | E120: 16x12 | F120: 0.75 | M120: Rectangular | N120: 130.33 | O120: 38.3 | P120: 16 | Q120: 12 | R120: 13.725 | S120: 9.75 | T120: 0.75 | U120: 0.75 | V120: 13 | W120: 18.3 | X120: 1340 | Y120: 205 | Z120: 167 | AA120: 5.91 | AB120: 856 | AC120: 168 | AD120: 143 | AE120: 4.73 | AF120: 1710 | AG120: 256
A121: HSS | B121: HSS16x12x0.625 | C121: HSS16x12x5/8 | D121: 16x12x0.625 | E121: 16x12 | F121: 0.625 | M121: Rectangular | N121: 110.36 | O121: 32.4 | P121: 16 | Q121: 12 | R121: 14.125 | S121: 10.125 | T121: 0.625 | U121: 0.625 | V121: 16.2 | W121: 22.6 | X121: 1160 | Y121: 175 | Z121: 145 | AA121: 5.98 | AB121: 742 | AC121: 144 | AD121: 124 | AE121: 4.78 | AF121: 1460 | AG121: 218
A122: HSS | B122: HSS16x12x0.500 | C122: HSS16x12x1/2 | D122: 16x12x0.500 | E122: 16x12 | F122: 0.5 | M122: Rectangular | N122: 89.68 | O122: 26.4 | P122: 16 | Q122: 12 | R122: 14.5 | S122: 10.5 | T122: 0.5 | U122: 0.5 | V122: 21 | W122: 29 | X122: 962 | Y122: 144 | Z122: 120 | AA122: 6.04 | AB122: 618 | AC122: 118 | AD122: 103 | AE122: 4.84 | AF122: 1200 | AG122: 178
A123: HSS | B123: HSS16x12x0.375 | C123: HSS16x12x3/8 | D123: 16x12x0.375 | E123: 16x12 | F123: 0.375 | M123: Rectangular | N123: 68.31 | O123: 20.1 | P123: 16 | Q123: 12 | R123: 14.8875 | S123: 10.875 | T123: 0.375 | U123: 0.375 | V123: 29 | W123: 39.7 | X123: 748 | Y123: 111 | Z123: 93.5 | AA123: 6.11 | AB123: 482 | AC123: 91.3 | AD123: 80.3 | AE123: 4.9 | AF123: 922 | AG123: 136
A124: HSS | B124: HSS16x12x0.312 | C124: HSS16x12x5/16 | D124: 16x12x0.312 | E124: 16x12 | F124: 0.312 | M124: Rectangular | N124: 57.36 | O124: 16.9 | P124: 16 | Q124: 12 | R124: 15.0553 | S124: 11.0489 | T124: 0.3125 | U124: 0.313 | V124: 35.3 | W124: 48.1 | X124: 636 | Y124: 93.9 | Z124: 79.5 | AA124: 6.14 | AB124: 410 | AC124: 77.3 | AD124: 68.3 | AE124: 4.93 | AF124: 779 | AG124: 115
A125: HSS | B125: HSS16x10x0.625 | C125: HSS16x10x5/8 | D125: 16x10x0.625 | E125: 16x10 | F125: 0.625 | M125: Rectangular | N125: 101.85 | O125: 29.9 | P125: 16 | Q125: 10 | R125: 14.125 | S125: 8.125 | T125: 0.625 | U125: 0.625 | V125: 13 | W125: 22.6 | X125: 1010 | Y125: 156 | Z125: 126 | AA125: 5.81 | AB125: 486 | AC125: 113 | AD125: 97.2 | AE125: 4.03 | AF125: 1070 | AG125: 179
A126: HSS | B126: HSS16x10x0.500 | C126: HSS16x10x1/2 | D126: 16x10x0.500 | E126: 16x10 | F126: 0.5 | M126: Rectangular | N126: 82.88 | O126: 24.4 | P126: 16 | Q126: 10 | R126: 14.5 | S126: 8.5 | T126: 0.5 | U126: 0.5 | V126: 17 | W126: 29 | X126: 842 | Y126: 129 | Z126: 105 | AA126: 5.88 | AB126: 407 | AC126: 93.1 | AD126: 81.4 | AE126: 4.09 | AF126: 884 | AG126: 147
A127: HSS | B127: HSS16x10x0.375 | C127: HSS16x10x3/8 | D127: 16x10x0.375 | E127: 16x10 | F127: 0.375 | M127: Rectangular | N127: 63.21 | O127: 18.6 | P127: 16 | Q127: 10 | R127: 14.8875 | S127: 8.8875 | T127: 0.375 | U127: 0.375 | V127: 23.7 | W127: 39.7 | X127: 657 | Y127: 99.3 | Z127: 82.1 | AA127: 5.95 | AB127: 319 | AC127: 72 | AD127: 63.8 | AE127: 4.14 | AF127: 682 | AG127: 113
A128: HSS | B128: HSS16x10x0.312 | C128: HSS16x10x5/16 | D128: 16x10x0.312 | E128: 16x10 | F128: 0.312 | M128: Rectangular | N128: 53.11 | O128: 15.6 | P128: 16 | Q128: 10 | R128: 15.0553 | S128: 9.0457 | T128: 0.3125 | U128: 0.313 | V128: 28.9 | W128: 48.1 | X128: 559 | Y128: 84.1 | Z128: 69.9 | AA128: 5.98 | AB128: 272 | AC128: 61 | AD128: 54.4 | AE128: 4.17 | AF128: 577 | AG128: 95
A129: HSS | B129: HSS16x10x0.250 | C129: HSS16x10x1/4 | D129: 16x10x0.250 | E129: 16x10 | F129: 0.25 | M129: Rectangular | N129: 42.84 | O129: 12.6 | P129: 16 | Q129: 10 | R129: 15.25 | S129: 9.25 | T129: 0.25 | U129: 0.25 | V129: 37 | W129: 61 | X129: 455 | Y129: 68.1 | Z129: 56.9 | AA129: 6.01 | AB129: 222 | AC129: 49.5 | AD129: 44.4 | AE129: 4.2 | AF129: 468 | AG129: 76.7
A130: HSS | B130: HSS16x8x0.875 | C130: HSS16x8x7/8 | D130: 16x8x0.875 | E130: 16x8 | F130: 0.875 | M130: Rectangular | N130: 125.79 | O130: 37 | P130: 16 | Q130: 8 | R130: 13.3875 | S130: 5.3725 | T130: 0.875 | U130: 0.875 | V130: 6.14 | W130: 15.3 | X130: 1100 | Y130: 179 | Z130: 138 | AA130: 5.46 | AB130: 364 | AC130: 109 | AD130: 91 | AE130: 3.14 | AF130: 936 | AG130: 186
A131: HSS | B131: HSS16x8x0.750 | C131: HSS16x8x3/4 | D131: 16x8x0.750 | E131: 16x8 | F131: 0.75 | M131: Rectangular | N131: 109.91 | O131: 32.3 | P131: 16 | Q131: 8 | R131: 13.725 | S131: 5.7525 | T131: 0.75 | U131: 0.75 | V131: 7.67 | W131: 18.3 | X131: 990 | Y131: 159 | Z131: 124 | AA131: 5.54 | AB131: 330 | AC131: 97.3 | AD131: 82.5 | AE131: 3.19 | AF131: 835 | AG131: 164
A132: HSS | B132: HSS16x8x0.625 | C132: HSS16x8x5/8 | D132: 16x8x0.625 | E132: 16x8 | F132: 0.625 | M132: Rectangular | N132: 93.34 | O132: 27.4 | P132: 16 | Q132: 8 | R132: 14.125 | S132: 6.125 | T132: 0.625 | U132: 0.625 | V132: 9.8 | W132: 22.6 | X132: 863 | Y132: 137 | Z132: 108 | AA132: 5.61 | AB132: 290 | AC132: 84.1 | AD132: 72.5 | AE132: 3.25 | AF132: 723 | AG132: 141
A133: HSS | B133: HSS16x8x0.500 | C133: HSS16x8x1/2 | D133: 16x8x0.500 | E133: 16x8 | F133: 0.5 | M133: Rectangular | N133: 76.07 | O133: 22.4 | P133: 16 | Q133: 8 | R133: =W133*U133 -> 14.5 | S133: =V133*U133 -> 6.5 | T133: 0.5 | U133: 0.5 | V133: 13 | W133: 29 | X133: 722 | Y133: 113 | Z133: 90.2 | AA133: 5.68 | AB133: 244 | AC133: 69.7 | AD133: 61 | AE133: 3.3 | AF133: 599 | AG133: 116
A134: HSS | B134: HSS16x8x0.375 | C134: HSS16x8x3/8 | D134: 16x8x0.375 | E134: 16x8 | F134: 0.375 | M134: Rectangular | N134: 58.1 | O134: 17.1 | P134: 16 | Q134: 8 | R134: 14.8875 | S134: 6.8625 | T134: 0.375 | U134: 0.375 | V134: 18.3 | W134: 39.7 | X134: 565 | Y134: 87.6 | Z134: 70.6 | AA134: 5.75 | AB134: 193 | AC134: 54.2 | AD134: 48.3 | AE134: 3.36 | AF134: 465 | AG134: 89.2
A135: HSS | B135: HSS16x8x0.312 | C135: HSS16x8x5/16 | D135: 16x8x0.312 | E135: 16x8 | F135: 0.312 | M135: Rectangular | N135: 48.86 | O135: 14.4 | P135: 16 | Q135: 8 | R135: 15.0553 | S135: 7.0738 | T135: 0.3125 | U135: 0.313 | V135: 22.6 | W135: 48.1 | X135: 482 | Y135: 74.3 | Z135: 60.2 | AA135: 5.79 | AB135: 165 | AC135: 46 | AD135: 41.3 | AE135: 3.39 | AF135: 395 | AG135: 75.4
A136: HSS | B136: HSS16x8x0.250 | C136: HSS16x8x1/4 | D136: 16x8x0.250 | E136: 16x8 | F136: 0.25 | M136: Rectangular | N136: 39.43 | O136: 11.6 | P136: 16 | Q136: 8 | R136: 15.25 | S136: 7.25 | T136: 0.25 | U136: 0.25 | V136: 29 | W136: 61 | X136: 393 | Y136: 60.3 | Z136: 49.1 | AA136: 5.82 | AB136: 135 | AC136: 37.4 | AD136: 33.8 | AE136: 3.42 | AF136: 321 | AG136: 61
A137: HSS | B137: HSS16x6x0.625 | C137: HSS16x6x5/8 | D137: 16x6x0.625 | E137: 16x6 | F137: 0.625 | M137: Rectangular | N137: 84.84 | O137: 24.9 | P137: 16 | Q137: 6 | R137: 14.125 | S137: 4.125 | T137: 0.625 | U137: 0.625 | V137: 6.6 | W137: 22.6 | X137: 715 | Y137: 118 | Z137: 89.4 | AA137: 5.36 | AB137: 148 | AC137: 57.9 | AD137: 49.3 | AE137: 2.44 | AF137: 420 | AG137: 102
A138: HSS | B138: HSS16x6x0.500 | C138: HSS16x6x1/2 | D138: 16x6x0.500 | E138: 16x6 | F138: 0.5 | M138: Rectangular | N138: 69.27 | O138: 20.4 | P138: 16 | Q138: 6 | R138: 14.5 | S138: 4.5 | T138: 0.5 | U138: 0.5 | V138: 9 | W138: 29 | X138: 602 | Y138: 97.7 | Z138: 75.2 | AA138: 5.44 | AB138: 126 | AC138: 48.4 | AD138: 42 | AE138: 2.49 | AF138: 353 | AG138: 84.8
A139: HSS | B139: HSS16x6x0.375 | C139: HSS16x6x3/8 | D139: 16x6x0.375 | E139: 16x6 | F139: 0.375 | M139: Rectangular | N139: 53 | O139: 15.6 | P139: 16 | Q139: 6 | R139: 14.8875 | S139: 4.875 | T139: 0.375 | U139: 0.375 | V139: 13 | W139: 39.7 | X139: 474 | Y139: 75.9 | Z139: 59.2 | AA139: 5.51 | AB139: 101 | AC139: 37.9 | AD139: 33.7 | AE139: 2.55 | AF139: 277 | AG139: 65.7
A140: HSS | B140: HSS16x6x0.312 | C140: HSS16x6x5/16 | D140: 16x6x0.312 | E140: 16x6 | F140: 0.312 | M140: Rectangular | N140: 44.6 | O140: 13.1 | P140: 16 | Q140: 6 | R140: 15.0553 | S140: 5.0706 | T140: 0.3125 | U140: 0.313 | V140: 16.2 | W140: 48.1 | X140: 405 | Y140: 64.4 | Z140: 50.6 | AA140: 5.55 | AB140: 87 | AC140: 32.3 | AD140: 29 | AE140: 2.57 | AF140: 237 | AG140: 55.7
A141: HSS | B141: HSS16x6x0.250 | C141: HSS16x6x1/4 | D141: 16x6x0.250 | E141: 16x6 | F141: 0.25 | M141: Rectangular | N141: 36.03 | O141: 10.6 | P141: 16 | Q141: 6 | R141: 15.25 | S141: 5.25 | T141: 0.25 | U141: 0.25 | V141: 21 | W141: 61 | X141: 331 | Y141: 52.4 | Z141: 41.4 | AA141: 5.59 | AB141: 71.7 | AC141: 26.3 | AD141: 23.9 | AE141: 2.6 | AF141: 193 | AG141: 45.2
A142: HSS | B142: HSS16x6x0.188 | C142: HSS16x6x3/16 | D142: 16x6x0.188 | E142: 16x6 | F142: 0.188 | M142: Rectangular | N142: 27.29 | O142: 8.04 | P142: 16 | Q142: 6 | R142: 15.4348 | S142: 5.4332 | T142: 0.1875 | U142: 0.188 | V142: 28.9 | W142: 82.1 | X142: 255 | Y142: 40.1 | Z142: 31.8 | AA142: 5.63 | AB142: 55.6 | AC142: 20.2 | AD142: 18.5 | AE142: 2.63 | AF142: 148 | AG142: 34.5
A143: HSS | B143: HSS16x4x0.625 | C143: HSS16x4x5/8 | D143: 16x4x0.625 | E143: 16x4 | F143: 0.625 | M143: Rectangular | N143: 76.33 | O143: 22.4 | P143: 16 | Q143: 4 | R143: 14.125 | S143: 2.125 | T143: 0.625 | U143: 0.625 | V143: 3.4 | W143: 22.6 | X143: 568 | Y143: 98.5 | Z143: 70.9 | AA143: 5.03 | AB143: 56.4 | AC143: 34.2 | AD143: 28.2 | AE143: 1.59 | AF143: 182 | AG143: 63.9
A144: HSS | B144: HSS16x4x0.500 | C144: HSS16x4x1/2 | D144: 16x4x0.500 | E144: 16x4 | F144: 0.5 | M144: Rectangular | N144: 62.46 | O144: 18.4 | P144: 16 | Q144: 4 | R144: 14.5 | S144: 2.5 | T144: 0.5 | U144: 0.5 | V144: 5 | W144: 29 | X144: 481 | Y144: 82.2 | Z144: 60.2 | AA144: 5.12 | AB144: 49.3 | AC144: 29 | AD144: 24.7 | AE144: 1.64 | AF144: 157 | AG144: 53.8
A145: HSS | B145: HSS16x4x0.375 | C145: HSS16x4x3/8 | D145: 16x4x0.375 | E145: 16x4 | F145: 0.375 | M145: Rectangular | N145: 47.9 | O145: 14.1 | P145: 16 | Q145: 4 | R145: 14.8875 | S145: 2.87625 | T145: 0.375 | U145: 0.375 | V145: 7.67 | W145: 39.7 | X145: 382 | Y145: 64.2 | Z145: 47.8 | AA145: 5.21 | AB145: 40.4 | AC145: 23 | AD145: 20.2 | AE145: 1.69 | AF145: 127 | AG145: 42.3
A146: HSS | B146: HSS16x4x0.312 | C146: HSS16x4x5/16 | D146: 16x4x0.312 | E146: 16x4 | F146: 0.312 | M146: Rectangular | N146: 40.35 | O146: 11.9 | P146: 16 | Q146: 4 | R146: 15.0553 | S146: 3.06114 | T146: 0.3125 | U146: 0.313 | V146: 9.78 | W146: 48.1 | X146: 328 | Y146: 54.6 | Z146: 41 | AA146: 5.25 | AB146: 35.2 | AC146: 19.8 | AD146: 17.6 | AE146: 1.72 | AF146: 110 | AG146: 36.1
A147: HSS | B147: HSS16x4x0.250 | C147: HSS16x4x1/4 | D147: 16x4x0.250 | E147: 16x4 | F147: 0.25 | M147: Rectangular | N147: 32.63 | O147: 9.59 | P147: 16 | Q147: 4 | R147: 15.25 | S147: 3.25 | T147: 0.25 | U147: 0.25 | V147: 13 | W147: 61 | X147: 269 | Y147: 44.5 | Z147: 33.6 | AA147: 5.3 | AB147: 29.3 | AC147: 16.2 | AD147: 14.7 | AE147: 1.75 | AF147: 90.6 | AG147: 29.5
A148: HSS | B148: HSS16x4x0.188 | C148: HSS16x4x3/16 | D148: 16x4x0.188 | E148: 16x4 | F148: 0.188 | M148: Rectangular | N148: 24.73 | O148: 7.29 | P148: 16 | Q148: 4 | R148: 15.4348 | S148: 3.4404 | T148: 0.1875 | U148: 0.188 | V148: 18.3 | W148: 82.1 | X148: 208 | Y148: 34.1 | Z148: 26 | AA148: 5.34 | AB148: 23 | AC148: 12.5 | AD148: 11.5 | AE148: 1.78 | AF148: 70.3 | AG148: 22.6
A149: HSS | B149: HSS14x12x0.625 | C149: HSS14x12x5/8 | D149: 14x12x0.625 | E149: 14x12 | F149: 0.625 | M149: Rectangular | N149: 101.85 | O149: 29.9 | P149: 14 | Q149: 12 | R149: 12.125 | S149: 10.125 | T149: 0.625 | U149: 0.625 | V149: 16.2 | W149: 19.4 | X149: 840 | Y149: 144 | Z149: 120 | AA149: 5.3 | AB149: 661 | AC149: 130 | AD149: 110 | AE149: 4.7 | AF149: 1200 | AG149: 189
A150: HSS | B150: HSS14x12x0.500 | C150: HSS14x12x1/2 | D150: 14x12x0.500 | E150: 14x12 | F150: 0.5 | M150: Rectangular | N150: 82.88 | O150: 24.4 | P150: 14 | Q150: 12 | R150: 12.5 | S150: 10.5 | T150: 0.5 | U150: 0.5 | V150: 21 | W150: 25 | X150: 699 | Y150: 119 | Z150: 99.9 | AA150: 5.36 | AB150: 552 | AC150: 107 | AD150: 92 | AE150: 4.76 | AF150: 983 | AG150: 155
A151: HSS | B151: HSS14x12x0.375 | C151: HSS14x12x3/8 | D151: 14x12x0.375 | E151: 14x12 | F151: 0.375 | M151: Rectangular | N151: 63.21 | O151: 18.6 | P151: 14 | Q151: 12 | R151: 12.8625 | S151: 10.875 | T151: 0.375 | U151: 0.375 | V151: 29 | W151: 34.3 | X151: 546 | Y151: 91.7 | Z151: 78 | AA151: 5.42 | AB151: 431 | AC151: 82.6 | AD151: 71.8 | AE151: 4.82 | AF151: 757 | AG151: 119
A152: HSS | B152: HSS14x12x0.312 | C152: HSS14x12x5/16 | D152: 14x12x0.312 | E152: 14x12 | F152: 0.312 | M152: Rectangular | N152: 53.11 | O152: 15.6 | P152: 14 | Q152: 12 | R152: 13.0521 | S152: 11.0489 | T152: 0.3125 | U152: 0.313 | V152: 35.3 | W152: 41.7 | X152: 465 | Y152: 77.6 | Z152: 66.4 | AA152: 5.45 | AB152: 367 | AC152: 70 | AD152: 61.2 | AE152: 4.85 | AF152: 640 | AG152: 100
A153: HSS | B153: HSS14x12x0.250 | C153: HSS14x12x1/4 | D153: 14x12x0.250 | E153: 14x12 | F153: 0.25 | M153: Rectangular | N153: 42.84 | O153: 12.6 | P153: 14 | Q153: 12 | R153: 13.25 | S153: 11.25 | T153: 0.25 | U153: 0.25 | V153: 45 | W153: 53 | X153: 378 | Y153: 62.9 | Z153: 54.1 | AA153: 5.48 | AB153: 299 | AC153: 56.7 | AD153: 49.8 | AE153: 4.88 | AF153: 518 | AG153: 80.7
A154: HSS | B154: HSS14x10x0.875 | C154: HSS14x10x7/8 | D154: 14x10x0.875 | E154: 14x10 | F154: 0.875 | M154: Rectangular | N154: 125.79 | O154: 37 | P154: 14 | Q154: 10 | R154: 11.375 | S154: 7.37625 | T154: 0.875 | U154: 0.875 | V154: 8.43 | W154: 13 | X154: 931 | Y154: 167 | Z154: 133 | AA154: 5.02 | AB154: 548 | AC154: 132 | AD154: 110 | AE154: 3.85 | AF154: 1160 | AG154: 207
A155: HSS | B155: HSS14x10x0.750 | C155: HSS14x10x3/4 | D155: 14x10x0.750 | E155: 14x10 | F155: 0.75 | M155: Rectangular | N155: 109.91 | O155: 32.3 | P155: 14 | Q155: 10 | R155: 11.775 | S155: 7.725 | T155: 0.75 | U155: 0.75 | V155: 10.3 | W155: 15.7 | X155: 835 | Y155: 148 | Z155: 119 | AA155: 5.09 | AB155: 493 | AC155: 117 | AD155: 98.6 | AE155: 3.91 | AF155: 1030 | AG155: 182
A156: HSS | B156: HSS14x10x0.625 | C156: HSS14x10x5/8 | D156: 14x10x0.625 | E156: 14x10 | F156: 0.625 | M156: Rectangular | N156: 93.34 | O156: 27.4 | P156: 14 | Q156: 10 | R156: 12.125 | S156: 8.125 | T156: 0.625 | U156: 0.625 | V156: 13 | W156: 19.4 | X156: 728 | Y156: 127 | Z156: 104 | AA156: 5.15 | AB156: 431 | AC156: 101 | AD156: 86.2 | AE156: 3.96 | AF156: 885 | AG156: 156
A157: HSS | B157: HSS14x10x0.500 | C157: HSS14x10x1/2 | D157: 14x10x0.500 | E157: 14x10 | F157: 0.5 | M157: Rectangular | N157: 76.07 | O157: 22.4 | P157: 14 | Q157: 10 | R157: 12.5 | S157: 8.5 | T157: 0.5 | U157: 0.5 | V157: 17 | W157: 25 | X157: 608 | Y157: 105 | Z157: 86.9 | AA157: 5.22 | AB157: 361 | AC157: 83.6 | AD157: 72.2 | AE157: 4.02 | AF157: 730 | AG157: 128
A158: HSS | B158: HSS14x10x0.375 | C158: HSS14x10x3/8 | D158: 14x10x0.375 | E158: 14x10 | F158: 0.375 | M158: Rectangular | N158: 58.1 | O158: 17.1 | P158: 14 | Q158: 10 | R158: 12.8625 | S158: 8.8875 | T158: 0.375 | U158: 0.375 | V158: 23.7 | W158: 34.3 | X158: 476 | Y158: 81.5 | Z158: 68 | AA158: 5.28 | AB158: 284 | AC158: 64.8 | AD158: 56.8 | AE158: 4.08 | AF158: 564 | AG158: 98.2
A159: HSS | B159: HSS14x10x0.312 | C159: HSS14x10x5/16 | D159: 14x10x0.312 | E159: 14x10 | F159: 0.312 | M159: Rectangular | N159: 48.86 | O159: 14.4 | P159: 14 | Q159: 10 | R159: 13.0521 | S159: 9.0457 | T159: 0.3125 | U159: 0.313 | V159: 28.9 | W159: 41.7 | X159: 406 | Y159: 69.1 | Z159: 58 | AA159: 5.31 | AB159: 242 | AC159: 55 | AD159: 48.4 | AE159: 4.11 | AF159: 478 | AG159: 82.9
A160: HSS | B160: HSS14x10x0.250 | C160: HSS14x10x1/4 | D160: 14x10x0.250 | E160: 14x10 | F160: 0.25 | M160: Rectangular | N160: 39.43 | O160: 11.6 | P160: 14 | Q160: 10 | R160: 13.25 | S160: 9.25 | T160: 0.25 | U160: 0.25 | V160: 37 | W160: 53 | X160: 331 | Y160: 56 | Z160: 47.3 | AA160: 5.35 | AB160: 198 | AC160: 44.6 | AD160: 39.6 | AE160: 4.14 | AF160: 387 | AG160: 67
A161: HSS | B161: HSS14x8x0.625 | C161: HSS14x8x5/8 | D161: 14x8x0.625 | E161: 14x8 | F161: 0.625 | M161: Rectangular | N161: 84.84 | O161: 24.9 | P161: 14 | Q161: 8 | R161: 12.125 | S161: 6.125 | T161: 0.625 | U161: 0.625 | V161: 9.8 | W161: 19.4 | X161: 616 | Y161: 111 | Z161: 88 | AA161: 4.97 | AB161: 256 | AC161: 74.9 | AD161: 64 | AE161: 3.2 | AF161: 601 | AG161: 122
A162: HSS | B162: HSS14x8x0.500 | C162: HSS14x8x1/2 | D162: 14x8x0.500 | E162: 14x8 | F162: 0.5 | M162: Rectangular | N162: 69.27 | O162: 20.4 | P162: 14 | Q162: 8 | R162: 12.5 | S162: 6.5 | T162: 0.5 | U162: 0.5 | V162: 13 | W162: 25 | X162: 517 | Y162: 91.8 | Z162: 73.9 | AA162: 5.04 | AB162: 216 | AC162: 62.2 | AD162: 54 | AE162: 3.26 | AF162: 499 | AG162: 101
A163: HSS | B163: HSS14x8x0.375 | C163: HSS14x8x3/8 | D163: 14x8x0.375 | E163: 14x8 | F163: 0.375 | M163: Rectangular | N163: 53 | O163: 15.6 | P163: 14 | Q163: 8 | R163: 12.8625 | S163: 6.8625 | T163: 0.375 | U163: 0.375 | V163: 18.3 | W163: 34.3 | X163: 407 | Y163: 71.3 | Z163: 58.1 | AA163: 5.11 | AB163: 171 | AC163: 48.5 | AD163: 42.8 | AE163: 3.31 | AF163: 388 | AG163: 77.7
A164: HSS | B164: HSS14x8x0.312 | C164: HSS14x8x5/16 | D164: 14x8x0.312 | E164: 14x8 | F164: 0.312 | M164: Rectangular | N164: 44.6 | O164: 13.1 | P164: 14 | Q164: 8 | R164: 13.0521 | S164: 7.0738 | T164: 0.3125 | U164: 0.313 | V164: 22.6 | W164: 41.7 | X164: 347 | Y164: 60.5 | Z164: 49.6 | AA164: 5.14 | AB164: 147 | AC164: 41.2 | AD164: 36.8 | AE164: 3.34 | AF164: 329 | AG164: 65.7
A165: HSS | B165: HSS14x8x0.250 | C165: HSS14x8x1/4 | D165: 14x8x0.250 | E165: 14x8 | F165: 0.25 | M165: Rectangular | N165: 36.03 | O165: 10.6 | P165: 14 | Q165: 8 | R165: 13.25 | S165: 7.25 | T165: 0.25 | U165: 0.25 | V165: 29 | W165: 53 | X165: 284 | Y165: 49.2 | Z165: 40.5 | AA165: 5.18 | AB165: 120 | AC165: 33.5 | AD165: 30 | AE165: 3.37 | AF165: 267 | AG165: 53.2
A166: HSS | B166: HSS14x8x0.188 | C166: HSS14x8x3/16 | D166: 14x8x0.188 | E166: 14x8 | F166: 0.188 | M166: Rectangular | N166: 27.29 | O166: 8.04 | P166: 14 | Q166: 8 | R166: 13.442 | S166: 7.4448 | T166: 0.1875 | U166: 0.188 | V166: 39.6 | W166: 71.5 | X166: 218 | Y166: 37.6 | Z166: 31.2 | AA166: 5.21 | AB166: 92.8 | AC166: 25.7 | AD166: 23.2 | AE166: 3.4 | AF166: 204 | AG166: 40.5
A167: HSS | B167: HSS14x6x0.625 | C167: HSS14x6x5/8 | D167: 14x6x0.625 | E167: 14x6 | F167: 0.625 | M167: Rectangular | N167: 76.33 | O167: 22.4 | P167: 14 | Q167: 6 | R167: 12.125 | S167: 4.125 | T167: 0.625 | U167: 0.625 | V167: 6.6 | W167: 19.4 | X167: 504 | Y167: 94 | Z167: 72 | AA167: 4.74 | AB167: 130 | AC167: 51.2 | AD167: 43.3 | AE167: 2.41 | AF167: 352 | AG167: 88.9
A168: HSS | B168: HSS14x6x0.500 | C168: HSS14x6x1/2 | D168: 14x6x0.500 | E168: 14x6 | F168: 0.5 | M168: Rectangular | N168: 62.46 | O168: 18.4 | P168: 14 | Q168: 6 | R168: 12.5 | S168: 4.5 | T168: 0.5 | U168: 0.5 | V168: 9 | W168: 25 | X168: 426 | Y168: 78.3 | Z168: 60.8 | AA168: 4.82 | AB168: 111 | AC168: 42.9 | AD168: 37 | AE168: 2.46 | AF168: 296 | AG168: 73.8
A169: HSS | B169: HSS14x6x0.375 | C169: HSS14x6x3/8 | D169: 14x6x0.375 | E169: 14x6 | F169: 0.375 | M169: Rectangular | N169: 47.9 | O169: 14.1 | P169: 14 | Q169: 6 | R169: 12.8625 | S169: 4.875 | T169: 0.375 | U169: 0.375 | V169: 13 | W169: 34.3 | X169: 337 | Y169: 61.1 | Z169: 48.1 | AA169: 4.89 | AB169: 89.1 | AC169: 33.6 | AD169: 29.7 | AE169: 2.52 | AF169: 233 | AG169: 57.3
A170: HSS | B170: HSS14x6x0.312 | C170: HSS14x6x5/16 | D170: 14x6x0.312 | E170: 14x6 | F170: 0.312 | M170: Rectangular | N170: 40.35 | O170: 11.9 | P170: 14 | Q170: 6 | R170: 13.0521 | S170: 5.0706 | T170: 0.3125 | U170: 0.313 | V170: 16.2 | W170: 41.7 | X170: 289 | Y170: 51.9 | Z170: 41.2 | AA170: 4.93 | AB170: 76.9 | AC170: 28.7 | AD170: 25.6 | AE170: 2.54 | AF170: 199 | AG170: 48.6
A171: HSS | B171: HSS14x6x0.250 | C171: HSS14x6x1/4 | D171: 14x6x0.250 | E171: 14x6 | F171: 0.25 | M171: Rectangular | N171: 32.63 | O171: 9.59 | P171: 14 | Q171: 6 | R171: 13.25 | S171: 5.25 | T171: 0.25 | U171: 0.25 | V171: 21 | W171: 53 | X171: 237 | Y171: 42.3 | Z171: 33.8 | AA171: 4.97 | AB171: 63.4 | AC171: 23.4 | AD171: 21.1 | AE171: 2.57 | AF171: 162 | AG171: 39.5
A172: HSS | B172: HSS14x6x0.188 | C172: HSS14x6x3/16 | D172: 14x6x0.188 | E172: 14x6 | F172: 0.188 | M172: Rectangular | N172: 24.73 | O172: 7.29 | P172: 14 | Q172: 6 | R172: 13.442 | S172: 5.4332 | T172: 0.1875 | U172: 0.188 | V172: 28.9 | W172: 71.5 | X172: 182 | Y172: 32.4 | Z172: 26.1 | AA172: 5 | AB172: 49.2 | AC172: 18 | AD172: 16.4 | AE172: 2.6 | AF172: 125 | AG172: 30.2
A173: HSS | B173: HSS14x4x0.625 | C173: HSS14x4x5/8 | D173: 14x4x0.625 | E173: 14x4 | F173: 0.625 | M173: Rectangular | N173: 67.82 | O173: 19.9 | P173: 14 | Q173: 4 | R173: 12.125 | S173: 2.125 | T173: 0.625 | U173: 0.625 | V173: 3.4 | W173: 19.4 | X173: 392 | Y173: 77.3 | Z173: 56 | AA173: 4.44 | AB173: 49.2 | AC173: 30 | AD173: 24.6 | AE173: 1.57 | AF173: 154 | AG173: 55.5
A174: HSS | B174: HSS14x4x0.500 | C174: HSS14x4x1/2 | D174: 14x4x0.500 | E174: 14x4 | F174: 0.5 | M174: Rectangular | N174: 55.66 | O174: 16.4 | P174: 14 | Q174: 4 | R174: 12.5 | S174: 2.5 | T174: 0.5 | U174: 0.5 | V174: 5 | W174: 25 | X174: 335 | Y174: 64.8 | Z174: 47.8 | AA174: 4.52 | AB174: 43.1 | AC174: 25.5 | AD174: 21.6 | AE174: 1.62 | AF174: 134 | AG174: 46.8
A175: HSS | B175: HSS14x4x0.375 | C175: HSS14x4x3/8 | D175: 14x4x0.375 | E175: 14x4 | F175: 0.375 | M175: Rectangular | N175: 42.79 | O175: 12.6 | P175: 14 | Q175: 4 | R175: 12.8625 | S175: 2.87625 | T175: 0.375 | U175: 0.375 | V175: 7.67 | W175: 34.3 | X175: 267 | Y175: 50.8 | Z175: 38.2 | AA175: 4.61 | AB175: 35.4 | AC175: 20.3 | AD175: 17.7 | AE175: 1.68 | AF175: 108 | AG175: 36.8
A176: HSS | B176: HSS14x4x0.312 | C176: HSS14x4x5/16 | D176: 14x4x0.312 | E176: 14x4 | F176: 0.312 | M176: Rectangular | N176: 36.1 | O176: 10.6 | P176: 14 | Q176: 4 | R176: 13.0521 | S176: 3.06114 | T176: 0.3125 | U176: 0.313 | V176: 9.78 | W176: 41.7 | X176: 230 | Y176: 43.4 | Z176: 32.8 | AA176: 4.65 | AB176: 30.9 | AC176: 17.4 | AD176: 15.5 | AE176: 1.71 | AF176: 93.2 | AG176: 31.5
A177: HSS | B177: HSS14x4x0.250 | C177: HSS14x4x1/4 | D177: 14x4x0.250 | E177: 14x4 | F177: 0.25 | M177: Rectangular | N177: 29.23 | O177: 8.59 | P177: 14 | Q177: 4 | R177: 13.25 | S177: 3.25 | T177: 0.25 | U177: 0.25 | V177: 13 | W177: 53 | X177: 189 | Y177: 35.4 | Z177: 27 | AA177: 4.69 | AB177: 25.8 | AC177: 14.3 | AD177: 12.9 | AE177: 1.73 | AF177: 77 | AG177: 25.7
A178: HSS | B178: HSS14x4x0.188 | C178: HSS14x4x3/16 | D178: 14x4x0.188 | E178: 14x4 | F178: 0.188 | M178: Rectangular | N178: 22.18 | O178: 6.54 | P178: 14 | Q178: 4 | R178: 13.442 | S178: 3.4404 | T178: 0.1875 | U178: 0.188 | V178: 18.3 | W178: 71.5 | X178: 147 | Y178: 27.2 | Z178: 20.9 | AA178: 4.74 | AB178: 20.3 | AC178: 11.1 | AD178: 10.2 | AE178: 1.76 | AF178: 59.8 | AG178: 19.8
A179: HSS | B179: HSS12x10x0.625 | C179: HSS12x10x5/8 | D179: 12x10x0.625 | E179: 12x10 | F179: 0.625 | M179: Rectangular | N179: 84.84 | O179: 24.9 | P179: 12 | Q179: 10 | R179: 10.125 | S179: 8.125 | T179: 0.625 | U179: 0.625 | V179: 13 | W179: 16.2 | X179: 499 | Y179: 101 | Z179: 83.2 | AA179: 4.48 | AB179: 376 | AC179: 89.3 | AD179: 75.2 | AE179: 3.88 | AF179: 703 | AG179: 132
A180: HSS | B180: HSS12x10x0.500 | C180: HSS12x10x1/2 | D180: 12x10x0.500 | E180: 12x10 | F180: 0.5 | M180: Rectangular | N180: 69.27 | O180: 20.4 | P180: 12 | Q180: 10 | R180: 10.5 | S180: 8.5 | T180: 0.5 | U180: 0.5 | V180: 17 | W180: 21 | X180: 419 | Y180: 83.9 | Z180: 69.9 | AA180: 4.54 | AB180: 316 | AC180: 74.1 | AD180: 63.2 | AE180: 3.94 | AF180: 581 | AG180: 109
A181: HSS | B181: HSS12x10x0.375 | C181: HSS12x10x3/8 | D181: 12x10x0.375 | E181: 12x10 | F181: 0.375 | M181: Rectangular | N181: 53 | O181: 15.6 | P181: 12 | Q181: 10 | R181: 10.875 | S181: 8.8875 | T181: 0.375 | U181: 0.375 | V181: 23.7 | W181: 29 | X181: 330 | Y181: 65.2 | Z181: 55 | AA181: 4.6 | AB181: 249 | AC181: 57.6 | AD181: 49.8 | AE181: 4 | AF181: 450 | AG181: 83.7
A182: HSS | B182: HSS12x10x0.312 | C182: HSS12x10x5/16 | D182: 12x10x0.312 | E182: 12x10 | F182: 0.312 | M182: Rectangular | N182: 44.6 | O182: 13.1 | P182: 12 | Q182: 10 | R182: 11.0489 | S182: 9.0457 | T182: 0.3125 | U182: 0.313 | V182: 28.9 | W182: 35.3 | X182: 282 | Y182: 55.3 | Z182: 46.9 | AA182: 4.63 | AB182: 213 | AC182: 48.9 | AD182: 42.6 | AE182: 4.03 | AF182: 381 | AG182: 70.8
A183: HSS | B183: HSS12x10x0.250 | C183: HSS12x10x1/4 | D183: 12x10x0.250 | E183: 12x10 | F183: 0.25 | M183: Rectangular | N183: 36.03 | O183: 10.6 | P183: 12 | Q183: 10 | R183: 11.25 | S183: 9.25 | T183: 0.25 | U183: 0.25 | V183: 37 | W183: 45 | X183: 230 | Y183: 44.9 | Z183: 38.4 | AA183: 4.66 | AB183: 174 | AC183: 39.7 | AD183: 34.8 | AE183: 4.06 | AF183: 309 | AG183: 57.2
A184: HSS | B184: HSS12x10x0.188 | C184: HSS12x10x3/16 | D184: 12x10x0.188 | E184: 12x10 | F184: 0.188 | M184: Rectangular | N184: 27.29 | O184: 8.04 | P184: 12 | Q184: 10 | R184: 11.4304 | S184: 9.4376 | T184: 0.1875 | U184: 0.188 | V184: 50.2 | W184: 60.8 | X184: 177 | Y184: 34.4 | Z184: 29.5 | AA184: 4.69 | AB184: 134 | AC184: 30.4 | AD184: 26.8 | AE184: 4.09 | AF184: 236 | AG184: 43.6
A185: HSS | B185: HSS12x8x0.625 | C185: HSS12x8x5/8 | D185: 12x8x0.625 | E185: 12x8 | F185: 0.625 | M185: Rectangular | N185: 76.33 | O185: 22.4 | P185: 12 | Q185: 8 | R185: 10.125 | S185: 6.125 | T185: 0.625 | U185: 0.625 | V185: 9.8 | W185: 16.2 | X185: 419 | Y185: 87.1 | Z185: 69.8 | AA185: 4.32 | AB185: 221 | AC185: 65.6 | AD185: 55.3 | AE185: 3.14 | AF185: 481 | AG185: 104
A186: HSS | B186: HSS12x8x0.500 | C186: HSS12x8x1/2 | D186: 12x8x0.500 | E186: 12x8 | F186: 0.5 | M186: Rectangular | N186: 62.46 | O186: 18.4 | P186: 12 | Q186: 8 | R186: 10.5 | S186: 6.5 | T186: 0.5 | U186: 0.5 | V186: 13 | W186: 21 | X186: 353 | Y186: 72.4 | Z186: 58.9 | AA186: 4.39 | AB186: 188 | AC186: 54.7 | AD186: 47 | AE186: 3.2 | AF186: 401 | AG186: 85.8
A187: HSS | B187: HSS12x8x0.375 | C187: HSS12x8x3/8 | D187: 12x8x0.375 | E187: 12x8 | F187: 0.375 | M187: Rectangular | N187: 47.9 | O187: 14.1 | P187: 12 | Q187: 8 | R187: 10.875 | S187: 6.8625 | T187: 0.375 | U187: 0.375 | V187: 18.3 | W187: 29 | X187: 279 | Y187: 56.5 | Z187: 46.5 | AA187: 4.45 | AB187: 149 | AC187: 42.7 | AD187: 37.3 | AE187: 3.26 | AF187: 312 | AG187: 66.3
A188: HSS | B188: HSS12x8x0.312 | C188: HSS12x8x5/16 | D188: 12x8x0.312 | E188: 12x8 | F188: 0.312 | M188: Rectangular | N188: 40.35 | O188: 11.9 | P188: 12 | Q188: 8 | R188: 11.0489 | S188: 7.0738 | T188: 0.3125 | U188: 0.313 | V188: 22.6 | W188: 35.3 | X188: 239 | Y188: 48 | Z188: 39.8 | AA188: 4.49 | AB188: 128 | AC188: 36.4 | AD188: 32 | AE188: 3.28 | AF188: 265 | AG188: 56.1
A189: HSS | B189: HSS12x8x0.250 | C189: HSS12x8x1/4 | D189: 12x8x0.250 | E189: 12x8 | F189: 0.25 | M189: Rectangular | N189: 32.63 | O189: 9.59 | P189: 12 | Q189: 8 | R189: 11.25 | S189: 7.25 | T189: 0.25 | U189: 0.25 | V189: 29 | W189: 45 | X189: 196 | Y189: 39.1 | Z189: 32.6 | AA189: 4.52 | AB189: 105 | AC189: 29.6 | AD189: 26.3 | AE189: 3.31 | AF189: 216 | AG189: 45.5
A190: HSS | B190: HSS12x8x0.188 | C190: HSS12x8x3/16 | D190: 12x8x0.188 | E190: 12x8 | F190: 0.188 | M190: Rectangular | N190: 24.73 | O190: 7.29 | P190: 12 | Q190: 8 | R190: 11.4304 | S190: 7.4448 | T190: 0.1875 | U190: 0.188 | V190: 39.6 | W190: 60.8 | X190: 151 | Y190: 29.9 | Z190: 25.2 | AA190: 4.55 | AB190: 81.3 | AC190: 22.7 | AD190: 20.3 | AE190: 3.34 | AF190: 165 | AG190: 34.7
A191: HSS | B191: HSS12x6x0.625 | C191: HSS12x6x5/8 | D191: 12x6x0.625 | E191: 12x6 | F191: 0.625 | M191: Rectangular | N191: 67.82 | O191: 19.9 | P191: 12 | Q191: 6 | R191: 10.125 | S191: 4.125 | T191: 0.625 | U191: 0.625 | V191: 6.6 | W191: 16.2 | X191: 338 | Y191: 72.9 | Z191: 56.3 | AA191: 4.12 | AB191: 112 | AC191: 44.5 | AD191: 37.3 | AE191: 2.37 | AF191: 286 | AG191: 75.5
A192: HSS | B192: HSS12x6x0.500 | C192: HSS12x6x1/2 | D192: 12x6x0.500 | E192: 12x6 | F192: 0.5 | M192: Rectangular | N192: 55.66 | O192: 16.4 | P192: 12 | Q192: 6 | R192: 10.5 | S192: 4.5 | T192: 0.5 | U192: 0.5 | V192: 9 | W192: 21 | X192: 287 | Y192: 60.9 | Z192: 47.8 | AA192: 4.19 | AB192: 96 | AC192: 37.4 | AD192: 32 | AE192: 2.42 | AF192: 241 | AG192: 62.8
A193: HSS | B193: HSS12x6x0.375 | C193: HSS12x6x3/8 | D193: 12x6x0.375 | E193: 12x6 | F193: 0.375 | M193: Rectangular | N193: 42.79 | O193: 12.6 | P193: 12 | Q193: 6 | R193: 10.875 | S193: 4.875 | T193: 0.375 | U193: 0.375 | V193: 13 | W193: 29 | X193: 228 | Y193: 47.7 | Z193: 38.1 | AA193: 4.26 | AB193: 77.3 | AC193: 29.4 | AD193: 25.8 | AE193: 2.48 | AF193: 190 | AG193: 48.8
A194: HSS | B194: HSS12x6x0.312 | C194: HSS12x6x5/16 | D194: 12x6x0.312 | E194: 12x6 | F194: 0.312 | M194: Rectangular | N194: 36.1 | O194: 10.6 | P194: 12 | Q194: 6 | R194: 11.0489 | S194: 5.0706 | T194: 0.3125 | U194: 0.313 | V194: 16.2 | W194: 35.3 | X194: 196 | Y194: 40.7 | Z194: 32.7 | AA194: 4.3 | AB194: 66.7 | AC194: 25.1 | AD194: 22.2 | AE194: 2.51 | AF194: 162 | AG194: 41.5
A195: HSS | B195: HSS12x6x0.250 | C195: HSS12x6x1/4 | D195: 12x6x0.250 | E195: 12x6 | F195: 0.25 | M195: Rectangular | N195: 29.23 | O195: 8.59 | P195: 12 | Q195: 6 | R195: 11.25 | S195: 5.25 | T195: 0.25 | U195: 0.25 | V195: 21 | W195: 45 | X195: 161 | Y195: 33.2 | Z195: 26.9 | AA195: 4.33 | AB195: 55.2 | AC195: 20.6 | AD195: 18.4 | AE195: 2.53 | AF195: 132 | AG195: 33.7
A196: HSS | B196: HSS12x6x0.188 | C196: HSS12x6x3/16 | D196: 12x6x0.188 | E196: 12x6 | F196: 0.188 | M196: Rectangular | N196: 22.18 | O196: 6.54 | P196: 12 | Q196: 6 | R196: 11.4304 | S196: 5.4332 | T196: 0.1875 | U196: 0.188 | V196: 28.9 | W196: 60.8 | X196: 125 | Y196: 25.5 | Z196: 20.8 | AA196: 4.37 | AB196: 42.9 | AC196: 15.8 | AD196: 14.3 | AE196: 2.56 | AF196: 102 | AG196: 25.8
A197: HSS | B197: HSS12x4x0.625 | C197: HSS12x4x5/8 | D197: 12x4x0.625 | E197: 12x4 | F197: 0.625 | M197: Rectangular | N197: 59.32 | O197: 17.4 | P197: 12 | Q197: 4 | R197: =W197*U197 -> 10.125 | S197: =V197*U197 -> 2.125 | T197: 0.625 | U197: 0.625 | V197: 3.4 | W197: 16.2 | X197: 257 | Y197: 58.6 | Z197: 42.8 | AA197: 3.84 | AB197: 42 | AC197: 25.8 | AD197: 21 | AE197: 1.55 | AF197: 127 | AG197: 47
A198: HSS | B198: HSS12x4x0.500 | C198: HSS12x4x1/2 | D198: 12x4x0.500 | E198: 12x4 | F198: 0.5 | M198: Rectangular | N198: 48.85 | O198: 14.4 | P198: 12 | Q198: 4 | R198: 10.5 | S198: 2.5 | T198: 0.5 | U198: 0.5 | V198: 5 | W198: 21 | X198: 221 | Y198: 49.4 | Z198: 36.8 | AA198: 3.92 | AB198: 37 | AC198: 22 | AD198: 18.5 | AE198: 1.6 | AF198: 110 | AG198: 39.8
A199: HSS | B199: HSS12x4x0.375 | C199: HSS12x4x3/8 | D199: 12x4x0.375 | E199: 12x4 | F199: 0.375 | M199: Rectangular | N199: 37.69 | O199: 11.1 | P199: 12 | Q199: 4 | R199: 10.875 | S199: 2.87625 | T199: 0.375 | U199: 0.375 | V199: 7.67 | W199: 29 | X199: 178 | Y199: 39 | Z199: 29.6 | AA199: 4.01 | AB199: 30.5 | AC199: 17.6 | AD199: 15.3 | AE199: 1.66 | AF199: 89 | AG199: 31.4
A200: HSS | B200: HSS12x4x0.312 | C200: HSS12x4x5/16 | D200: 12x4x0.312 | E200: 12x4 | F200: 0.312 | M200: Rectangular | N200: 31.84 | O200: 9.37 | P200: 12 | Q200: 4 | R200: 11.0489 | S200: 3.06114 | T200: 0.3125 | U200: 0.313 | V200: 9.78 | W200: 35.3 | X200: 153 | Y200: 33.4 | Z200: 25.6 | AA200: 4.05 | AB200: 26.7 | AC200: 15.1 | AD200: 13.4 | AE200: 1.69 | AF200: 77 | AG200: 26.9
... 281 more rows

Sheet Comparisons (hidden)
B5: Me | C5: AISC
A6: F.6 | B6: 7.203441937 | C6: 7.2
A7: F.7 | B7: 59.7 | C7: 59.7
A8: F.7B | B8: 59.7 | C8: 59.7
A9: F.8A | B9: 45.7 | C9: 46.3
A10: F.8B | B10: 45.7 | C10: 45.4
A15: 500,Gr. C
A16: 34x10x1
A17: 0.1 | B17: 3429 | C17: 3430
A18: 20 | B18: 2698 | C18: 2700
A19: 40 | B19: 1312 | C19: 1310
E20: ɸtTYn | G20: ɸtuTUn | I20: ɸbMn = Mcx | K20: ɸbMn = Mcy | M20: ɸvVnx | O20: ɸvVny
A21: 20x8x0.3125 | E21: Me | F21: AISC | G21: Me | H21: AISC | I21: Me | J21: AISC | K21: Me | L21: AISC | M21: Me | N21: AISC | O21: Me | P21: AISC
A22: 0.1 | B22: 501 | C22: 510 | D22: =+(C22-B22)/C22 -> 0.01764705882 | E22: 706 | F22: 707 | G22: 547.5375 | H22: 548 | I22: 362.7063107 | J22: 363 | K22: 121.7166603 | L22: 122 | M22: 271 | N22: 271 | O22: 112.04082 | P22: 112
A23: 20 | B23: 388 | C23: 393 | D23: =+(C23-B23)/C23 -> 0.01272264631
A24: 40 | B24: 185 | C24: 185 | D24: =+(C24-B24)/C24 -> 0
A30: 12x10x0.25
A31: 0.1 | B31: 368 | C31: 372 | D31: =+(C31-B31)/C31 -> 0.01075268817 | E31: ɸtTYn | G31: ɸtuTUn | I31: ɸbMn = Mcx | K31: ɸbMn = Mcy | M31: ɸvVnx | O31: ɸvVny
A32: 20 | B32: 313 | C32: 314 | D32: =+(C32-B32)/C32 -> 0.003184713376 | E32: Me | F32: AISC | G32: Me | H32: AISC | I32: Me | J32: AISC | K32: Me | L32: AISC | M32: Me | N32: AISC | O32: Me | P32: AISC
A33: 40 | B33: 161 | C33: 161 | D33: =+(C33-B33)/C33 -> 0 | E33: 446 | F33: 446 | G33: 345 | H33: 345 | I33: 125 | J33: 127 | K33: 104 | L33: 105 | M33: 142 | N33: 142 | O33: 117 | P33: 117
A37: 2.5 x 2.5 x 0.1875
A38: 0.1 | B38: 69.3 | C38: 69.3 | D38: =+(C38-B38)/C38 -> 0 | E38: ɸtTYn | G38: ɸtuTUn | I38: ɸbMn = Mcx | K38: ɸbMn = Mcy | M38: ɸvVnx | O38: ɸvVny
A39: 8 | B39: 32.7 | C39: 32.2 | D39: =+(C39-B39)/C39 -> -0.01552795031 | E39: Me | F39: AISC | G39: Me | H39: AISC | I39: Me | J39: AISC | K39: Me | L39: AISC | M39: Me | N39: AISC | O39: Me | P39: AISC
A40: 15 | B40: 9.43 | C40: 9.43 | D40: =+(C40-B40)/C40 -> 0 | E40: 69.3 | F40: 69.3 | G40: 53.7 | H40: 53.7 | I40: 4.95 | J40: 4.95 | K40: 4.95 | L40: 4.95 | M40: 18.6 | N40: 18.6 | O40: 18.6 | P40: 18.6
A45: 5x5x0.125
A46: 0.1 | B46: 89.8 | C46: 89.8 | D46: =+(C46-B46)/C46 -> 0 | E46: ɸtTYn | G46: ɸtuTUn | I46: ɸbMn = Mcx | K46: ɸbMn = Mcy | M46: ɸvVnx | O46: ɸvVny
A47: 16 | B47: 50.8 | C47: 50.8 | D47: =+(C47-B47)/C47 -> 0 | E47: Me | F47: AISC | G47: Me | H47: AISC | I47: Me | J47: AISC | K47: Me | L47: AISC | M47: Me | N47: AISC | O47: Me | P47: AISC
A48: 32 | B48: 13.5 | C48: 13.5 | D48: =+(C48-B48)/C48 -> 0 | E48: 100.4 | F48: 100 | G48: 77.8 | H48: 77.8 | I48: 12.5 | J48: 12.3 | K48: 12.5 | L48: 12.3 | M48: 29.1 | N48: 29.1 | O48: 29.1 | P48: 29.1
